Workbook

Sheet Voorblad
C2: =UPPER(MID(CELL("filename",A1),FIND("[",CELL("filename",A1))+1,FIND("]",CELL("filename",A1))-FIND("[",CELL("filename",A1))-5)) -> LPM MB15 - VT VOIP TZ 20170201 OPENBAAR.
C3: =UPPER(MID(CELL("filename",A2),FIND("]",CELL("filename",A2))+1,LEN(CELL("filename",A2)))) -> VOORBLAD
B8: 1. | C8: Beschrijving
C10: Deze openbare ND5 toets bevat separate toetsen voor de aansluiting en het verkeer
C11: Voor combinaties van aansluitingen en het verkeer moet een optelling worden gemaakt van de uitkomsten van de separate toetsen.
B13: 2. | C13: Navigatie
C15: Cel kleuren
C16: Fictieve getallen

Sheet EDC minus lijst ULL
A1: EDC minus maandbedragen resp LRIC maandbedragen incl en excl TH, E, SEV (interpolatie 2017 uit 2015 en 2018)
A2: product | B2: kosten vvv | D2: kosten vve | E2: kosten vva t/m MC ex vva TH, E en SEV | F2: kosten vva TH t/m MC | G2: kosten vva E t/m MC | H2: kosten vva SEV t/m MC | I2: Technische Huisvesting t/m MC in m2 | J2: kWh Energie t/m MC | K2: kosten vva MC tot core incl TH, E, SEV | L2: kosten vva core +wap incl TH, E, SEV | M2: grondslag kosten | N2: eenheid
A3: WBA central office | D3: 0.10 | E3: 0.10 | F3: 0.10 | G3: 0.10 | H3: 0.10 | I3: 0.01 | J3: 0.01 | K3: 0.10 | L3: 0.10 | M3: EDC minus | N3: aansluiting
A4: WBA FTTH | D4: 0.10 | E4: 0.10 | F4: 0.10 | G4: 0.10 | H4: 0.10 | I4: 0.01 | J4: 0.01 | K4: 0.10 | L4: 0.10 | M4: EDC minus | N4: aansluiting
A5: WBA FTTC | D5: 0.10 | E5: 0.10 | F5: 0.10 | G5: 0.10 | H5: 0.10 | I5: 0.01 | J5: 0.01 | K5: 0.10 | L5: 0.10 | M5: EDC minus | N5: aansluiting
A6: WBA SDSL | D6: 0.10 | E6: 0.10 | F6: 0.10 | G6: 0.10 | H6: 0.10 | I6: 0.01 | J6: 0.01 | K6: 0.10 | L6: 0.10 | M6: EDC minus | N6: aansluiting
A7: WBA VULA (mix van wba co en wba fttc) | K7: 0.10 | L7: 0.10 | M7: EDC minus | N7: aansluiting
A8: WBA ETN p2p met geschat verbruik | D8: 0.10 | E8: 0.10 | F8: 0.10 | G8: 0.10 | H8: 0.10 | I8: 0.01 | J8: 0.01 | K8: 0.10 | L8: 0.10 | M8: EDC minus | N8: aansluiting
A9: WBA pairbonded | D9: 0.10 | E9: 0.10 | F9: 0.10 | G9: 0.10 | H9: 0.10 | I9: 0.01 | J9: 0.01 | K9: 0.10 | L9: 0.10 | M9: EDC minus | N9: aansluiting
A10: WBA ETN p2p met geschat verbruik pb | D10: 0.10 | E10: 0.10 | F10: 0.10 | G10: 0.10 | H10: 0.10 | I10: 0.01 | J10: 0.01 | K10: 0.10 | L10: 0.10 | M10: EDC minus | N10: aansluiting
A12: EOK gemiddeld | D12: 0 | E12: 1.00 | F12: 0.10 | G12: 0.10 | H12: 0.10 | I12: 0.01 | J12: 0.01 | K12: 1.00 | L12: 1.00 | M12: EDC minus | N12: aansluiting
A13: EOK tot 2,3 Mb met één koperpaar | D13: 0 | E13: 1.00 | I13: 0.01 | J13: 0.01 | K13: 1.00 | L13: 1.00 | M13: EDC minus | N13: aansluiting
A14: EOK tot 3 Mb | D14: 0 | E14: 1.00 | I14: 0.01 | J14: 0.01 | K14: 1.00 | L14: 1.00 | M14: EDC minus | N14: aansluiting
A15: EOK tot 5 Mb | D15: 0 | E15: 1.00 | I15: 0.01 | J15: 0.01 | K15: 1.00 | L15: 1.00 | M15: EDC minus | N15: aansluiting
A16: EOK tot 10 Mb | D16: 0 | E16: 1.00 | I16: 0.01 | J16: 0.01 | K16: 1.00 | L16: 1.00 | M16: EDC minus | N16: aansluiting
A17: EOK tot 15 Mb | D17: 0 | E17: 1.00 | I17: 0.01 | J17: 0.01 | K17: 1.00 | L17: 1.00 | M17: EDC minus | N17: aansluiting
A18: EOK tot 20 Mb | D18: 0 | E18: 1.00 | I18: 0.01 | J18: 0.01 | K18: 1.00 | L18: 1.00 | M18: EDC minus | N18: aansluiting
B20: kosten vvv | C20: 0 | D20: kosten vve | E20: kosten vva t/m MC ex vva TH, E en SEV | F20: kosten vva TH t/m MC | G20: kosten vva E t/m MC | H20: kosten vva SEV t/m MC | I20: Technische Huisvesting t/m MC in m2 | J20: kWh Energie t/m MC | K20: kosten vva MC tot core incl TH, E, SEV | L20: kosten vva core +wap incl TH, E, SEV
A21: WEAS BT/FTTO incl collo en BH | D21: 0 | E21: 1.00 | F21: 1.00 | G21: 1.00 | H21: 1.00 | I21: 1.00 | J21: 1.00 | K21: 1.00 | L21: 1.00 | M21: EDC minus | N21: aansluiting
A22: WEAS BT/FTTO excl collo en BH | D22: 0 | E22: 1.00 | F22: 1.00 | G22: 1.00 | H22: 1.00 | I22: 1.00 | J22: 1.00 | K22: 1.00 | L22: 1.00 | M22: EDC minus | N22: aansluiting
A23: WEAS CITY incl collo en BH | D23: 0 | E23: 1.00 | F23: 1.00 | G23: 1.00 | H23: 1.00 | I23: 1.00 | J23: 1.00 | K23: 1.00 | L23: 1.00 | M23: EDC minus | N23: aansluiting
A24: WEAS CITY excl collo en BH | D24: 0 | E24: 1.00 | F24: 1.00 | G24: 1.00 | H24: 1.00 | I24: 1.00 | J24: 1.00 | K24: 1.00 | L24: 1.00 | M24: EDC minus | N24: aansluiting
A25: 0 | B25: kosten vvv | D25: kosten vve | E25: kosten vva t/m MDF | F25: kosten vva TH t/m MDF | G25: kosten vva E t/m MDF | H25: kosten vva SEV t/m MDF | I25: Technische Huisvesting t/m MDF in m2 | J25: kWh Energie t/m MDF | L25: kosten vva evkc/RAC
A26: verkeer evkc to evkc | B26: 0.0100 | M26: EDC minus | N26: minuut
A27: verkeer evkc to host | B27: 0.0100 | M27: EDC minus | N27: minuut
A28: verkeer access netwerk host | B28: 0.0100 | M28: EDC minus | N28: minuut
A29: verkeer voice carrier systeem | B29: 0.0100 | M29: EDC minus | N29: minuut
A30: verkeer premium transit | B30: 0.0100 | M30: EDC minus | N30: minuut
A32: tdm poort 2mbits | D32: 0 | E32: 0 | F32: 0 | G32: 0 | H32: 0 | I32: 0 | J32: 0 | K32: 0 | L32: 1.00 | M32: EDC minus | N32: poort enkel
A33: tdm poort 155mbits | D33: 0 | E33: 0 | F33: 0 | G33: 0 | H33: 0 | I33: 0 | J33: 0 | K33: 0 | L33: 1.00 | M33: EDC minus | N33: poort enkel
A34: isdn 1/2 lijnkaart | B34: 0 | D34: 0.10 | E34: 0.10 | F34: 0.10 | G34: 0.10 | H34: 0.10 | I34: 0.01 | J34: 0.01 | K34: 0 | L34: 0 | M34: EDC minus | N34: aansluiting
A35: isdn 15/20/30 lijnkaart | B35: 0 | D35: 0.10 | E35: 0.10 | F35: 0.10 | G35: 0.10 | H35: 0.10 | I35: 0.01 | J35: 0.01 | K35: 0 | L35: 0 | M35: EDC minus | N35: aansluiting
A36: pstn lijnkaart | B36: 0 | D36: 0.10 | E36: 0.10 | F36: 0.10 | G36: 0.10 | H36: 0.10 | I36: 0.01 | J36: 0.01 | K36: 0 | L36: 0 | M36: EDC minus | N36: aansluiting
A37: hdsl modem isdn 15/20/30 | B37: 0 | D37: 0 | E37: 1.00 | F37: 0 | G37: 1.00 | H37: 1.00 | I37: 0 | J37: 1.00 | K37: 0 | L37: 0 | M37: EDC minus | N37: aansluiting
A39: Voip per minuut | B39: 0.0100 | D39: 0 | E39: 0 | F39: 0 | G39: 0 | H39: 0 | I39: 0 | J39: 0 | K39: 0 | L39: 0 | M39: EDC minus | N39: minuut
A40: Voip transit per minuut | B40: 0.0100 | D40: 0 | E40: 0 | F40: 0 | G40: 0 | H40: 0 | I40: 0 | J40: 0 | K40: 0 | L40: 0 | M40: EDC minus | N40: minuut
A41: 0 | B41: 0 | D41: 0 | E41: 0 | F41: 0 | G41: 0 | H41: 0 | I41: 0 | J41: 0 | K41: 0 | L41: 0
A42: 0 | B42: 0 | D42: 0 | E42: 0 | F42: 0 | G42: 0 | H42: 0 | I42: 0 | J42: 0 | K42: 0 | L42: 0
A43: 0 | B43: 0 | D43: 0 | E43: 0 | F43: 0 | G43: 0 | H43: 0 | I43: 0 | J43: 0 | K43: 0 | L43: 0
A44: vaste transmissie mobiel data | B44: 0.0100 | M44: EDC minus | N44: MB
A45: vaste transmissie mobiel sms | B45: 0.0100 | M45: EDC minus | N45: bericht
A46: vaste transmissie mobiel spraak | B46: 0.0100 | M46: EDC minus | N46: minuut
A47: radionet mobiel data | B47: 0.0100 | M47: LRIC | N47: MB
A48: radionet mobiel sms | B48: 0.0100 | M48: LRIC | N48: bericht
A49: radionet mobiel spraak | B49: 0.0100 | M49: LRIC | N49: minuut
A50: mobiel vast bedrag per maand (LRIC residu) | M50: LRIC | N50: aansluiting
D51: kosten vve | E51: kosten vva t/m MC ex vva TH, E en SEV | F51: kosten vva TH t/m MC | G51: kosten vva E t/m MC | H51: kosten vva SEV t/m MC | I51: Technische Huisvesting t/m MC in m2 | J51: kWh Energie t/m MC | K51: kosten vva MC tot core incl TH, E, SEV | L51: kosten vva core +wap incl TH, E, SEV
A52: broadcast platform kpn retail | B52: 0 | D52: 0 | E52: 0 | F52: 0 | G52: 0 | H52: 0 | I52: 0 | J52: 0 | K52: 0 | L52: 0.10 | M52: EDC minus | N52: aansluiting
A53: broadcast platform kpn whs | B53: 0 | D53: 0 | E53: 0 | F53: 0 | G53: 0 | H53: 0 | I53: 0 | J53: 0 | K53: 0 | L53: 0.10 | M53: EDC minus | N53: aansluiting
A54: broadcast transport | B54: 0 | D54: 0 | E54: 0.10 | F54: 0.10 | G54: 0.10 | H54: 0.10 | I54: 0.01 | J54: 0.01 | K54: 0.10 | L54: 0.10 | M54: EDC minus | N54: aansluiting
A55: unicast platform | B55: 0 | D55: 0 | E55: 0 | F55: 0 | G55: 0 | H55: 0 | I55: 0 | J55: 0 | K55: 0 | L55: 0.10 | M55: EDC minus | N55: aansluiting
A56: w.v.unicast npvr | B56: 0 | D56: 0 | E56: 0 | F56: 0 | G56: 0 | H56: 0 | I56: 0 | J56: 0 | K56: 0 | L56: 0.10 | M56: EDC minus | N56: aansluiting
A57: w.v. unicast vod | B57: 0 | D57: 0 | E57: 0 | F57: 0 | G57: 0 | H57: 0 | I57: 0 | J57: 0 | K57: 0 | L57: 0.10 | M57: EDC minus | N57: aansluiting
B59: kosten vvv | D59: kosten vve | E59: kosten vva t/m MDF | F59: kosten vva TH t/m MDF | G59: kosten vva E t/m MDF | H59: kosten vva SEV t/m MDF | I59: Technische Huisvesting t/m MDF in m2 | J59: kWh Energie t/m MDF | K59: kosten vva MDF t/m cp | L59: kosten vva cp-cp
A60: ILL 2048 kbit/s lokaal collo | D60: 0 | E60: 1.00 | F60: 0 | G60: 1.00 | H60: 1.00 | I60: 0 | J60: 1.00 | K60: 1.00 | L60: 0 | M60: EDC minus | N60: aansluiting
A61: ILL 2048 kbit/s lokaal telco (incl LEP/CP) | D61: 0 | E61: 1.00 | F61: 0 | G61: 1.00 | H61: 1.00 | I61: 0 | J61: 1.00 | K61: 1.00 | L61: 1.00 | M61: EDC minus | N61: aansluiting
A62: ILL 2048 kbit/s regionaal collo | D62: 0 | E62: 1.00 | F62: 0 | G62: 1.00 | H62: 1.00 | I62: 0 | J62: 1.00 | K62: 1.00 | L62: 0 | M62: EDC minus | N62: aansluiting
A63: ILL 2048 kbit/s regionaal telco (incl LEP/CP) | D63: 0 | E63: 1.00 | F63: 0 | G63: 1.00 | H63: 1.00 | I63: 0 | J63: 1.00 | K63: 1.00 | L63: 1.00 | M63: EDC minus | N63: aansluiting
A64: ILL 2 Mbit/s (VC12) AP-CP | D64: 0 | E64: 0 | F64: 0 | G64: 0 | H64: 0 | I64: 0 | J64: 0 | K64: 1.00 | L64: 0 | M64: EDC minus | N64: aansluiting
A65: ILLP 34 Mbit/s (VC3) AP-CP | D65: 0 | E65: 0 | F65: 0 | G65: 0 | H65: 0 | I65: 0 | J65: 0 | K65: 1.00 | L65: 0 | M65: EDC minus | N65: aansluiting
A66: ILL 155 Mbit/s (VC4) AP-CP | D66: 0 | E66: 0 | F66: 0 | G66: 0 | H66: 0 | I66: 0 | J66: 0 | K66: 1.00 | L66: 0 | M66: EDC minus | N66: aansluiting
A67: ILL 622 Mbit/s (4*STM1) UTN-A PAN(SDH) | D67: 0 | E67: 0 | F67: 0 | G67: 0 | H67: 0 | I67: 0 | J67: 0 | K67: 0 | L67: 0 | M67: EDC minus | N67: aansluiting
A68: ILL tie cable | E68: 1.00 | F68: 0 | G68: 0 | H68: 0 | I68: 0 | J68: 0 | K68: 0 | L68: 0 | M68: EDC minus | N68: aansluiting
A69: ILL 2 Mbit/s CP CP | D69: 0 | E69: 0 | F69: 0 | G69: 0 | H69: 0 | I69: 0 | J69: 0 | K69: 0 | L69: 1.00 | M69: EDC minus | N69: aansluiting
A70: ILL 34 Mbit/s (VC3) CP-CP | D70: 0 | E70: 0 | F70: 0 | G70: 0 | H70: 0 | I70: 0 | J70: 0 | K70: 0 | L70: 1.00 | M70: EDC minus | N70: aansluiting
A71: ILL 155 Mbit/s CP_CP | D71: 0 | E71: 0 | F71: 0 | G71: 0 | H71: 0 | I71: 0 | J71: 0 | K71: 0 | L71: 1.00 | M71: EDC minus | N71: aansluiting
M72: EDC minus | N72: aansluiting
B73: kosten vvv | D73: kosten vve | E73: kosten vva t/m MDF | F73: kosten vva TH t/m MDF | G73: kosten vva E t/m MDF | H73: kosten vva SEV t/m MDF | I73: TH t/m MDF in m2 | J73: kWh E t/m MDF | K73: kosten vva MDF t/m cp | L73: kosten vva cp-cp
A74: CPA 34 mbits | D74: 0 | E74: 1.00 | F74: 1.00 | G74: 1.00 | H74: 1.00 | I74: 1.00 | J74: 1.00 | K74: 0 | L74: 0 | M74: EDC minus | N74: aansluiting
A75: CPA 155 mbits | D75: 0 | E75: 1.00 | F75: 1.00 | G75: 1.00 | H75: 1.00 | I75: 1.00 | J75: 1.00 | K75: 0 | L75: 0 | M75: EDC minus | N75: aansluiting
A76: CPA 622 mbits | D76: 0 | E76: 1.00 | F76: 1.00 | G76: 1.00 | H76: 1.00 | I76: 1.00 | J76: 1.00 | K76: 0 | L76: 0 | M76: EDC minus | N76: aansluiting
A77: CPA 2500 mbits | D77: 0 | E77: 1.00 | F77: 1.00 | G77: 1.00 | H77: 1.00 | I77: 1.00 | J77: 1.00 | K77: 0 | L77: 0 | M77: EDC minus | N77: aansluiting
A78: CPA afstapelpunt | D78: 0 | E78: 1.00 | F78: 1.00 | G78: 1.00 | H78: 1.00 | I78: 1.00 | J78: 1.00 | K78: 0 | L78: 0 | M78: EDC minus | N78: aansluiting
B79: kosten vvv | D79: kosten vve | E79: kosten vva t/m MC ex vva TH, E en SEV | F79: kosten vva TH t/m MC | G79: kosten vva E t/m MC | H79: kosten vva SEV t/m MC | I79: TH t/m MC in m2 | J79: kWh E t/m MC | K79: kosten vva MC tot core incl TH, E, SEV | L79: kosten vva core +wap incl TH, E, SEV
A80: dark fiber e2e excl odf per stuk | D80: 0 | E80: 1.00 | F80: 1.00 | G80: 1.00 | H80: 1.00 | I80: 1.00 | J80: 1.00 | K80: 0 | L80: 0 | M80: EDC minus | N80: aansluiting
A81: dark fiber per km vezelpaar boven MB | D81: 0 | E81: 1.00 | F81: 1.00 | G81: 1.00 | H81: 1.00 | I81: 1.00 | J81: 1.00 | K81: 0 | L81: 0 | M81: EDC minus | N81: kilometer vzp
A82: ODF per km vezelpaar (off net en protectie) | D82: 0 | E82: 1.00 | F82: 1.00 | G82: 1.00 | H82: 1.00 | I82: 1.00 | J82: 1.00 | K82: 0 | L82: 0 | M82: EDC minus | N82: kilometer vzp
B83: kosten vvv | D83: kosten vve | E83: kosten vva t/m MC ex vva TH, E en SEV | F83: kosten vva TH t/m MC | G83: kosten vva E t/m MC | H83: kosten vva SEV t/m MC | I83: TH t/m MC in m2 | J83: kWh E t/m MC | K83: kosten vva MC tot core incl TH, E, SEV | L83: kosten vva core +wap incl TH, E, SEV
A84: WDM segment t/m 2,5G passief metro | D84: 0 | E84: 1.00 | F84: 1.00 | G84: 1.00 | H84: 1.00 | I84: 1.00 | J84: 1.00 | K84: 0 | L84: 0 | M84: EDC minus | N84: aansluiting
A85: WDM segment t/m 2,5G metro regionaal | D85: 0 | E85: 0 | F85: 0 | G85: 0 | H85: 0 | K85: 1.00 | L85: 0 | M85: EDC minus | N85: aansluiting
A86: WDM segment t/m 2,5G regionaal nationaal | D86: 0 | E86: 0 | F86: 0 | G86: 0 | H86: 0 | K86: 0 | L86: 1.00 | M86: EDC minus | N86: aansluiting
A87: WDM segment 10G passief metro | D87: 0 | E87: 1.00 | F87: 1.00 | G87: 1.00 | H87: 1.00 | I87: 1.00 | J87: 1.00 | K87: 0 | L87: 0 | M87: EDC minus | N87: aansluiting
A88: WDM segment 10G metro regionaal | D88: 0 | E88: 0 | F88: 0 | G88: 0 | H88: 0 | I88: 0 | J88: 0 | K88: 1.00 | L88: 0 | M88: EDC minus | N88: aansluiting
A89: WDM segment 10G regionaal nationaal | D89: 0 | E89: 0 | F89: 0 | G89: 0 | H89: 0 | I89: 0 | J89: 0 | K89: 0 | L89: 1.00 | M89: EDC minus | N89: aansluiting
B91: kosten vvv | D91: kosten vve | E91: kosten vva t/m MC ex vva TH, E en SEV | F91: kosten vva TH t/m MC | G91: kosten vva E t/m MC | H91: kosten vva SEV t/m MC | I91: TH t/m MC in m2 | J91: kWh E t/m MC | K91: kosten vva MC tot core incl TH, E, SEV | L91: kosten vva core +wap incl TH, E, SEV
A92: generiek IP platform wba internet | D92: 0 | E92: 0 | F92: 0 | G92: 0 | H92: 0 | I92: 0 | J92: 0 | K92: 0 | L92: 1.00 | M92: EDC minus | N92: aansluiting
A93: generiek IP platform wba itv | D93: 0 | E93: 0 | F93: 0 | G93: 0 | H93: 0 | I93: 0 | J93: 0 | K93: 0 | L93: 1.00 | M93: EDC minus | N93: aansluiting
A96: generiek IP platform per 10GB | D96: 0 | E96: 0 | F96: 0 | G96: 0 | H96: 0 | I96: 0 | J96: 0 | K96: 0 | L96: 1.00 | M96: EDC minus | N96: poort
L98: kosten vva
A99: Anti DDOS platformkosten premium | L99: 1 | M99: EDC minus | N99: klant
A100: Anti DDOS platformkosten basic | L100: 1.00 | M100: EDC minus | N100: klant
A101: Helpdesk premium | L101: 1.00 | M101: EDC minus | N101: klant
A102: Helpdesk basic | L102: 1.00 | M102: EDC minus | N102: klant
A104: Datacenter_Connect_10Mbps_single | L104: 1.00 | M104: EDC minus | N104: aansluiting
A105: Datacenter_Connect_100Mbps_single | L105: 1.00 | M105: EDC minus | N105: aansluiting
A106: Datacenter_Connect_400Mbps_single | L106: 1.00 | M106: EDC minus | N106: aansluiting
A107: Datacenter_Connect_1Gbps_single | L107: 1.00 | M107: EDC minus | N107: aansluiting
A108: Datacenter_Connect_10Mbps_redundant | L108: 1.00 | M108: EDC minus | N108: aansluiting
A109: Datacenter_Connect_100Mbps_redundant | L109: 1.00 | M109: EDC minus | N109: aansluiting
A110: Datacenter_Connect_400Mbps_redundant | L110: 1.00 | M110: EDC minus | N110: aansluiting
A111: Datacenter_Connect_1Gbps_redundant | L111: 1.00 | M111: EDC minus | N111: aansluiting
I113: TH in MC in m2 | J113: kWh E in MC
A114: WETS TH, E in MC (is gehalveerd, moet nog * 3,8 volgens berekening Carel) | I114: 1.00 | J114: 1.00 | M114: EDC minus | N114: eindpunt
E115: TAN | F115: SAN | G115: PAN
A116: WEAS BT dood glas | E116: 0 | F116: 0 | G116: 1.00 | M116: LRIC | N116: aansluiting
A117: WEAS BT bestaand nieuwe klant | E117: 1.00 | F117: 0 | G117: 1.00 | M117: LRIC | N117: aansluiting
A118: WEAS BT nieuw | E118: 1.00 | F118: 1.00 | G118: 1.00 | M118: LRIC | N118: aansluiting
A119: WEAS BT upgrade snelheid | E119: 0 | F119: 0 | G119: 0 | M119: LRIC | N119: aansluiting
E120: 0 | F120: 0 | G120: 0
A121: WEAS ST dood glas | E121: 0 | F121: 0 | G121: 1.00 | M121: LRIC | N121: aansluiting
A122: WEAS ST nearnet | E122: 1.00 | F122: 1.00 | G122: 1.00 | M122: LRIC | N122: aansluiting
A123: WEAS ST offnet | E123: 1.00 | F123: 1.00 | G123: 1.00 | M123: LRIC | N123: aansluiting
A125: straalverbinding WEAS | D125: 1 | K125: 1 | M125: LRIC | N125: aansluiting/hop
A126: straalverbinding EVENTS met mast | D126: 1 | K126: 1 | M126: LRIC | N126: aansluiting/hop
A127: straalverbindding EVENTS zonder mast | D127: 1 | K127: 1 | M127: LRIC | N127: aansluiting/hop
A129: Newtel platformkosten incl transmissie | B129: 0.0100 | M129: EDC minus | N129: minuut
A130: Newtel IVR Telios | B130: 0 | M130: EDC minus | N130: minuut
A131: Newtel IVR Telios spraakherkenning | B131: 0 | M131: EDC minus | N131: minuut
A132: Storm | B132: 0 | M132: EDC minus | N132: seat?
B133: kosten vvv | D133: kosten vve | E133: kosten vva t/m MC ex vva TH, E en SEV | F133: kosten vva TH t/m MC | G133: kosten vva E t/m MC | H133: kosten vva SEV t/m MC | I133: Technische Huisvesting t/m MC in m2 | J133: kWh Energie t/m MC | K133: kosten vva MC tot core incl TH, E, SEV | L133: kosten vva core +wap incl TH, E, SEV
A134: WEAS FTTH BT excl collo en BH | D134: 0 | E134: 1.00 | F134: 1.00 | G134: 1.00 | H134: 1.00 | I134: 1.00 | J134: 1.00 | K134: 1.00 | L134: 1.00 | M134: EDC minus | N134: aansluiting
A135: WEAS FTTH CITY excl collo en BH | D135: 0 | E135: 1.00 | F135: 1.00 | G135: 1.00 | H135: 1.00 | I135: 1.00 | J135: 1.00 | K135: 1.00 | L135: 1.00 | M135: EDC minus | N135: aansluiting
A137: backhaul FTTH BT tot MC | D137: 0 | E137: 1.00 | F137: 1.00 | G137: 1.00 | H137: 1.00 | I137: 1.00 | J137: 1.00 | K137: 0 | L137: 0 | M137: EDC minus | N137: aansluiting
A138: backhaul FTTH ST tot MC | D138: 0 | E138: 1.00 | F138: 1.00 | G138: 1.00 | H138: 1.00 | I138: 1.00 | J138: 1.00 | K138: 0 | L138: 0 | M138: EDC minus | N138: aansluiting

Sheet Tarieven ZM voice
B2: 1. KPN ZM abonnementen
B4: ZM identifier | C4: Propositie | D4: Type Abonnement | E4: Product | F4: VVA | G4: VVE nieuwe aanleg | H4: VVE overstap
B5: =C5&D5&E5 -> Hosted voipseatNederland Basis | C5: Hosted voip | D5: seat | E5: Nederland Basis | F5: 100.00 | G5: 100.00 | H5: 100.00
B6: Hosted voipseatNederland Onbeperkt | C6: Hosted voip | D6: seat | E6: Nederland Onbeperkt | F6: 100.00 | G6: 100.00 | H6: 100.00
B8: SIPkanaalBasis | C8: SIP | D8: kanaal | E8: Basis | F8: 100.00 | G8: 100.00 | H8: 100.00 | I8: nummerportering van voip naar voip
B9: SIPnummerfaciliteitextra nummer | C9: SIP | D9: nummerfaciliteit | E9: extra nummer | F9: 100.00 | G9: 100.00 | H9: 100.00
B10: SIPnummerfaciliteit10-nummerblok | C10: SIP | D10: nummerfaciliteit | E10: 10-nummerblok | F10: 100.00 | G10: 100.00 | H10: 100.00
B11: SIPnummerfaciliteit100-nummerblok | C11: SIP | D11: nummerfaciliteit | E11: 100-nummerblok | F11: 100.00 | G11: 100.00 | H11: 100.00
B13: Hosted telefonie
B14: =C14&D14&E14 -> Hosted voipfaciliteitHosted telefonie centrale | C14: Hosted voip | D14: faciliteit | E14: Hosted telefonie centrale | F14: 100.00 | G14: 100.00 | H14: 100.00
B15: =C15&D15&E15 -> Hosted voipfaciliteitTelefooncentrale + keuzepakket 7,50 | C15: Hosted voip | D15: faciliteit | E15: Telefooncentrale + keuzepakket 7,50 | F15: 100.00 | G15: 100.00 | H15: 100.00
B16: =C16&D16&E16 -> Hosted voipfaciliteit5 Extra belgroepen | C16: Hosted voip | D16: faciliteit | E16: 5 Extra belgroepen | F16: 100.00 | G16: 100.00 | H16: 100.00
B17: =C17&D17&E17 -> Hosted voipfaciliteitFax naar E-mail | C17: Hosted voip | D17: faciliteit | E17: Fax naar E-mail | F17: 100.00 | G17: 100.00 | H17: 100.00
B18: Hosted voipfaciliteitExtra telefoonnummer | C18: Hosted voip | D18: faciliteit | E18: Extra telefoonnummer | F18: 100.00 | G18: 100.00 | H18: 100.00
B19: Hosted voipfaciliteit10-nummerblok | C19: Hosted voip | D19: faciliteit | E19: 10-nummerblok | F19: 100.00 | G19: 100.00 | H19: 100.00
B20: Hosted voipfaciliteit100-nummerblok | C20: Hosted voip | D20: faciliteit | E20: 100-nummerblok | F20: 100.00 | G20: 100.00 | H20: 100.00
B21: Hosted voipfaciliteitService en Installatie | C21: Hosted voip | D21: faciliteit | E21: Service en Installatie | F21: 100.00 | G21: 100.00 | H21: 100.00
B22: Hosted voipfaciliteitInVerbinding | C22: Hosted voip | D22: faciliteit | E22: InVerbinding | F22: 100.00 | G22: 100.00 | H22: 100.00
B24: Hosted telefonie Extra
B25: =C25&D25&E25 -> Hosted voipfaciliteitHosted telefonie Extra 12,50 | C25: Hosted voip | D25: faciliteit | E25: Hosted telefonie Extra 12,50 | F25: 100.00 | G25: 100.00 | H25: 100.00
B26: =C26&D26&E26 -> Hosted voipfaciliteitReceptionist | C26: Hosted voip | D26: faciliteit | E26: Receptionist | F26: 100.00 | G26: 100.00 | H26: 100.00
B27: Hosted voipfaciliteitWachtrijmedewerker | C27: Hosted voip | D27: faciliteit | E27: Wachtrijmedewerker | F27: 100.00 | G27: 100.00 | H27: 100.00
B28: Hosted voipfaciliteitSoftware integratie | C28: Hosted voip | D28: faciliteit | E28: Software integratie | F28: 100.00 | G28: 100.00 | H28: 100.00
B29: Hosted voipfaciliteitFax naar E-mail (Extra) | C29: Hosted voip | D29: faciliteit | E29: Fax naar E-mail (Extra) | F29: 100.00 | G29: 100.00 | H29: 100.00 | I29: dubbel, daarom "(Extra)" toegevoegd
B30: =C30&D30&E30 -> Hosted voipfaciliteitDoorschakelen nacht | C30: Hosted voip | D30: faciliteit | E30: Doorschakelen nacht | F30: 100.00 | G30: 100.00 | H30: 100.00
B31: =C31&D31&E31 -> Hosted voipfaciliteitDoorschakelen bij bezet | C31: Hosted voip | D31: faciliteit | E31: Doorschakelen bij bezet | F31: 100.00 | G31: 100.00 | H31: 100.00
B32: Hosted voipfaciliteitDoorschakelen direct | C32: Hosted voip | D32: faciliteit | E32: Doorschakelen direct | F32: 100.00 | G32: 100.00 | H32: 100.00
B33: Hosted voipfaciliteitDoorschakelen bij geen gehoor | C33: Hosted voip | D33: faciliteit | E33: Doorschakelen bij geen gehoor | F33: 100.00 | G33: 100.00 | H33: 100.00
B34: Hosted voipfaciliteitDoorschakelen selectief | C34: Hosted voip | D34: faciliteit | E34: Doorschakelen selectief | F34: 100.00 | G34: 100.00 | H34: 100.00
B35: Hosted voipfaciliteitService en Installatie (Extra) | C35: Hosted voip | D35: faciliteit | E35: Service en Installatie (Extra) | F35: 100.00 | G35: 100.00 | H35: 100.00
B36: =C36&D36&E36 -> Hosted voipfaciliteitKeuzemenu dag/nacht | C36: Hosted voip | D36: faciliteit | E36: Keuzemenu dag/nacht | F36: 100.00 | G36: 100.00 | H36: 100.00
B39: 2. KPN ZM verkeerstarieven
B41: ZM identifier | C41: Propositie | D41: Product | E41: Type | F41: start | G41: minuut
B42: =C42&D42&E42 -> Hosted voipNederland BasisBIBA | C42: Hosted voip | D42: Nederland Basis | E42: BIBA | F42: 0.1000 | G42: 0.1000
B43: Hosted voipNederland BasisBUBA | C43: Hosted voip | D43: Nederland Basis | E43: BUBA | F43: 0.1000 | G43: 0.1000
B44: Hosted voipNederland BasisVAMO | C44: Hosted voip | D44: Nederland Basis | E44: VAMO | F44: 0.1000 | G44: 0.1000
B45: Hosted voipNederland BasisIDD | C45: Hosted voip | D45: Nederland Basis | E45: IDD | F45: 0.1000 | G45: 0.1000
B46: Hosted voipNederland OnbeperktBIBA | C46: Hosted voip | D46: Nederland Onbeperkt | E46: BIBA | F46: 0.1000 | G46: 0.1000
B47: Hosted voipNederland OnbeperktBUBA | C47: Hosted voip | D47: Nederland Onbeperkt | E47: BUBA | F47: 0.1000 | G47: 0.1000
B48: Hosted voipNederland OnbeperktVAMO | C48: Hosted voip | D48: Nederland Onbeperkt | E48: VAMO | F48: 0.1000 | G48: 0.1000
B49: Hosted voipNederland OnbeperktIDD | C49: Hosted voip | D49: Nederland Onbeperkt | E49: IDD | F49: 0.1000 | G49: 0.1000
B50: SIPBasisBIBA | C50: SIP | D50: Basis | E50: BIBA | F50: 0.1000 | G50: 0.1000 | H50: SIP tarieven zijn gelijk aan de TZ telefonie tarieven
B51: SIPBasisBUBA | C51: SIP | D51: Basis | E51: BUBA | F51: 0.1000 | G51: 0.1000
B52: SIPBasisVAMO | C52: SIP | D52: Basis | E52: VAMO | F52: 0.1000 | G52: 0.1000
B53: SIPBasisIDD | C53: SIP | D53: Basis | E53: IDD | F53: 0.1000 | G53: 0.1000
B56: 3. Kortingsregelingen
F57: Kortingspercentage
B58: ZM identifier | C58: Variant | D58: contractsduur | F58: BIBA | G58: BUBA | H58: VAMO | I58: IDD
B59: =C59&D59 -> Hosted voip0 | C59: Hosted voip | D59: 0 | F59: 0% | G59: 0% | H59: 0% | I59: 0%
B60: =C60&D60 -> Hosted voip1 | C60: Hosted voip | D60: 1 | F60: 0% | G60: 0% | H60: 0% | I60: 0%
B61: =C61&D61 -> Hosted voip2 | C61: Hosted voip | D61: 2 | F61: 0% | G61: 0% | H61: 0% | I61: 0%
B62: Hosted voip3 | C62: Hosted voip | D62: 3 | F62: 0% | G62: 0% | H62: 0% | I62: 0%
B63: =C63&D63 -> SIP0 | C63: SIP | D63: 0 | F63: 0% | G63: 0% | H63: 0% | I63: 0%
B64: =C64&D64 -> SIP1 | C64: SIP | D64: 1 | F64: 0% | G64: 0% | H64: 0% | I64: 0%
B65: =C65&D65 -> SIP2 | C65: SIP | D65: 2 | F65: 0% | G65: 0% | H65: 0% | I65: 0%
B66: SIP3 | C66: SIP | D66: 3 | F66: 0% | G66: 0% | H66: 0% | I66: 0%
B68: 4. Telefoontoestellen en Randapparatuur
B70: ZM identifier | G70: Eenheid
B71: T19P | C71: Yealink SIP-T19P inclusief voedingsadapter | G71: 1000
B72: T41P | C72: Yealink SIP-T41P exclusief voedingsadapter | G72: 1000
B73: T46G | C73: Yealink SIP-T46G exclusief voedingsadapter | G73: 1000
B74: EXP40 | C74: Yealink EXP40 uitbreidingsmodule | G74: 1000
B75: W52P | C75: Yealink W52P basisstation met handset inclusief voedingsadapter | G75: 1000
B76: W52P Handset | C76: Yealink W52P losse handset inclusief voedingsadapter | G76: 1000
B77: Adapter T4x | C77: Yealink voedingsadapter SIP-T41P en SIP-T46G | G77: 1000
B78: Headset | C78: Yealink YHS32, headset IP phone | G78: 1000
B79: Repeater | C79: Yealink RT10 repeater | G79: 1000
B80: Switch 8-poorts | C80: TP-Link TL-SG2210P/8 poorts Gigabit | G80: 1000
B81: Switch 24-poorts | C81: TP-Link TL-SG2210P/24 poorts Gigabit | G81: 1000

Sheet Gereguleerde verkeeerskosten
A1: Verkeerstarieven geldig per 1 jan 2016
A2: in euro's per minuut
A4: xta | B4: Soort | C4: Bereik | D4: VVV
A5: FTA | B5: terminating | C5: regional | D5: 0.00302
A6: FTA | B6: carrier select | C6: regional | D6: 0.00808
A7: MTA | B7: all | C7: all | D7: 0.01861
A10: terminating access poort nationaal/regionaal | B10: 64.00 | C10: per 2Mb
A11: originating access poort national/regional | B11: 72.65 | C11: per 2Mb

Sheet EDC Minus
H1: 2011WK(13)16A_2011 | N1: Versie: 20130924
B2: ND5 kostenparameters vaste netwerk KPN (ZM deel) | F2: 2013/2014 | G2: Versie: | H2: 2011WK(13)16A_2012
H3: 2011WK(13)16B_2013
H4: 2011WK(13)16B_2015
D7: WBA KOPER
D9: WBA CM | E9: Type access | F9: Netvlakken
D10: ADSL op MDF (nrc) locatie (ATM) | E10: shared/non-shared | F10: passief-regionaal | G10: EDC minus 2012-2014 | H10: € 1.00 | I10: per mnd
D11: ADSL op MDF (nrc) locatie (ATM) | F11: regionaal-nationaal | G11: EDC minus 2012-2014 | H11: € 1.00 | I11: per mnd
D12: Tweede WBA CM ATM PVC 1:1 | F12: passief-regionaal | G12: EDC minus 2012-2014 | H12: € 1.00 | I12: per Mbps per mnd
D13: Tweede WBA CM ATM PVC 1:1 | F13: regionaal-nationaal | G13: EDC minus 2012-2014 | H13: € 1.00 | I13: per Mbps per mnd
D14: xDSL op MDF (nrc) locatie (ethernet) | E14: shared/non-shared | F14: passief-nationaal | G14: EDC minus 2012-2014 | H14: € 1.00 | I14: per mnd
D15: VDSL op MDF (nrc) locatie (ethernet) | E15: VDSL bonding | F15: passief-nationaal | G15: EDC minus 2012-2014 | H15: € 1.00 | I15: per mnd
D16: VDSL op SDF locatie (ethernet) | E16: non-shared | F16: passief-nationaal | G16: LRIC | H16: € 1.00 | I16: per mnd
D17: FttH op Fiber locatie (ethernet) | E17: access | G17: LRIC | H17: € 1.00 | I17: per mnd
D18: FttH op Fiber locatie /SDF op VDSL locatie | E18: transport | F18: passief-nationaal | G18: LRIC | H18: € 1.00 | I18: per Mbps per mnd
D20: WBA ZM ETN | E20: Type access | F20: Netvlakken
D21: ADSL op MDF (nrc) locatie (ATM, entry) | E21: shared/non-shared | F21: passief-regionaal | G21: EDC minus | H21: zie ontmiddeling | I21: per mnd
D22: ADSL op MDF (nrc) locatie (ATM, entry) | F22: regionaal-nationaal | G22: EDC minus | H22: zie ontmiddeling | I22: per mnd
D23: ADSL op MDF (nrc) locatie (ATM, anders dan entry) | E23: shared/non-shared | F23: passief-regionaal | G23: EDC minus | H23: zie ontmiddeling | I23: per mnd
D24: ADSL op MDF (nrc) locatie (ATM, anders dan entry) | F24: regionaal-nationaal | G24: EDC minus | H24: zie ontmiddeling | I24: per mnd
D25: xDSL op MDF (nrc) locatie (ethernet) | E25: shared/non-shared | F25: passief-metro | G25: EDC minus | H25: € 1.00 | I25: per mnd
D26: VDSL op SDF locatie (ethernet) | E26: non-shared | F26: passief-metro | G26: LRIC | H26: € 1.00 | I26: per mnd
D27: xDSL transport (ethernet) | F27: metro-nationaal | G27: EDC minus | H27: € 1.00 | I27: per mnd
D28: FttH op Fiber locatie (ethernet) | E28: access | G28: LRIC | H28: € 1.00 | I28: per mnd
D29: FttH op Fiber locatie /SDF op VDSL locatie | E29: transport | F29: passief-nationaal | G29: LRIC | H29: € 1.00 | I29: per Mbps per mnd
D31: WBA ZM ATM: kostenontmiddeling naar tarieven
D33: WBA ZM ATM | H33: VBR-rt | I33: UBR 1:1 | J33: 1:4 | K33: 1:10 | L33: 1:20 | M33: Entry
D34: 128/128 | F34: passief-regionaal | G34: EDC minus
D35: 200/200 | F35: passief-regionaal | G35: EDC minus
D36: 224/224 | F36: passief-regionaal | G36: EDC minus
D37: 256/256 | F37: passief-regionaal | G37: EDC minus
D38: 352/352 | F38: passief-regionaal | G38: EDC minus
D39: 448/448 | F39: passief-regionaal | G39: EDC minus
D40: 512/256 | F40: passief-regionaal | G40: EDC minus
D41: 512/512 | F41: passief-regionaal | G41: EDC minus
D42: 1024/256 | F42: passief-regionaal | G42: EDC minus
D43: 1024/512 | F43: passief-regionaal | G43: EDC minus
D44: 1024/1024 | F44: passief-regionaal | G44: EDC minus
D45: 1280/1280 | F45: passief-regionaal | G45: EDC minus
D46: 1536/1536 | F46: passief-regionaal | G46: EDC minus
D47: 2048/512 | F47: passief-regionaal | G47: EDC minus
D48: 2048/2048 | F48: passief-regionaal | G48: EDC minus
D49: 2304/2304 | F49: passief-regionaal | G49: EDC minus
D50: 4096/1024 | F50: passief-regionaal | G50: EDC minus
D51: 8192/1024 | F51: passief-regionaal | G51: EDC minus
D52: 12288/1024 | F52: passief-regionaal | G52: EDC minus
D54: 128/128 | F54: regionaal-nationaal | G54: EDC minus | H54: € 1.00 | I54: € 1.00 | J54: € 1.00 | K54: € 1.00 | L54: € 1.00
D55: 200/200 | F55: regionaal-nationaal | G55: EDC minus | H55: € 1.00
D56: 224/224 | F56: regionaal-nationaal | G56: EDC minus | H56: € 1.00
D57: 256/256 | F57: regionaal-nationaal | G57: EDC minus | H57: € 1.00 | I57: € 1.00 | J57: € 1.00 | K57: € 1.00 | L57: € 1.00 | M57: € 1.00
D58: 352/352 | F58: regionaal-nationaal | G58: EDC minus | H58: € 1.00
D59: 448/448 | F59: regionaal-nationaal | G59: EDC minus | H59: € 1.00
D60: 512/256 | F60: regionaal-nationaal | G60: EDC minus | H60: € 1.00 | I60: € 1.00 | J60: € 1.00 | K60: € 1.00 | L60: € 1.00
D61: 512/512 | F61: regionaal-nationaal | G61: EDC minus | H61: € 1.00 | I61: € 1.00 | J61: € 1.00 | K61: € 1.00 | L61: € 1.00 | M61: € 1.00
D62: 1024/256 | F62: regionaal-nationaal | G62: EDC minus | H62: € 1.00 | I62: € 1.00 | J62: € 1.00 | K62: € 1.00 | L62: € 1.00 | M62: 0
D63: 1024/512 | F63: regionaal-nationaal | G63: EDC minus | H63: € 1.00 | I63: € 1.00 | J63: € 1.00 | K63: € 1.00 | L63: € 1.00 | M63: € 1.00
D64: 1024/1024 | F64: regionaal-nationaal | G64: EDC minus | H64: € 1.00 | I64: € 1.00 | J64: € 1.00 | K64: € 1.00 | L64: € 1.00
D65: 1280/1280 | F65: regionaal-nationaal | G65: EDC minus | H65: € 1.00
D66: 1536/1536 | F66: regionaal-nationaal | G66: EDC minus | H66: € 1.00 | I66: € 1.00 | J66: € 1.00 | K66: € 1.00 | L66: € 1.00
D67: 2048/512 | F67: regionaal-nationaal | G67: EDC minus | H67: € 1.00 | I67: € 1.00 | J67: € 1.00 | K67: € 1.00 | L67: € 1.00 | M67: € 1.00
D68: 2048/2048 | F68: regionaal-nationaal | G68: EDC minus | H68: € 1.00 | I68: € 1.00 | J68: € 1.00 | K68: € 1.00 | L68: € 1.00
D69: 2304/2304 | F69: regionaal-nationaal | G69: EDC minus | H69: € 1.00 | I69: € 1.00 | J69: € 1.00 | K69: € 1.00 | L69: € 1.00
D70: 4096/1024 | F70: regionaal-nationaal | G70: EDC minus | J70: € 1.00 | K70: € 1.00 | L70: € 1.00 | M70: € 1.00
D71: 8192/1024 | F71: regionaal-nationaal | G71: EDC minus | J71: € 1.00 | K71: € 1.00 | L71: € 1.00 | M71: € 1.00
D72: 12288/1024 | F72: regionaal-nationaal | G72: EDC minus | J72: € 1.00 | K72: € 1.00 | L72: € 1.00 | M72: € 1.00
D74: 128/128 | F74: regionaal-supranationaal | G74: EDC minus | H74: € 1.00 | I74: € 1.00 | J74: € 1.00 | K74: € 1.00 | L74: € 1.00
D75: 200/200 | F75: regionaal-supranationaal | G75: EDC minus | H75: € 1.00
D76: 224/224 | F76: regionaal-supranationaal | G76: EDC minus | H76: € 1.00
D77: 256/256 | F77: regionaal-supranationaal | G77: EDC minus | H77: € 1.00 | I77: € 1.00 | J77: € 1.00 | K77: € 1.00 | L77: € 1.00 | M77: € 1.00
D78: 352/352 | F78: regionaal-supranationaal | G78: EDC minus | H78: € 1.00
D79: 448/448 | F79: regionaal-supranationaal | G79: EDC minus | H79: € 1.00
D80: 512/256 | F80: regionaal-supranationaal | G80: EDC minus | H80: € 1.00 | I80: € 1.00 | J80: € 1.00 | K80: € 1.00 | L80: € 1.00
D81: 512/512 | F81: regionaal-supranationaal | G81: EDC minus | H81: € 1.00 | I81: € 1.00 | J81: € 1.00 | K81: € 1.00 | L81: € 1.00 | M81: € 1.00
D82: 1024/256 | F82: regionaal-supranationaal | G82: EDC minus | H82: € 1.00 | I82: € 1.00 | J82: € 1.00 | K82: € 1.00 | L82: € 1.00 | M82: 0
D83: 1024/512 | F83: regionaal-supranationaal | G83: EDC minus | H83: € 1.00 | I83: € 1.00 | J83: € 1.00 | K83: € 1.00 | L83: € 1.00 | M83: € 1.00
D84: 1024/1024 | F84: regionaal-supranationaal | G84: EDC minus | H84: € 1.00 | I84: € 1.00 | J84: € 1.00 | K84: € 1.00 | L84: € 1.00
D85: 1280/1280 | F85: regionaal-supranationaal | G85: EDC minus | H85: € 1.00
D86: 1536/1536 | F86: regionaal-supranationaal | G86: EDC minus | H86: € 1.00 | I86: € 1.00 | J86: € 1.00 | K86: € 1.00 | L86: € 1.00
D87: 2048/512 | F87: regionaal-supranationaal | G87: EDC minus | H87: € 1.00 | I87: € 1.00 | J87: € 1.00 | K87: € 1.00 | L87: € 1.00 | M87: € 1.00
D88: 2048/2048 | F88: regionaal-supranationaal | G88: EDC minus | H88: € 1.00 | I88: € 1.00 | J88: € 1.00 | K88: € 1.00 | L88: € 1.00
D89: 2304/2304 | F89: regionaal-supranationaal | G89: EDC minus | H89: € 1.00 | I89: € 1.00 | J89: € 1.00 | K89: € 1.00 | L89: € 1.00
D90: 4096/1024 | F90: regionaal-supranationaal | G90: EDC minus | J90: € 1.00 | K90: € 1.00 | L90: € 1.00 | M90: € 1.00
D91: 8192/1024 | F91: regionaal-supranationaal | G91: EDC minus | J91: € 1.00 | K91: € 1.00 | L91: € 1.00 | M91: € 1.00
D92: 12288/1024 | F92: regionaal-supranationaal | G92: EDC minus | J92: € 1.00 | K92: € 1.00 | L92: € 1.00 | M92: € 1.00
D95: BROADCAST KOPER EN GLAS
D97: Dienst over koper
D98: Broadcast | E98: Transport | G98: EDC minus 2012-2014 | H98: € 1.00 | I98: per mnd
D99: Broadcast (exclusief unicast functionaliteit) | E99: Platform | G99: EDC minus 2012-2014 | H99: € 1.00 | I99: per mnd
D101: Dienst over FttH glas
D102: Broadcast | E102: Transport | G102: LRIC | H102: € 1.00 | I102: per mnd
D103: Broadcast | E103: Platform | G103: LRIC | H103: € 1.00 | I103: per mnd
D106: ILL <= 2 MB KOPER
D108: 64 KBIT/S | E108: telco-sited | F108: passief-regionaal | G108: EDC minus | I108: per mnd
D109: 128 KBIT/S | E109: telco-sited | F109: passief-regionaal | G109: EDC minus | I109: per mnd
D110: 192 KBIT/S | E110: telco-sited | F110: passief-regionaal | G110: EDC minus | I110: per mnd
D111: 256 KBIT/S | E111: telco-sited | F111: passief-regionaal | G111: EDC minus | I111: per mnd
D112: 384 KBIT/S | E112: telco-sited | F112: passief-regionaal | G112: EDC minus | I112: per mnd
D113: 512 KBIT/S | E113: telco-sited | F113: passief-regionaal | G113: EDC minus | I113: per mnd
D114: 1984 KBIT/S | E114: telco-sited | F114: passief-regionaal | G114: EDC minus | I114: per mnd
D115: 2048 KBIT/S | E115: telco-sited | F115: passief-regionaal | G115: EDC minus | I115: per mnd
D116: NWAD/NMUX | E116: telco-sited | F116: passief-regionaal | G116: EDC minus | I116: per mnd
D117: 2048 KBIT/S | E117: telco-sited | F117: passief-lokaal | G117: EDC minus | I117: per mnd
D118: 64 KBIT/S | E118: collo | F118: passief-regionaal | G118: EDC minus | I118: per mnd
D119: 128 KBIT/S | E119: collo | F119: passief-regionaal | G119: EDC minus | I119: per mnd
D120: 192 KBIT/S | E120: collo | F120: passief-regionaal | G120: EDC minus | I120: per mnd
D121: 256 KBIT/S | E121: collo | F121: passief-regionaal | G121: EDC minus | I121: per mnd
D122: 384 KBIT/S | E122: collo | F122: passief-regionaal | G122: EDC minus | I122: per mnd
D123: 512 KBIT/S | E123: collo | F123: passief-regionaal | G123: EDC minus | I123: per mnd
D124: 1984 KBIT/S | E124: collo | F124: passief-regionaal | G124: EDC minus | I124: per mnd
D125: 2048 KBIT/S | E125: collo | F125: passief-regionaal | G125: EDC minus | I125: per mnd
D126: NWAD/NMUX | E126: collo | F126: passief-regionaal | G126: EDC minus | I126: per mnd
D127: 2048 KBIT/S | E127: collo | F127: passief-lokaal | G127: EDC minus | I127: per mnd
D128: 64 KBIT/S | F128: regionaal-nationaal | G128: EDC minus | H128: € 1.00 | I128: per mnd
D129: 128 KBIT/S | F129: regionaal-nationaal | G129: EDC minus | H129: € 1.00 | I129: per mnd
D130: 192 KBIT/S | F130: regionaal-nationaal | G130: EDC minus | H130: € 1.00 | I130: per mnd
D131: 256 KBIT/S | F131: regionaal-nationaal | G131: EDC minus | H131: € 1.00 | I131: per mnd
D132: 384 KBIT/S | F132: regionaal-nationaal | G132: EDC minus | H132: € 1.00 | I132: per mnd
D133: 512 KBIT/S | F133: regionaal-nationaal | G133: EDC minus | H133: € 1.00 | I133: per mnd
D134: 1984 KBIT/S | F134: regionaal-nationaal | G134: EDC minus | H134: € 1.00 | I134: per mnd
D135: 2048 KBIT/S | F135: regionaal-nationaal | G135: EDC minus | H135: € 1.00 | I135: per mnd
D139: WEAS KOPER
D141: Copper access | E141: 3 Mb | F141: passief-metro | G141: EDC minus | I141: per mnd
D142: Copper access | E142: 5 Mb | F142: passief-metro | G142: EDC minus | I142: per mnd
D143: Copper access | E143: 10 Mb | F143: passief-metro | G143: EDC minus | I143: per mnd
D144: Copper access | E144: 15 Mb | F144: passief-metro | G144: EDC minus | I144: per mnd
D145: Copper access | E145: 20 Mb | F145: passief-metro | G145: EDC minus | I145: per mnd
D146: Transport ethernet t.b.v. EoK aansluiting | F146: metro-regionaal | G146: EDC minus | H146: € 1.00 | I146: per mnd
D147: Transport ethernet t.b.v. EoK aansluiting | F147: regionaal-nationaal | G147: EDC minus | H147: € 1.00 | I147: per mnd
D149: TELEFONIE KLASSIEK (TDM) ten behoeve van WLR - MDF toetsing
D151: PSTN lijnkaart | G151: EDC minus 2012-2014 | H151: € 1.00 | I151: per mnd
D152: ISDN1 lijnkaart | G152: EDC minus 2012-2014 | H152: € 1.00 | I152: per mnd
D153: ISDN2 lijnkaart | G153: EDC minus 2012-2014 | H153: € 1.00 | I153: per mnd
D154: ISDN15 lijnkaart | G154: EDC minus 2012-2014 | H154: € 1.00 | I154: per mnd
D155: ISDN20 lijnkaart | G155: EDC minus 2012-2014 | H155: € 1.00 | I155: per mnd
D156: ISDN30 lijnkaart | G156: EDC minus 2012-2014 | H156: € 1.00 | I156: per mnd
D157: Cityphone lijnkaart | G157: EDC minus 2012-2014 | H157: € 1.00 | I157: per mnd
D158: HDSL modem (2 stuks) | G158: EDC minus 2012-2014 | H158: € 1.00 | I158: per mnd
D160: PSTN aanleg tlf deel | G160: EDC minus 2012-2014 | H160: € 1.00 | I160: eenmalig
D161: ISDN1 aanleg tlf deel | G161: EDC minus 2012-2014 | H161: € 1.00 | I161: eenmalig
D162: ISDN2 aanleg tlf deel | G162: EDC minus 2012-2014 | H162: € 1.00 | I162: eenmalig
D163: ISDN15 aanleg tlf deel | G163: EDC minus 2012-2014 | H163: € 1.00 | I163: eenmalig
D164: ISDN20 aanleg tlf deel | G164: EDC minus 2012-2014 | H164: € 1.00 | I164: eenmalig
D165: ISDN30 aanleg tlf deel | G165: EDC minus 2012-2014 | H165: € 1.00 | I165: eenmalig
D166: Cityphone aanleg tlf deel | G166: EDC minus 2012-2014 | H166: € 1.00 | I166: eenmalig
D168: PSTN ophef tlf deel | G168: EDC minus 2012-2014 | H168: € 1.00 | I168: eenmalig
D169: ISDN1 ophef tlf deel | G169: EDC minus 2012-2014 | H169: € 1.00 | I169: eenmalig
D170: ISDN2 ophef tlf deel | G170: EDC minus 2012-2014 | H170: € 1.00 | I170: eenmalig
D171: ISDN15 ophef tlf deel | G171: EDC minus 2012-2014 | H171: € 1.00 | I171: eenmalig
D172: ISDN20 ophef tlf deel | G172: EDC minus 2012-2014 | H172: € 1.00 | I172: eenmalig
D173: ISDN30 ophef tlf deel | G173: EDC minus 2012-2014 | H173: € 1.00 | I173: eenmalig
D174: Cityphone ophef tlf deel | G174: EDC minus 2012-2014 | H174: € 1.00 | I174: eenmalig
D176: PSTN overstap | G176: EDC minus 2012-2014 | H176: € 1.00 | I176: eenmalig
D177: ISDN1 overstap | G177: EDC minus 2012-2014 | H177: € 1.00 | I177: eenmalig
D178: ISDN2 overstap | G178: EDC minus 2012-2014 | H178: € 1.00 | I178: eenmalig
D179: ISDN15 overstap | G179: EDC minus 2012-2014 | H179: € 1.00 | I179: eenmalig
D180: ISDN20 overstap | G180: EDC minus 2012-2014 | H180: € 1.00 | I180: eenmalig
D181: ISDN30 overstap | G181: EDC minus 2012-2014 | H181: € 1.00 | I181: eenmalig
D182: Cityphone overstap | G182: EDC minus 2012-2014 | H182: € 1.00 | I182: eenmalig
D184: DIENSTPLATFORMEN
D186: Internet platform consumenten | G186: EDC minus 2012-2014 | H186: € 1.00 | I186: per mnd
D187: VOIP platform consumenten | G187: EDC minus 2012-2014 | H187: € 1.00 | I187: per mnd
D189: Internet platform consumenten | G189: LRIC | H189: € 1.00 | I189: per mnd
D190: VOIP platform consumenten | G190: LRIC | H190: € 1.00 | I190: per mnd
D192: SV verbindingen | G192: EDC minus | H192: € 1.00 | I192: per mnd
D193: Digiaccess platform | G193: EDC minus | H193: € 1.00 | I193: per mnd
D195: TELEFONIE KLASSIEK ten behoeve van RET_WHS toetsen
D197: Transport regionaal-nationaal | G197: EDC minus 2012-2014 | H197: € 0.010000 | I197: per minuut
D198: CPS lokaal | G198: EDC minus 2012-2014 | H198: € 0.010000 | I198: per minuut
D199: FTA lokaal | G199: EDC minus 2012-2014 | H199: € 0.010000 | I199: per minuut
D200: Voice Carrier system | G200: EDC minus 2012-2014 | H200: € 0.010000 | I200: per minuut
D201: 0800-0900 platform | G201: EDC minus 2012-2014 | H201: € 0.010000 | I201: per minuut
D202: Dataverkeer, Mobiel radio deel | G202: LRIC | H202: € 0.0100 | I202: per Mb
D203: SMS verkeer, Mobiel radio deel | G203: LRIC | H203: € 0.0100 | I203: per SMS
D204: Telefonie offnet, Mobiel radio deel | G204: LRIC | H204: € 0.0100 | I204: per minuut
D205: Dataverkeer, Mobiel vast deel | G205: EDC minus 2012-2014 | H205: € 0.010000 | I205: per Mb
D206: SMS verkeer, Mobiel vast deel | G206: EDC minus 2012-2014 | H206: € 0.010000 | I206: per SMS
D207: Telefonie offnet, Mobiel vast deel | G207: EDC minus 2012-2014 | H207: € 0.010000 | I207: per minuut
D208: IDD, internationale deel (excl externe inkoop) | G208: LRIC | H208: $ 0.0100 | I208: USD per minuut
D211: CPA (= actieve SDH apparatuur tbv CPA)
D213: CPA 32 | G213: EDC minus | H213: € 1.00 | I213: per maand per aansluiting
D214: CPA 155 | G214: EDC minus | H214: € 1.00 | I214: per maand per aansluiting
D215: CPA 622 | G215: EDC minus | H215: € 1.00 | I215: per maand per aansluiting
D216: CPA 2500 | G216: EDC minus | H216: € 1.00 | I216: per maand per aansluiting
D238: WEAS GLAS
D241: FTTO access | E241: A/B/C | F241: passief-metro | G241: EDC minus | I241: per mnd
D242: FTTO access | E242: A/B/C | F242: metro-regionaal | G242: EDC minus | H242: € 1.00 | I242: per mnd
D243: FTTO access | E243: A/B/C | F243: regionaal-nationaal | G243: EDC minus | H243: € 1.00 | I243: per mnd
D244: FTTO access | E244: O | F244: passief-metro | G244: EDC minus | I244: per mnd
D245: FTTO access | E245: O | F245: metro-regionaal | G245: EDC minus | H245: € 1.00 | I245: per mnd
D246: FTTO access | E246: O | F246: regionaal-nationaal | G246: EDC minus | H246: € 1.00 | I246: per mnd
D249: DWDM GLAS
D251: FTTO access tot en met 2,5 G standaard | E251: A/B/C | F251: passief-metro | G251: EDC minus | I251: per mnd
D252: FTTO access tot en met 2,5 G standaard | E252: A/B/C | F252: metro-regionaal | G252: EDC minus | H252: € 1.00 | I252: per mnd
D253: FTTO access tot en met 2,5 G standaard | E253: A/B/C | F253: regionaal-nationaal | G253: EDC minus | H253: € 1.00 | I253: per mnd
D254: FTTO access 10 G standaard | E254: A/B/C | F254: passief-metro | G254: EDC minus | I254: per mnd
D255: FTTO access 10 G standaard | E255: A/B/C | F255: metro-regionaal | G255: EDC minus | H255: € 1.00 | I255: per mnd
D256: FTTO access 10 G standaard | E256: A/B/C | F256: regionaal-nationaal | G256: EDC minus | H256: € 1.00 | I256: per mnd
D258: SDH GLAS
D261: SDH transport | E261: 34 Mbps | F261: passief-metro | G261: EDC minus | I261: per mnd
D262: SDH transport | E262: 34 Mbps | F262: metro-regionaal | G262: EDC minus | I262: per mnd
... 23 more rows

Sheet mapping
B2: 1. Aansluitingen
B4: ZM identifier | C4: Propositie | D4: Type Abonnement | E4: Product | F4: WO identifier
B5: =C5&D5&E5 -> Hosted voipseatNederland Basis | C5: Hosted voip | D5: seat | E5: Nederland Basis | F5: nvt
B6: =C6&D6&E6 -> Hosted voipseatNederland Onbeperkt | C6: Hosted voip | D6: seat | E6: Nederland Onbeperkt | F6: nvt
B8: SIPkanaalBasis | C8: SIP | D8: kanaal | E8: Basis | F8: nvt
B9: SIPnummerfaciliteitextra nummer | C9: SIP | D9: nummerfaciliteit | E9: extra nummer | F9: nvt
B10: SIPnummerfaciliteit10-nummerblok | C10: SIP | D10: nummerfaciliteit | E10: 10-nummerblok | F10: nvt
B11: SIPnummerfaciliteit100-nummerblok | C11: SIP | D11: nummerfaciliteit | E11: 100-nummerblok | F11: nvt
B13: Hosted voipfaciliteitHosted telefonie Extra 12,50 | C13: Hosted voip | D13: faciliteit | E13: Hosted telefonie Extra 12,50 | F13: nvt
B14: Hosted voipfaciliteitReceptionist | C14: Hosted voip | D14: faciliteit | E14: Receptionist | F14: nvt
B15: Hosted voipfaciliteitWachtrijmedewerker | C15: Hosted voip | D15: faciliteit | E15: Wachtrijmedewerker | F15: nvt
B16: Hosted voipfaciliteitSoftware integratie | C16: Hosted voip | D16: faciliteit | E16: Software integratie | F16: nvt
B17: Hosted voipfaciliteitFax naar E-mail (Extra) | C17: Hosted voip | D17: faciliteit | E17: Fax naar E-mail (Extra) | F17: nvt
B18: Hosted voipfaciliteitDoorschakelen nacht | C18: Hosted voip | D18: faciliteit | E18: Doorschakelen nacht | F18: nvt
B19: Hosted voipfaciliteitDoorschakelen bij bezet | C19: Hosted voip | D19: faciliteit | E19: Doorschakelen bij bezet | F19: nvt
B20: Hosted voipfaciliteitDoorschakelen direct | C20: Hosted voip | D20: faciliteit | E20: Doorschakelen direct | F20: nvt
B21: Hosted voipfaciliteitDoorschakelen bij geen gehoor | C21: Hosted voip | D21: faciliteit | E21: Doorschakelen bij geen gehoor | F21: nvt
B22: Hosted voipfaciliteitDoorschakelen selectief | C22: Hosted voip | D22: faciliteit | E22: Doorschakelen selectief | F22: nvt
B23: =C23&D23&E23 -> Hosted voipfaciliteitInVerbinding | C23: Hosted voip | D23: faciliteit | E23: InVerbinding | F23: nvt
B24: Hosted voipfaciliteitKeuzemenu dag/nacht | C24: Hosted voip | D24: faciliteit | E24: Keuzemenu dag/nacht | F24: nvt
B25: Hosted voipfaciliteitExtra telefoonnummer | C25: Hosted voip | D25: faciliteit | E25: Extra telefoonnummer | F25: nvt
B26: Hosted voipfaciliteit10-nummerblok | C26: Hosted voip | D26: faciliteit | E26: 10-nummerblok | F26: nvt
B27: Hosted voipfaciliteit100-nummerblok | C27: Hosted voip | D27: faciliteit | E27: 100-nummerblok | F27: nvt
B28: Hosted voipfaciliteitService en Installatie | C28: Hosted voip | D28: faciliteit | E28: Service en Installatie | F28: nvt
B29: =C29&D29&E29 -> Hosted voipfaciliteitService en Installatie (Extra) | C29: Hosted voip | D29: faciliteit | E29: Service en Installatie (Extra) | F29: nvt
B30: Hosted voipfaciliteit5 Extra belgroepen | C30: Hosted voip | D30: faciliteit | E30: 5 Extra belgroepen | F30: nvt
B32: 2. Platform
B34: ZM identifier | C34: Propositie | D34: Type Abonnement | F34: Platform
B35: =C35&D35&E35 -> Hosted voipseat | C35: Hosted voip | D35: seat | F35: Licentie 1 kosten
B36: =C36&D36&E36 -> SIPkanaal | C36: SIP | D36: kanaal | F36: licentie 2 kosten
B37: =C37&D37&E37 -> Hosted voipfaciliteit | C37: Hosted voip | D37: faciliteit | F37: bijkomende kosten
B38: =C38&D38&E38 -> SIPnummerfaciliteit | C38: SIP | D38: nummerfaciliteit | F38: SIP nummer
B40: ZM identifier | C40: Propositie | D40: Product | E40: Dimensie | F40: Aantal platform
B41: =C41&D41&E41 -> Hosted voipNederland Basisaantal | C41: Hosted voip | D41: Nederland Basis | E41: aantal | F41: 1
B42: Hosted voipNederland Onbeperktaantal | C42: Hosted voip | D42: Nederland Onbeperkt | E42: aantal | F42: 1
B44: =C44&D44&E44 -> SIPBasisaantal | C44: SIP | D44: Basis | E44: aantal | F44: 1
B45: SIPextra nummeraantal | C45: SIP | D45: extra nummer | E45: aantal | F45: 1 | G45: is aantal SIP nummers
B46: SIP10-nummerblokaantal | C46: SIP | D46: 10-nummerblok | E46: aantal | F46: 10 | G46: is aantal SIP nummers
B47: SIP100-nummerblokaantal | C47: SIP | D47: 100-nummerblok | E47: aantal | F47: 100 | G47: is aantal SIP nummers
B48: Hosted voipHosted telefonie Extra 12,50aantal | C48: Hosted voip | D48: Hosted telefonie Extra 12,50 | E48: aantal | F48: 1
B49: Hosted voipReceptionistaantal | C49: Hosted voip | D49: Receptionist | E49: aantal | F49: 1
B50: Hosted voipWachtrijmedewerkeraantal | C50: Hosted voip | D50: Wachtrijmedewerker | E50: aantal | F50: 1
B51: Hosted voipSoftware integratieaantal | C51: Hosted voip | D51: Software integratie | E51: aantal | F51: 1
B52: Hosted voip5 Extra belgroepenaantal | C52: Hosted voip | D52: 5 Extra belgroepen | E52: aantal | F52: 1
B53: Hosted voipFax naar E-mail (Extra)aantal | C53: Hosted voip | D53: Fax naar E-mail (Extra) | E53: aantal | F53: 1
B54: Hosted voipDoorschakelen nachtaantal | C54: Hosted voip | D54: Doorschakelen nacht | E54: aantal | F54: 1
B55: Hosted voipDoorschakelen bij bezetaantal | C55: Hosted voip | D55: Doorschakelen bij bezet | E55: aantal | F55: 1
B56: Hosted voipDoorschakelen directaantal | C56: Hosted voip | D56: Doorschakelen direct | E56: aantal | F56: 1
B57: Hosted voipDoorschakelen bij geen gehooraantal | C57: Hosted voip | D57: Doorschakelen bij geen gehoor | E57: aantal | F57: 1
B58: Hosted voipDoorschakelen selectiefaantal | C58: Hosted voip | D58: Doorschakelen selectief | E58: aantal | F58: 1
B59: Hosted voipInVerbindingaantal | C59: Hosted voip | D59: InVerbinding | E59: aantal | F59: 1
B60: Hosted voipKeuzemenu dag/nachtaantal | C60: Hosted voip | D60: Keuzemenu dag/nacht | E60: aantal | F60: 1
B61: Hosted voipExtra telefoonnummeraantal | C61: Hosted voip | D61: Extra telefoonnummer | E61: aantal | F61: 1
B62: Hosted voipService en Installatieaantal | C62: Hosted voip | D62: Service en Installatie | E62: aantal | F62: 1
B63: Hosted voipService en Installatie (Extra)aantal | C63: Hosted voip | D63: Service en Installatie (Extra) | E63: aantal | F63: 1
B64: Hosted voip10-nummerblokaantal | C64: Hosted voip | D64: 10-nummerblok | E64: aantal | F64: 1
B65: Hosted voip100-nummerblokaantal | C65: Hosted voip | D65: 100-nummerblok | E65: aantal | F65: 1

Sheet Verkeersprofielen
A1: Gemiddeld profiel
A2: Aanbieding | B2: BIBA_calls | C2: BIBA_minuten | D2: BUBA_calls | E2: BUBA_minuten | F2: VAMO_calls | G2: VAMO_minuten | H2: IDD_calls | I2: IDD_minuten
A3: Hosted voipNederland Basis | B3: 1,000 | C3: 1,000 | D3: 1,000 | E3: 1,000 | F3: 1,000 | G3: 1,000 | H3: 1,000 | I3: 1,000
A4: Hosted voipNederland Onbeperkt | B4: 1,000 | C4: 1,000 | D4: 1,000 | E4: 1,000 | F4: 1,000 | G4: 1,000 | H4: 1,000 | I4: 1,000
A5: SIPBasis | B5: 1,000 | C5: 1,000 | D5: 1,000 | E5: 1,000 | F5: 1,000 | G5: 1,000 | H5: 1,000 | I5: 1,000

Sheet Parameters_VoIP
A1: Algemeen | B1: Waarde
A2: Retailopslag soho/zzp | B2: 1.0%
A3: Retailopslag Medium | B3: 1.0%
A4: Retailopslag le/corporate | B4: 1.0%
A6: Retailopslag VoIP | B6: =B2 -> 1.0%
A7: Retailopslag Breedband | B7: 3.0%
A9: NRK Medium | B9: 10.0%
A10: NRK MEDIUM door BPO | B10: 10.0%
A11: NRK LE/Corperate | B11: 10.0%
A13: NRK | B13: =B10 -> 10.0% | C13: % t.o.v. netto omzet | D13: is worst case samen met distributievergoeding
A15: AfschrijftermijnVVE | B15: 36
A17: Distributie vergoeding | B17: 0% | C17: % t.o.v. netto totale omzet
A20: access poort factor | B20: 1,000,000
A22: Gemiddeld IDD inkoop per minuut | B22: 0.1000
A24: gem datagebruik per voice kanaal (Mbps) | B24: 0.0500 | C24: tbv inkoop van aansluiting bij ethernet
A25: gem datagebruik per aansluiting (Mbps) tot 10 Mb | B25: 0.0500
A26: gem datagebruik per aansluiting (Mbps) van 10 tot 50 Mb | B26: 0.1000
A27: gem datagebruik per aansluiting (Mbps) 50 Mb of meer | B27: 0.1500
A28: 10 Gb Ethernet capaciteit uitgedrukt in Mb | B28: 10,000
A29: 1 Gb factor 1 MB | B29: 1,024
A34: Platform kosten
A35: Licentie 1 kosten | B35: 0.10
A36: Bijkomende kosten | B36: 0.10
A37: Licentie 2 kosten | B37: 0.10 | C37: tbv SIP
A38: Geen kosten | B38: 0
A39: SIP nummer | B39: 0.10 | C39: eerste 2 nummers het onderdeel van platformkosten
A40: SIP 10 nummers | B40: 1.00
A41: SIP 100 nummers | B41: =B39*100 -> 10.00
A52: Verdeling naar operator categorie
A53: Identifier | B53: Verkeerscategorie | C53: type | D53: Waarde
A54: BIBAnaarKPN | B54: BIBA | C54: naarKPN | D54: 50%
A55: BIBAnaarOLO | B55: BIBA | C55: naarOLO | D55: 50%
A56: BUBAnaarKPN | B56: BUBA | C56: naarKPN | D56: 50%
A57: BUBAnaarOLO | B57: BUBA | C57: naarOLO | D57: 50%
A58: VAMOnaarKPN | B58: VAMO | C58: naarKPN | D58: 50%
A59: VAMOnaarOLO | B59: VAMO | C59: naarOLO | D59: 50%
A61: TDM | C61: TDM | D61: 50%
A62: VOIP | C62: VOIP | D62: 50%

Sheet Hulpblad verkeer
A2: 1. Verkeerskosten per minuut
A4: WO identifier | B4: Categorie | C4: Terminating | D4: CPS | E4: Term+CPS | F4: Voice Carrier system | G4: terminating access poort | H4: originating access poort | I4: MTA | J4: ITA | K4: Inkoop totaal per minuut | L4: Inkoop totaal per gesprek
A5: =B5 -> BIBA | B5: BIBA | C5: ='Gereguleerde verkeeerskosten'!D5+'EDC Minus'!$H$197 -> 0.01302 | D5: 0.00000 | E5: =C5+D5 -> 0.01302 | F5: 0.0000 | G5: ='Gereguleerde verkeeerskosten'!$B$10/Parameters_VoIP!$B$20 -> 0.000064 | H5: 0.0000 | I5: 0.0000 | J5: 0.0000 | K5: =SUM(E5:J5) -> 0.01308 | L5: 0.0000
A6: =B6 -> BUBA | B6: BUBA | C6: =C5 -> 0.01302 | D6: 0.00000 | E6: =C6+D6 -> 0.01302 | F6: 0.0000 | G6: ='Gereguleerde verkeeerskosten'!$B$10/Parameters_VoIP!$B$20 -> 0.000064 | H6: 0.0000 | I6: 0.0000 | J6: 0.0000 | K6: =SUM(E6:J6) -> 0.01308 | L6: 0.0000
A7: VAMO | B7: VAMO | C7: 0.00000 | D7: 0.00000 | E7: 0.00000 | F7: ='EDC Minus'!$H$200 -> 0.010000 | G7: ='Gereguleerde verkeeerskosten'!$B$10/Parameters_VoIP!$B$20 -> 0.000064 | H7: 0.0000 | I7: ='Gereguleerde verkeeerskosten'!$D$7 -> 0.0186 | J7: 0.0000 | K7: =SUM(E7:J7) -> 0.02867 | L7: 0.0000
A8: IDD | B8: IDD | C8: =C7 -> 0.00000 | D8: 0.00000 | E8: 0.00000 | F8: 0.0000 | G8: ='Gereguleerde verkeeerskosten'!$B$10/Parameters_VoIP!$B$20 -> 0.000064 | H8: 0.0000 | I8: 0.0000 | J8: =Parameters_VoIP!$B$22 -> 0.1000 | K8: 0.10006 | L8: 0.0000
A11: obv ULL
A12: 2. Verkeerskosten per minuut
A13: WO identifier | B13: Categorie | C13: Terminating | D13: CPS | E13: Term+CPS | F13: Voice Carrier system | G13: terminating access poort | H13: originating access poort | I13: MTA | J13: ITA | K13: platformkosten | L13: Inkoop totaal per minuut | M13: Inkoop totaal per gesprek
A14: =B14&"-ULL" -> BIBA-ULL | B14: BIBA | C14: =SUMPRODUCT(D26:F26,G26:I26) -> 0.01302 | D14: 0.00000 | E14: =C14+D14 -> 0.01302 | F14: 0.0000 | G14: ='Gereguleerde verkeeerskosten'!$B$10/Parameters_VoIP!$B$20 -> 0.000064 | H14: 0.0000 | K14: ='EDC minus lijst ULL'!$B$39 -> 0.0100 | L14: =SUM(E14:K14) -> 0.02308 | M14: 0.0000
A15: =B15&"-ULL" -> BUBA-ULL | B15: BUBA | C15: =SUMPRODUCT(D27:F27,G27:I27) -> 0.01302 | D15: 0.00000 | E15: =C15+D15 -> 0.01302 | F15: 0.0000 | G15: ='Gereguleerde verkeeerskosten'!$B$10/Parameters_VoIP!$B$20 -> 0.000064 | H15: 0.0000 | K15: ='EDC minus lijst ULL'!$B$39 -> 0.0100 | L15: =SUM(E15:K15) -> 0.02308 | M15: 0.0000
A16: VAMO-ULL | B16: VAMO | C16: =SUMPRODUCT(D28:F28,G28:I28) -> 0.01861 | D16: 0.00000 | E16: 0.01861 | F16: ='EDC minus lijst ULL'!B29 -> 0.010000 | G16: ='Gereguleerde verkeeerskosten'!$B$10/Parameters_VoIP!$B$20 -> 0.000064 | H16: 0.0000 | K16: ='EDC minus lijst ULL'!$B$39 -> 0.0100 | L16: 0.03867 | M16: 0.0000
A17: IDD-ULL | B17: IDD | C17: 0.10000 | D17: 0.00000 | E17: 0.10000 | F17: 0.0000 | G17: ='Gereguleerde verkeeerskosten'!$B$10/Parameters_VoIP!$B$20 -> 0.000064 | H17: 0.0000 | K17: ='EDC minus lijst ULL'!$B$39 -> 0.0100 | L17: 0.11006 | M17: 0.0000
A21: Berekening verkeerskosten detail, uitgesplitst naar terminating KPN TDM (intern), VOIP, OLO
D22: Kosten | G22: Percentages
D23: Terminating | G23: Terminating
A24: WO identifier | B24: Categorie | C24: Type | D24: KPN | E24: VoIP | F24: OLO | G24: KPN | H24: KPN | I24: OLO
D25: TDM | E25: VoIP | G25: TDM | H25: VoIP
A26: =B26&C26 -> BIBAnational | B26: BIBA | C26: national | D26: ='Gereguleerde verkeeerskosten'!$D$5+'EDC minus lijst ULL'!$B$27 -> 0.01302 | E26: ='Gereguleerde verkeeerskosten'!$D$5+'EDC minus lijst ULL'!$B$27 -> 0.01302 | F26: ='Gereguleerde verkeeerskosten'!$D$5+'EDC minus lijst ULL'!$B$27 -> 0.01302 | G26: =INDEX(Parameters_VoIP!$D:$D,MATCH($B26&"naar"&G$24,Parameters_VoIP!$A:$A,0))*INDEX(Parameters_VoIP!$D:$D,MATCH(G$25,Parameters_VoIP!$A:$A,0)) -> 25% | H26: =INDEX(Parameters_VoIP!$D:$D,MATCH($B26&"naar"&H$24,Parameters_VoIP!$A:$A,0))*INDEX(Parameters_VoIP!$D:$D,MATCH(H$25,Parameters_VoIP!$A:$A,0)) -> 25% | I26: =INDEX(Parameters_VoIP!$D:$D,MATCH($B26&"naar"&I$24,Parameters_VoIP!$A:$A,0)) -> 50%
A27: =B27&C27 -> BUBAnational | B27: BUBA | C27: national | D27: ='Gereguleerde verkeeerskosten'!$D$5+'EDC minus lijst ULL'!$B$27 -> 0.01302 | E27: ='Gereguleerde verkeeerskosten'!$D$5+'EDC minus lijst ULL'!$B$27 -> 0.01302 | F27: ='Gereguleerde verkeeerskosten'!$D$5+'EDC minus lijst ULL'!$B$27 -> 0.01302 | G27: =INDEX(Parameters_VoIP!$D:$D,MATCH($B27&"naar"&G$24,Parameters_VoIP!$A:$A,0))*INDEX(Parameters_VoIP!$D:$D,MATCH(G$25,Parameters_VoIP!$A:$A,0)) -> 25% | H27: =INDEX(Parameters_VoIP!$D:$D,MATCH($B27&"naar"&H$24,Parameters_VoIP!$A:$A,0))*INDEX(Parameters_VoIP!$D:$D,MATCH(H$25,Parameters_VoIP!$A:$A,0)) -> 25% | I27: =INDEX(Parameters_VoIP!$D:$D,MATCH($B27&"naar"&I$24,Parameters_VoIP!$A:$A,0)) -> 50%
A28: VAMOnational | B28: VAMO | C28: national | D28: ='Gereguleerde verkeeerskosten'!$D$7 -> 0.01861 | F28: ='Gereguleerde verkeeerskosten'!$D$7 -> 0.01861 | G28: =INDEX(Parameters_VoIP!$D:$D,MATCH($B28&"naar"&G$24,Parameters_VoIP!$A:$A,0)) -> 50% | I28: =INDEX(Parameters_VoIP!$D:$D,MATCH($B28&"naar"&I$24,Parameters_VoIP!$A:$A,0)) -> 50%
A29: IDDnational | B29: IDD | C29: national | D29: =Parameters_VoIP!$B$22 -> 0.10000 | G29: 100%

Sheet Rekenblad Aansluiting
Y1: SQUEEZE TOETS | AD1: obv ULL | AL1: SQUEEZE TOETS
C2: dimensies retail | J2: dimensies inkoop | L2: RETAIL OMZET | P2: Netwerkkosten | T2: ZM KOSTEN | X2: Kosten totaal | AE2: ZM KOSTEN | AJ2: KOSTEN TOTAAL
A3: identifier rekenblad totaal | B3: Identifier transfersheet | C3: Type | D3: Propositie | E3: Type Abonnement | F3: Product | G3: VVE Type | H3: ZM identifier | J3: WO identifier | K3: platform identifier | L3: rijnummer_tarievensheet | M3: ZM_VVA | N3: ZM_VVE | O3: ZM Totaal (VVA netto + VVE netto (mnd)) | P3: rijnummer_parameterblad | Q3: platform / beheer kosten | R3: aantal | S3: totaal kosten | T3: RTO | U3: DV | W3: ZM Kosten totaal | X3: W&O en ZM kosten | Y3: Squeeze Marge (abs) | Z3: Squeeze Marge (%) | AA3: Squeeze ? | AB3: Wordt tariefcombinatie getoetst? | AC3: Combi | AD3: platform / beheer kosten | AE3: NRK | AF3: DV | AH3: ZM Kosten totaal | AJ3: W&O en ZM kosten | AL3: Squeeze Marge (abs) | AM3: Squeeze Marge (%) | AN3: Squeeze ?
A4: =H4&G4 -> Hosted voipseatNederland BasisVVE nieuwe aanleg | B4: =H4&G4 -> Hosted voipseatNederland BasisVVE nieuwe aanleg | C4: Telfort zakelijk voip | D4: Hosted voip | E4: seat | F4: Nederland Basis | G4: VVE nieuwe aanleg | H4: =D4&E4&F4 -> Hosted voipseatNederland Basis | J4: =INDEX(mapping!F:F,MATCH($H4,mapping!B:B,0),0) -> nvt | K4: =INDEX(mapping!F:F,MATCH($D4&$E4,mapping!B:B,0),0) -> Licentie 1 kosten | L4: =MATCH($H4,'Tarieven ZM voice'!B:B,0) -> 5 | M4: =INDEX('Tarieven ZM voice'!F:F,$L4,0) -> 100.00 | N4: =INDEX('Tarieven ZM voice'!G:H,$L4,MATCH($G4,'Tarieven ZM voice'!$G$4:$H$4,0)) -> 100.00 | O4: =M4+N4/Parameters_VoIP!$B$15 -> 102.78 | P4: =IF($K4="nvt","nvt",MATCH($K4,Parameters_VoIP!A:A,0)) -> 35 | Q4: =IF($P4="nvt",0,INDEX(Parameters_VoIP!B:B,P4,0)) -> 0.10 | R4: =INDEX(mapping!F:F,MATCH(D4&F4&$R$3,mapping!B:B,0),0) -> 1.00 | S4: =Q4*R4 -> 0.10 | T4: =S4*Parameters_VoIP!$B$6 -> 0.00 | U4: =O4*Parameters_VoIP!$B$17 -> 0.00 | W4: =SUM(T4:V4) -> 0.00 | X4: =S4+W4 -> 0.10 | Y4: =O4-X4 -> 102.68 | Z4: =Y4/O4 -> 100% | AA4: =Z4<0 -> FALSE | AB4: ja | AD4: 0 | AE4: =O4*Parameters_VoIP!$B$13 -> 10.28 | AF4: =Distributievergoedingen!$F$7*M4 -> 10.00 | AH4: =SUM(AE4:AG4) -> 20.28 | AJ4: =AD4+AH4 -> 20.28 | AL4: =O4-AJ4 -> 82.50 | AM4: =AL4/O4 -> 80.27% | AN4: =AM4<0 -> FALSE
A5: =H5&G5 -> Hosted voipseatNederland OnbeperktVVE nieuwe aanleg | B5: =H5&G5 -> Hosted voipseatNederland OnbeperktVVE nieuwe aanleg | C5: Telfort zakelijk voip | D5: Hosted voip | E5: seat | F5: Nederland Onbeperkt | G5: VVE nieuwe aanleg | H5: =D5&E5&F5 -> Hosted voipseatNederland Onbeperkt | J5: =INDEX(mapping!F:F,MATCH($H5,mapping!B:B,0),0) -> nvt | K5: =INDEX(mapping!F:F,MATCH($D5&$E5,mapping!B:B,0),0) -> Licentie 1 kosten | L5: =MATCH($H5,'Tarieven ZM voice'!B:B,0) -> 6 | M5: =INDEX('Tarieven ZM voice'!F:F,$L5,0) -> 100.00 | N5: =INDEX('Tarieven ZM voice'!G:H,$L5,MATCH($G5,'Tarieven ZM voice'!$G$4:$H$4,0)) -> 100.00 | O5: =M5+N5/Parameters_VoIP!$B$15 -> 102.78 | P5: =IF($K5="nvt","nvt",MATCH($K5,Parameters_VoIP!A:A,0)) -> 35 | Q5: =IF($P5="nvt",0,INDEX(Parameters_VoIP!B:B,P5,0)) -> 0.10 | R5: =INDEX(mapping!F:F,MATCH(D5&F5&$R$3,mapping!B:B,0),0) -> 1.00 | S5: =Q5*R5 -> 0.10 | T5: =S5*Parameters_VoIP!$B$6 -> 0.00 | U5: =O5*Parameters_VoIP!$B$17 -> 0.00 | W5: =SUM(T5:V5) -> 0.00 | X5: =S5+W5 -> 0.10 | Y5: =O5-X5 -> 102.68 | Z5: =Y5/O5 -> 100% | AA5: =Z5<0 -> FALSE | AB5: ja | AD5: 0 | AE5: =O5*Parameters_VoIP!$B$13 -> 10.28 | AF5: =Distributievergoedingen!$F$7*M5 -> 10.00 | AH5: =SUM(AE5:AG5) -> 20.28 | AJ5: =AD5+AH5 -> 20.28 | AL5: 82.50 | AM5: 80.27% | AN5: =AM5<0 -> FALSE
A6: =H6&G6 -> SIPkanaalBasisVVE nieuwe aanleg | B6: =H6&G6 -> SIPkanaalBasisVVE nieuwe aanleg | C6: Telfort zakelijk voip | D6: SIP | E6: kanaal | F6: Basis | G6: VVE nieuwe aanleg | H6: SIPkanaalBasis | J6: =INDEX(mapping!F:F,MATCH($H6,mapping!B:B,0),0) -> nvt | K6: =INDEX(mapping!F:F,MATCH($D6&$E6,mapping!B:B,0),0) -> licentie 2 kosten | L6: =MATCH($H6,'Tarieven ZM voice'!B:B,0) -> 8 | M6: =INDEX('Tarieven ZM voice'!F:F,$L6,0) -> 100.00 | N6: =INDEX('Tarieven ZM voice'!G:H,$L6,MATCH($G6,'Tarieven ZM voice'!$G$4:$H$4,0)) -> 100.00 | O6: =M6+N6/Parameters_VoIP!$B$15 -> 102.78 | P6: =IF($K6="nvt","nvt",MATCH($K6,Parameters_VoIP!A:A,0)) -> 37 | Q6: =IF($P6="nvt",0,INDEX(Parameters_VoIP!B:B,P6,0)) -> 0.10 | R6: =INDEX(mapping!F:F,MATCH(D6&F6&$R$3,mapping!B:B,0),0) -> 1.00 | S6: 0.10 | T6: =S6*Parameters_VoIP!$B$6 -> 0.00 | U6: =O6*Parameters_VoIP!$B$17 -> 0.00 | W6: 0.00 | X6: 0.10 | Y6: 102.68 | Z6: 100% | AA6: FALSE | AB6: ja | AD6: 0 | AE6: =O6*Parameters_VoIP!$B$13 -> 10.28 | AF6: =Distributievergoedingen!$F$7*M6 -> 10.00 | AH6: =SUM(AE6:AG6) -> 20.28 | AJ6: 20.28 | AL6: 82.50 | AM6: 80.27% | AN6: =AM6<0 -> FALSE
A7: SIPnummerfaciliteitextra nummerVVE nieuwe aanleg | B7: SIPnummerfaciliteitextra nummerVVE nieuwe aanleg | C7: Telfort zakelijk voip | D7: SIP | E7: nummerfaciliteit | F7: extra nummer | G7: VVE nieuwe aanleg | H7: =D7&E7&F7 -> SIPnummerfaciliteitextra nummer | J7: =INDEX(mapping!F:F,MATCH($H7,mapping!B:B,0),0) -> nvt | K7: =INDEX(mapping!F:F,MATCH($D7&$E7,mapping!B:B,0),0) -> SIP nummer | L7: =MATCH($H7,'Tarieven ZM voice'!B:B,0) -> 9 | M7: =INDEX('Tarieven ZM voice'!F:F,$L7,0) -> 100.00 | N7: =INDEX('Tarieven ZM voice'!G:H,$L7,MATCH($G7,'Tarieven ZM voice'!$G$4:$H$4,0)) -> 100.00 | O7: =M7+N7/Parameters_VoIP!$B$15 -> 102.78 | P7: =IF($K7="nvt","nvt",MATCH($K7,Parameters_VoIP!A:A,0)) -> 39 | Q7: =IF($P7="nvt",0,INDEX(Parameters_VoIP!B:B,P7,0)) -> 0.10 | R7: =INDEX(mapping!F:F,MATCH(D7&F7&$R$3,mapping!B:B,0),0) -> 1.00 | S7: 0.10 | T7: =S7*Parameters_VoIP!$B$6 -> 0.00 | U7: =O7*Parameters_VoIP!$B$17 -> 0.00 | W7: =SUM(T7:V7) -> 0.00 | X7: =S7+W7 -> 0.10 | Y7: =O7-X7 -> 102.68 | Z7: =Y7/O7 -> 100% | AA7: =Z7<0 -> FALSE | AB7: ja | AD7: 0 | AE7: =O7*Parameters_VoIP!$B$13 -> 10.28 | AF7: =Distributievergoedingen!$F$7*M7 -> 10.00 | AH7: 20.28 | AJ7: 20.28 | AL7: 82.50 | AM7: 80.27% | AN7: FALSE
A8: SIPnummerfaciliteit10-nummerblokVVE nieuwe aanleg | B8: SIPnummerfaciliteit10-nummerblokVVE nieuwe aanleg | C8: Telfort zakelijk voip | D8: SIP | E8: nummerfaciliteit | F8: 10-nummerblok | G8: VVE nieuwe aanleg | H8: SIPnummerfaciliteit10-nummerblok | J8: =INDEX(mapping!F:F,MATCH($H8,mapping!B:B,0),0) -> nvt | K8: =INDEX(mapping!F:F,MATCH($D8&$E8,mapping!B:B,0),0) -> SIP nummer | L8: =MATCH($H8,'Tarieven ZM voice'!B:B,0) -> 10 | M8: =INDEX('Tarieven ZM voice'!F:F,$L8,0) -> 100.00 | N8: =INDEX('Tarieven ZM voice'!G:H,$L8,MATCH($G8,'Tarieven ZM voice'!$G$4:$H$4,0)) -> 100.00 | O8: =M8+N8/Parameters_VoIP!$B$15 -> 102.78 | P8: =IF($K8="nvt","nvt",MATCH($K8,Parameters_VoIP!A:A,0)) -> 39 | Q8: =IF($P8="nvt",0,INDEX(Parameters_VoIP!B:B,P8,0)) -> 0.10 | R8: =INDEX(mapping!F:F,MATCH(D8&F8&$R$3,mapping!B:B,0),0) -> 10.00 | S8: 1.00 | T8: =S8*Parameters_VoIP!$B$6 -> 0.01 | U8: =O8*Parameters_VoIP!$B$17 -> 0.00 | W8: 0.01 | X8: 1.01 | Y8: 101.77 | Z8: 99% | AA8: FALSE | AB8: ja | AD8: 0 | AE8: =O8*Parameters_VoIP!$B$13 -> 10.28 | AF8: =Distributievergoedingen!$F$7*M8 -> 10.00 | AH8: 20.28 | AJ8: 20.28 | AL8: 82.50 | AM8: 80.27% | AN8: FALSE
A9: SIPnummerfaciliteit100-nummerblokVVE nieuwe aanleg | B9: SIPnummerfaciliteit100-nummerblokVVE nieuwe aanleg | C9: Telfort zakelijk voip | D9: SIP | E9: nummerfaciliteit | F9: 100-nummerblok | G9: VVE nieuwe aanleg | H9: SIPnummerfaciliteit100-nummerblok | J9: =INDEX(mapping!F:F,MATCH($H9,mapping!B:B,0),0) -> nvt | K9: =INDEX(mapping!F:F,MATCH($D9&$E9,mapping!B:B,0),0) -> SIP nummer | L9: =MATCH($H9,'Tarieven ZM voice'!B:B,0) -> 11 | M9: =INDEX('Tarieven ZM voice'!F:F,$L9,0) -> 100.00 | N9: =INDEX('Tarieven ZM voice'!G:H,$L9,MATCH($G9,'Tarieven ZM voice'!$G$4:$H$4,0)) -> 100.00 | O9: =M9+N9/Parameters_VoIP!$B$15 -> 102.78 | P9: =IF($K9="nvt","nvt",MATCH($K9,Parameters_VoIP!A:A,0)) -> 39 | Q9: =IF($P9="nvt",0,INDEX(Parameters_VoIP!B:B,P9,0)) -> 0.10 | R9: =INDEX(mapping!F:F,MATCH(D9&F9&$R$3,mapping!B:B,0),0) -> 100.00 | S9: 10.00 | T9: =S9*Parameters_VoIP!$B$6 -> 0.10 | U9: =O9*Parameters_VoIP!$B$17 -> 0.00 | W9: 0.10 | X9: 10.10 | Y9: 92.68 | Z9: 90% | AA9: FALSE | AB9: ja | AD9: 0 | AE9: =O9*Parameters_VoIP!$B$13 -> 10.28 | AF9: =Distributievergoedingen!$F$7*M9 -> 10.00 | AH9: 20.28 | AJ9: 20.28 | AL9: 82.50 | AM9: 80.27% | AN9: FALSE
A10: Hosted voipfaciliteitHosted telefonie Extra 12,50VVE nieuwe aanleg | B10: =H10&G10 -> Hosted voipfaciliteitHosted telefonie Extra 12,50VVE nieuwe aanleg | C10: Telfort zakelijk voip | D10: Hosted voip | E10: faciliteit | F10: Hosted telefonie Extra 12,50 | G10: VVE nieuwe aanleg | H10: =D10&E10&F10 -> Hosted voipfaciliteitHosted telefonie Extra 12,50 | J10: =INDEX(mapping!F:F,MATCH($H10,mapping!B:B,0),0) -> nvt | K10: =INDEX(mapping!F:F,MATCH($D10&$E10,mapping!B:B,0),0) -> bijkomende kosten | L10: =MATCH($H10,'Tarieven ZM voice'!B:B,0) -> 25 | M10: =INDEX('Tarieven ZM voice'!F:F,$L10,0) -> 100.00 | N10: =INDEX('Tarieven ZM voice'!G:H,$L10,MATCH($G10,'Tarieven ZM voice'!$G$4:$H$4,0)) -> 100.00 | O10: =M10+N10/Parameters_VoIP!$B$15 -> 102.78 | P10: =IF($K10="nvt","nvt",MATCH($K10,Parameters_VoIP!A:A,0)) -> 36 | Q10: =IF($P10="nvt",0,INDEX(Parameters_VoIP!B:B,P10,0)) -> 0.10 | R10: =INDEX(mapping!F:F,MATCH(D10&F10&$R$3,mapping!B:B,0),0) -> 1.00 | S10: 0.10 | T10: =S10*Parameters_VoIP!$B$6 -> 0.00 | U10: =O10*Parameters_VoIP!$B$17 -> 0.00 | W10: =SUM(T10:V10) -> 0.00 | X10: =S10+W10 -> 0.10 | Y10: =O10-X10 -> 102.68 | Z10: =Y10/O10 -> 100% | AA10: =Z10<0 -> FALSE | AB10: ja | AD10: 0 | AE10: =O10*Parameters_VoIP!$B$13 -> 10.28 | AF10: =Distributievergoedingen!$F$7*M10 -> 10.00 | AH10: 20.28 | AJ10: 20.28 | AL10: 82.50 | AM10: 80.27% | AN10: FALSE
A11: =H11&G11 -> Hosted voipfaciliteitExtra telefoonnummerVVE nieuwe aanleg | B11: =H11&G11 -> Hosted voipfaciliteitExtra telefoonnummerVVE nieuwe aanleg | C11: Telfort zakelijk voip | D11: Hosted voip | E11: faciliteit | F11: Extra telefoonnummer | G11: VVE nieuwe aanleg | H11: =D11&E11&F11 -> Hosted voipfaciliteitExtra telefoonnummer | J11: =INDEX(mapping!F:F,MATCH($H11,mapping!B:B,0),0) -> nvt | K11: =INDEX(mapping!F:F,MATCH($D11&$E11,mapping!B:B,0),0) -> bijkomende kosten | L11: =MATCH($H11,'Tarieven ZM voice'!B:B,0) -> 18 | M11: =INDEX('Tarieven ZM voice'!F:F,$L11,0) -> 100.00 | N11: =INDEX('Tarieven ZM voice'!G:H,$L11,MATCH($G11,'Tarieven ZM voice'!$G$4:$H$4,0)) -> 100.00 | O11: =M11+N11/Parameters_VoIP!$B$15 -> 102.78 | P11: =IF($K11="nvt","nvt",MATCH($K11,Parameters_VoIP!A:A,0)) -> 36 | Q11: =IF($P11="nvt",0,INDEX(Parameters_VoIP!B:B,P11,0)) -> 0.10 | R11: =INDEX(mapping!F:F,MATCH(D11&F11&$R$3,mapping!B:B,0),0) -> 1.00 | S11: =Q11*R11 -> 0.10 | T11: =S11*Parameters_VoIP!$B$6 -> 0.00 | U11: =O11*Parameters_VoIP!$B$17 -> 0.00 | W11: =SUM(T11:V11) -> 0.00 | X11: =S11+W11 -> 0.10 | Y11: =O11-X11 -> 102.68 | Z11: =Y11/O11 -> 100% | AA11: =Z11<0 -> FALSE | AB11: ja | AD11: 0 | AE11: =O11*Parameters_VoIP!$B$13 -> 10.28 | AF11: =Distributievergoedingen!$F$7*M11 -> 10.00 | AH11: 20.28 | AJ11: 20.28 | AL11: 82.50 | AM11: 80.27% | AN11: FALSE
A12: Hosted voipfaciliteit10-nummerblokVVE nieuwe aanleg | B12: Hosted voipfaciliteit10-nummerblokVVE nieuwe aanleg | C12: Telfort zakelijk voip | D12: Hosted voip | E12: faciliteit | F12: 10-nummerblok | G12: VVE nieuwe aanleg | H12: Hosted voipfaciliteit10-nummerblok | J12: =INDEX(mapping!F:F,MATCH($H12,mapping!B:B,0),0) -> nvt | K12: =INDEX(mapping!F:F,MATCH($D12&$E12,mapping!B:B,0),0) -> bijkomende kosten | L12: =MATCH($H12,'Tarieven ZM voice'!B:B,0) -> 19 | M12: =INDEX('Tarieven ZM voice'!F:F,$L12,0) -> 100.00 | N12: =INDEX('Tarieven ZM voice'!G:H,$L12,MATCH($G12,'Tarieven ZM voice'!$G$4:$H$4,0)) -> 100.00 | O12: =M12+N12/Parameters_VoIP!$B$15 -> 102.78 | P12: =IF($K12="nvt","nvt",MATCH($K12,Parameters_VoIP!A:A,0)) -> 36 | Q12: =IF($P12="nvt",0,INDEX(Parameters_VoIP!B:B,P12,0)) -> 0.10 | R12: =INDEX(mapping!F:F,MATCH(D12&F12&$R$3,mapping!B:B,0),0) -> 1.00 | S12: 0.10 | T12: =S12*Parameters_VoIP!$B$6 -> 0.00 | U12: =O12*Parameters_VoIP!$B$17 -> 0.00 | W12: 0.00 | X12: 0.10 | Y12: 102.68 | Z12: 100% | AA12: FALSE | AB12: ja | AD12: 0 | AE12: =O12*Parameters_VoIP!$B$13 -> 10.28 | AF12: =Distributievergoedingen!$F$7*M12 -> 10.00 | AH12: 20.28 | AJ12: 20.28 | AL12: 82.50 | AM12: 80.27% | AN12: FALSE
A13: Hosted voipfaciliteit100-nummerblokVVE nieuwe aanleg | B13: Hosted voipfaciliteit100-nummerblokVVE nieuwe aanleg | C13: Telfort zakelijk voip | D13: Hosted voip | E13: faciliteit | F13: 100-nummerblok | G13: VVE nieuwe aanleg | H13: Hosted voipfaciliteit100-nummerblok | J13: =INDEX(mapping!F:F,MATCH($H13,mapping!B:B,0),0) -> nvt | K13: =INDEX(mapping!F:F,MATCH($D13&$E13,mapping!B:B,0),0) -> bijkomende kosten | L13: =MATCH($H13,'Tarieven ZM voice'!B:B,0) -> 20 | M13: =INDEX('Tarieven ZM voice'!F:F,$L13,0) -> 100.00 | N13: =INDEX('Tarieven ZM voice'!G:H,$L13,MATCH($G13,'Tarieven ZM voice'!$G$4:$H$4,0)) -> 100.00 | O13: =M13+N13/Parameters_VoIP!$B$15 -> 102.78 | P13: =IF($K13="nvt","nvt",MATCH($K13,Parameters_VoIP!A:A,0)) -> 36 | Q13: =IF($P13="nvt",0,INDEX(Parameters_VoIP!B:B,P13,0)) -> 0.10 | R13: =INDEX(mapping!F:F,MATCH(D13&F13&$R$3,mapping!B:B,0),0) -> 1.00 | S13: 0.10 | T13: =S13*Parameters_VoIP!$B$6 -> 0.00 | U13: =O13*Parameters_VoIP!$B$17 -> 0.00 | W13: 0.00 | X13: 0.10 | Y13: 102.68 | Z13: 100% | AA13: FALSE | AB13: ja | AD13: 0 | AE13: =O13*Parameters_VoIP!$B$13 -> 10.28 | AF13: =Distributievergoedingen!$F$7*M13 -> 10.00 | AH13: 20.28 | AJ13: 20.28 | AL13: 82.50 | AM13: 80.27% | AN13: FALSE
A14: Hosted voipfaciliteitReceptionistVVE nieuwe aanleg | B14: Hosted voipfaciliteitReceptionistVVE nieuwe aanleg | C14: Telfort zakelijk voip | D14: Hosted voip | E14: faciliteit | F14: Receptionist | G14: VVE nieuwe aanleg | H14: =D14&E14&F14 -> Hosted voipfaciliteitReceptionist | J14: =INDEX(mapping!F:F,MATCH($H14,mapping!B:B,0),0) -> nvt | K14: =INDEX(mapping!F:F,MATCH($D14&$E14,mapping!B:B,0),0) -> bijkomende kosten | L14: =MATCH($H14,'Tarieven ZM voice'!B:B,0) -> 26 | M14: =INDEX('Tarieven ZM voice'!F:F,$L14,0) -> 100.00 | N14: =INDEX('Tarieven ZM voice'!G:H,$L14,MATCH($G14,'Tarieven ZM voice'!$G$4:$H$4,0)) -> 100.00 | O14: =M14+N14/Parameters_VoIP!$B$15 -> 102.78 | P14: =IF($K14="nvt","nvt",MATCH($K14,Parameters_VoIP!A:A,0)) -> 36 | Q14: =IF($P14="nvt",0,INDEX(Parameters_VoIP!B:B,P14,0)) -> 0.10 | R14: =INDEX(mapping!F:F,MATCH(D14&F14&$R$3,mapping!B:B,0),0) -> 1.00 | S14: 0.10 | T14: =S14*Parameters_VoIP!$B$6 -> 0.00 | U14: =O14*Parameters_VoIP!$B$17 -> 0.00 | W14: =SUM(T14:V14) -> 0.00 | X14: =S14+W14 -> 0.10 | Y14: =O14-X14 -> 102.68 | Z14: =Y14/O14 -> 100% | AA14: =Z14<0 -> FALSE | AB14: ja | AD14: 0 | AE14: =O14*Parameters_VoIP!$B$13 -> 10.28 | AF14: =Distributievergoedingen!$F$7*M14 -> 10.00 | AH14: 20.28 | AJ14: 20.28 | AL14: 82.50 | AM14: 80.27% | AN14: FALSE
A15: Hosted voipfaciliteitWachtrijmedewerkerVVE nieuwe aanleg | B15: Hosted voipfaciliteitWachtrijmedewerkerVVE nieuwe aanleg | C15: Telfort zakelijk voip | D15: Hosted voip | E15: faciliteit | F15: Wachtrijmedewerker | G15: VVE nieuwe aanleg | H15: Hosted voipfaciliteitWachtrijmedewerker | J15: =INDEX(mapping!F:F,MATCH($H15,mapping!B:B,0),0) -> nvt | K15: =INDEX(mapping!F:F,MATCH($D15&$E15,mapping!B:B,0),0) -> bijkomende kosten | L15: =MATCH($H15,'Tarieven ZM voice'!B:B,0) -> 27 | M15: =INDEX('Tarieven ZM voice'!F:F,$L15,0) -> 100.00 | N15: =INDEX('Tarieven ZM voice'!G:H,$L15,MATCH($G15,'Tarieven ZM voice'!$G$4:$H$4,0)) -> 100.00 | O15: =M15+N15/Parameters_VoIP!$B$15 -> 102.78 | P15: =IF($K15="nvt","nvt",MATCH($K15,Parameters_VoIP!A:A,0)) -> 36 | Q15: =IF($P15="nvt",0,INDEX(Parameters_VoIP!B:B,P15,0)) -> 0.10 | R15: =INDEX(mapping!F:F,MATCH(D15&F15&$R$3,mapping!B:B,0),0) -> 1.00 | S15: 0.10 | T15: =S15*Parameters_VoIP!$B$6 -> 0.00 | U15: =O15*Parameters_VoIP!$B$17 -> 0.00 | W15: 0.00 | X15: 0.10 | Y15: 102.68 | Z15: 100% | AA15: FALSE | AB15: ja | AD15: 0 | AE15: =O15*Parameters_VoIP!$B$13 -> 10.28 | AF15: =Distributievergoedingen!$F$7*M15 -> 10.00 | AH15: 20.28 | AJ15: 20.28 | AL15: 82.50 | AM15: 80.27% | AN15: FALSE
A16: Hosted voipfaciliteitSoftware integratieVVE nieuwe aanleg | B16: Hosted voipfaciliteitSoftware integratieVVE nieuwe aanleg | C16: Telfort zakelijk voip | D16: Hosted voip | E16: faciliteit | F16: Software integratie | G16: VVE nieuwe aanleg | H16: Hosted voipfaciliteitSoftware integratie | J16: =INDEX(mapping!F:F,MATCH($H16,mapping!B:B,0),0) -> nvt | K16: =INDEX(mapping!F:F,MATCH($D16&$E16,mapping!B:B,0),0) -> bijkomende kosten | L16: =MATCH($H16,'Tarieven ZM voice'!B:B,0) -> 28 | M16: =INDEX('Tarieven ZM voice'!F:F,$L16,0) -> 100.00 | N16: =INDEX('Tarieven ZM voice'!G:H,$L16,MATCH($G16,'Tarieven ZM voice'!$G$4:$H$4,0)) -> 100.00 | O16: =M16+N16/Parameters_VoIP!$B$15 -> 102.78 | P16: =IF($K16="nvt","nvt",MATCH($K16,Parameters_VoIP!A:A,0)) -> 36 | Q16: =IF($P16="nvt",0,INDEX(Parameters_VoIP!B:B,P16,0)) -> 0.10 | R16: =INDEX(mapping!F:F,MATCH(D16&F16&$R$3,mapping!B:B,0),0) -> 1.00 | S16: 0.10 | T16: =S16*Parameters_VoIP!$B$6 -> 0.00 | U16: =O16*Parameters_VoIP!$B$17 -> 0.00 | W16: 0.00 | X16: 0.10 | Y16: 102.68 | Z16: 100% | AA16: FALSE | AB16: ja | AD16: 0 | AE16: =O16*Parameters_VoIP!$B$13 -> 10.28 | AF16: =Distributievergoedingen!$F$7*M16 -> 10.00 | AH16: 20.28 | AJ16: 20.28 | AL16: 82.50 | AM16: 80.27% | AN16: FALSE
A17: =H17&G17 -> Hosted voipfaciliteit5 Extra belgroepenVVE nieuwe aanleg | B17: =H17&G17 -> Hosted voipfaciliteit5 Extra belgroepenVVE nieuwe aanleg | C17: Telfort zakelijk voip | D17: Hosted voip | E17: faciliteit | F17: 5 Extra belgroepen | G17: VVE nieuwe aanleg | H17: Hosted voipfaciliteit5 Extra belgroepen | J17: =INDEX(mapping!F:F,MATCH($H17,mapping!B:B,0),0) -> nvt | K17: =INDEX(mapping!F:F,MATCH($D17&$E17,mapping!B:B,0),0) -> bijkomende kosten | L17: =MATCH($H17,'Tarieven ZM voice'!B:B,0) -> 16 | M17: =INDEX('Tarieven ZM voice'!F:F,$L17,0) -> 100.00 | N17: =INDEX('Tarieven ZM voice'!G:H,$L17,MATCH($G17,'Tarieven ZM voice'!$G$4:$H$4,0)) -> 100.00 | O17: =M17+N17/Parameters_VoIP!$B$15 -> 102.78 | P17: =IF($K17="nvt","nvt",MATCH($K17,Parameters_VoIP!A:A,0)) -> 36 | Q17: =IF($P17="nvt",0,INDEX(Parameters_VoIP!B:B,P17,0)) -> 0.10 | R17: =INDEX(mapping!F:F,MATCH(D17&F17&$R$3,mapping!B:B,0),0) -> 1.00 | S17: =Q17*R17 -> 0.10 | T17: =S17*Parameters_VoIP!$B$6 -> 0.00 | U17: =O17*Parameters_VoIP!$B$17 -> 0.00 | W17: =SUM(T17:V17) -> 0.00 | X17: =S17+W17 -> 0.10 | Y17: =O17-X17 -> 102.68 | Z17: =Y17/O17 -> 100% | AA17: =Z17<0 -> FALSE | AB17: ja | AD17: 0 | AE17: =O17*Parameters_VoIP!$B$13 -> 10.28 | AF17: =Distributievergoedingen!$F$7*M17 -> 10.00 | AH17: 20.28 | AJ17: 20.28 | AL17: 82.50 | AM17: 80.27% | AN17: FALSE
A18: Hosted voipfaciliteitFax naar E-mail (Extra)VVE nieuwe aanleg | B18: Hosted voipfaciliteitFax naar E-mail (Extra)VVE nieuwe aanleg | C18: Telfort zakelijk voip | D18: Hosted voip | E18: faciliteit | F18: Fax naar E-mail (Extra) | G18: VVE nieuwe aanleg | H18: Hosted voipfaciliteitFax naar E-mail (Extra) | J18: =INDEX(mapping!F:F,MATCH($H18,mapping!B:B,0),0) -> nvt | K18: =INDEX(mapping!F:F,MATCH($D18&$E18,mapping!B:B,0),0) -> bijkomende kosten | L18: =MATCH($H18,'Tarieven ZM voice'!B:B,0) -> 29 | M18: =INDEX('Tarieven ZM voice'!F:F,$L18,0) -> 100.00 | N18: =INDEX('Tarieven ZM voice'!G:H,$L18,MATCH($G18,'Tarieven ZM voice'!$G$4:$H$4,0)) -> 100.00 | O18: =M18+N18/Parameters_VoIP!$B$15 -> 102.78 | P18: =IF($K18="nvt","nvt",MATCH($K18,Parameters_VoIP!A:A,0)) -> 36 | Q18: =IF($P18="nvt",0,INDEX(Parameters_VoIP!B:B,P18,0)) -> 0.10 | R18: =INDEX(mapping!F:F,MATCH(D18&F18&$R$3,mapping!B:B,0),0) -> 1.00 | S18: 0.10 | T18: =S18*Parameters_VoIP!$B$6 -> 0.00 | U18: =O18*Parameters_VoIP!$B$17 -> 0.00 | W18: 0.00 | X18: 0.10 | Y18: 102.68 | Z18: 100% | AA18: FALSE | AB18: ja | AD18: 0 | AE18: =O18*Parameters_VoIP!$B$13 -> 10.28 | AF18: =Distributievergoedingen!$F$7*M18 -> 10.00 | AH18: 20.28 | AJ18: 20.28 | AL18: 82.50 | AM18: 80.27% | AN18: FALSE
A19: Hosted voipfaciliteitDoorschakelen nachtVVE nieuwe aanleg | B19: Hosted voipfaciliteitDoorschakelen nachtVVE nieuwe aanleg | C19: Telfort zakelijk voip | D19: Hosted voip | E19: faciliteit | F19: Doorschakelen nacht | G19: VVE nieuwe aanleg | H19: =D19&E19&F19 -> Hosted voipfaciliteitDoorschakelen nacht | J19: =INDEX(mapping!F:F,MATCH($H19,mapping!B:B,0),0) -> nvt | K19: =INDEX(mapping!F:F,MATCH($D19&$E19,mapping!B:B,0),0) -> bijkomende kosten | L19: =MATCH($H19,'Tarieven ZM voice'!B:B,0) -> 30 | M19: =INDEX('Tarieven ZM voice'!F:F,$L19,0) -> 100.00 | N19: =INDEX('Tarieven ZM voice'!G:H,$L19,MATCH($G19,'Tarieven ZM voice'!$G$4:$H$4,0)) -> 100.00 | O19: =M19+N19/Parameters_VoIP!$B$15 -> 102.78 | P19: =IF($K19="nvt","nvt",MATCH($K19,Parameters_VoIP!A:A,0)) -> 36 | Q19: =IF($P19="nvt",0,INDEX(Parameters_VoIP!B:B,P19,0)) -> 0.10 | R19: =INDEX(mapping!F:F,MATCH(D19&F19&$R$3,mapping!B:B,0),0) -> 1.00 | S19: 0.10 | T19: =S19*Parameters_VoIP!$B$6 -> 0.00 | U19: =O19*Parameters_VoIP!$B$17 -> 0.00 | W19: =SUM(T19:V19) -> 0.00 | X19: =S19+W19 -> 0.10 | Y19: =O19-X19 -> 102.68 | Z19: =Y19/O19 -> 100% | AA19: =Z19<0 -> FALSE | AB19: ja | AD19: 0 | AE19: =O19*Parameters_VoIP!$B$13 -> 10.28 | AF19: =Distributievergoedingen!$F$7*M19 -> 10.00 | AH19: 20.28 | AJ19: 20.28 | AL19: 82.50 | AM19: 80.27% | AN19: FALSE
A20: Hosted voipfaciliteitDoorschakelen bij bezetVVE nieuwe aanleg | B20: Hosted voipfaciliteitDoorschakelen bij bezetVVE nieuwe aanleg | C20: Telfort zakelijk voip | D20: Hosted voip | E20: faciliteit | F20: Doorschakelen bij bezet | G20: VVE nieuwe aanleg | H20: Hosted voipfaciliteitDoorschakelen bij bezet | J20: =INDEX(mapping!F:F,MATCH($H20,mapping!B:B,0),0) -> nvt | K20: =INDEX(mapping!F:F,MATCH($D20&$E20,mapping!B:B,0),0) -> bijkomende kosten | L20: =MATCH($H20,'Tarieven ZM voice'!B:B,0) -> 31 | M20: =INDEX('Tarieven ZM voice'!F:F,$L20,0) -> 100.00 | N20: =INDEX('Tarieven ZM voice'!G:H,$L20,MATCH($G20,'Tarieven ZM voice'!$G$4:$H$4,0)) -> 100.00 | O20: =M20+N20/Parameters_VoIP!$B$15 -> 102.78 | P20: =IF($K20="nvt","nvt",MATCH($K20,Parameters_VoIP!A:A,0)) -> 36 | Q20: =IF($P20="nvt",0,INDEX(Parameters_VoIP!B:B,P20,0)) -> 0.10 | R20: =INDEX(mapping!F:F,MATCH(D20&F20&$R$3,mapping!B:B,0),0) -> 1.00 | S20: 0.10 | T20: =S20*Parameters_VoIP!$B$6 -> 0.00 | U20: =O20*Parameters_VoIP!$B$17 -> 0.00 | W20: 0.00 | X20: 0.10 | Y20: 102.68 | Z20: 100% | AA20: FALSE | AB20: ja | AD20: 0 | AE20: =O20*Parameters_VoIP!$B$13 -> 10.28 | AF20: =Distributievergoedingen!$F$7*M20 -> 10.00 | AH20: 20.28 | AJ20: 20.28 | AL20: 82.50 | AM20: 80.27% | AN20: FALSE
A21: Hosted voipfaciliteitDoorschakelen directVVE nieuwe aanleg | B21: Hosted voipfaciliteitDoorschakelen directVVE nieuwe aanleg | C21: Telfort zakelijk voip | D21: Hosted voip | E21: faciliteit | F21: Doorschakelen direct | G21: VVE nieuwe aanleg | H21: Hosted voipfaciliteitDoorschakelen direct | J21: =INDEX(mapping!F:F,MATCH($H21,mapping!B:B,0),0) -> nvt | K21: =INDEX(mapping!F:F,MATCH($D21&$E21,mapping!B:B,0),0) -> bijkomende kosten | L21: =MATCH($H21,'Tarieven ZM voice'!B:B,0) -> 32 | M21: =INDEX('Tarieven ZM voice'!F:F,$L21,0) -> 100.00 | N21: =INDEX('Tarieven ZM voice'!G:H,$L21,MATCH($G21,'Tarieven ZM voice'!$G$4:$H$4,0)) -> 100.00 | O21: =M21+N21/Parameters_VoIP!$B$15 -> 102.78 | P21: =IF($K21="nvt","nvt",MATCH($K21,Parameters_VoIP!A:A,0)) -> 36 | Q21: =IF($P21="nvt",0,INDEX(Parameters_VoIP!B:B,P21,0)) -> 0.10 | R21: =INDEX(mapping!F:F,MATCH(D21&F21&$R$3,mapping!B:B,0),0) -> 1.00 | S21: 0.10 | T21: =S21*Parameters_VoIP!$B$6 -> 0.00 | U21: =O21*Parameters_VoIP!$B$17 -> 0.00 | W21: 0.00 | X21: 0.10 | Y21: 102.68 | Z21: 100% | AA21: FALSE | AB21: ja | AD21: 0 | AE21: =O21*Parameters_VoIP!$B$13 -> 10.28 | AF21: =Distributievergoedingen!$F$7*M21 -> 10.00 | AH21: 20.28 | AJ21: 20.28 | AL21: 82.50 | AM21: 80.27% | AN21: FALSE
A22: Hosted voipfaciliteitDoorschakelen bij geen gehoorVVE nieuwe aanleg | B22: Hosted voipfaciliteitDoorschakelen bij geen gehoorVVE nieuwe aanleg | C22: Telfort zakelijk voip | D22: Hosted voip | E22: faciliteit | F22: Doorschakelen bij geen gehoor | G22: VVE nieuwe aanleg | H22: Hosted voipfaciliteitDoorschakelen bij geen gehoor | J22: =INDEX(mapping!F:F,MATCH($H22,mapping!B:B,0),0) -> nvt | K22: =INDEX(mapping!F:F,MATCH($D22&$E22,mapping!B:B,0),0) -> bijkomende kosten | L22: =MATCH($H22,'Tarieven ZM voice'!B:B,0) -> 33 | M22: =INDEX('Tarieven ZM voice'!F:F,$L22,0) -> 100.00 | N22: =INDEX('Tarieven ZM voice'!G:H,$L22,MATCH($G22,'Tarieven ZM voice'!$G$4:$H$4,0)) -> 100.00 | O22: =M22+N22/Parameters_VoIP!$B$15 -> 102.78 | P22: =IF($K22="nvt","nvt",MATCH($K22,Parameters_VoIP!A:A,0)) -> 36 | Q22: =IF($P22="nvt",0,INDEX(Parameters_VoIP!B:B,P22,0)) -> 0.10 | R22: =INDEX(mapping!F:F,MATCH(D22&F22&$R$3,mapping!B:B,0),0) -> 1.00 | S22: 0.10 | T22: =S22*Parameters_VoIP!$B$6 -> 0.00 | U22: =O22*Parameters_VoIP!$B$17 -> 0.00 | W22: 0.00 | X22: 0.10 | Y22: 102.68 | Z22: 100% | AA22: FALSE | AB22: ja | AD22: 0 | AE22: =O22*Parameters_VoIP!$B$13 -> 10.28 | AF22: =Distributievergoedingen!$F$7*M22 -> 10.00 | AH22: 20.28 | AJ22: 20.28 | AL22: 82.50 | AM22: 80.27% | AN22: FALSE
A23: Hosted voipfaciliteitDoorschakelen selectiefVVE nieuwe aanleg | B23: Hosted voipfaciliteitDoorschakelen selectiefVVE nieuwe aanleg | C23: Telfort zakelijk voip | D23: Hosted voip | E23: faciliteit | F23: Doorschakelen selectief | G23: VVE nieuwe aanleg | H23: Hosted voipfaciliteitDoorschakelen selectief | J23: =INDEX(mapping!F:F,MATCH($H23,mapping!B:B,0),0) -> nvt | K23: =INDEX(mapping!F:F,MATCH($D23&$E23,mapping!B:B,0),0) -> bijkomende kosten | L23: =MATCH($H23,'Tarieven ZM voice'!B:B,0) -> 34 | M23: =INDEX('Tarieven ZM voice'!F:F,$L23,0) -> 100.00 | N23: =INDEX('Tarieven ZM voice'!G:H,$L23,MATCH($G23,'Tarieven ZM voice'!$G$4:$H$4,0)) -> 100.00 | O23: =M23+N23/Parameters_VoIP!$B$15 -> 102.78 | P23: =IF($K23="nvt","nvt",MATCH($K23,Parameters_VoIP!A:A,0)) -> 36 | Q23: =IF($P23="nvt",0,INDEX(Parameters_VoIP!B:B,P23,0)) -> 0.10 | R23: =INDEX(mapping!F:F,MATCH(D23&F23&$R$3,mapping!B:B,0),0) -> 1.00 | S23: 0.10 | T23: =S23*Parameters_VoIP!$B$6 -> 0.00 | U23: =O23*Parameters_VoIP!$B$17 -> 0.00 | W23: 0.00 | X23: 0.10 | Y23: 102.68 | Z23: 100% | AA23: FALSE | AB23: ja | AD23: 0 | AE23: =O23*Parameters_VoIP!$B$13 -> 10.28 | AF23: =Distributievergoedingen!$F$7*M23 -> 10.00 | AH23: 20.28 | AJ23: 20.28 | AL23: 82.50 | AM23: 80.27% | AN23: FALSE
A24: =H24&G24 -> Hosted voipfaciliteitInVerbindingVVE nieuwe aanleg | B24: =H24&G24 -> Hosted voipfaciliteitInVerbindingVVE nieuwe aanleg | C24: Telfort zakelijk voip | D24: Hosted voip | E24: faciliteit | F24: InVerbinding | G24: VVE nieuwe aanleg | H24: =D24&E24&F24 -> Hosted voipfaciliteitInVerbinding | J24: =INDEX(mapping!F:F,MATCH($H24,mapping!B:B,0),0) -> nvt | K24: =INDEX(mapping!F:F,MATCH($D24&$E24,mapping!B:B,0),0) -> bijkomende kosten | L24: =MATCH($H24,'Tarieven ZM voice'!B:B,0) -> 22 | M24: =INDEX('Tarieven ZM voice'!F:F,$L24,0) -> 100.00 | N24: =INDEX('Tarieven ZM voice'!G:H,$L24,MATCH($G24,'Tarieven ZM voice'!$G$4:$H$4,0)) -> 100.00 | O24: =M24+N24/Parameters_VoIP!$B$15 -> 102.78 | P24: =IF($K24="nvt","nvt",MATCH($K24,Parameters_VoIP!A:A,0)) -> 36 | Q24: =IF($P24="nvt",0,INDEX(Parameters_VoIP!B:B,P24,0)) -> 0.10 | R24: =INDEX(mapping!F:F,MATCH(D24&F24&$R$3,mapping!B:B,0),0) -> 1.00 | S24: =Q24*R24 -> 0.10 | T24: =S24*Parameters_VoIP!$B$6 -> 0.00 | U24: =O24*Parameters_VoIP!$B$17 -> 0.00 | W24: =SUM(T24:V24) -> 0.00 | X24: =S24+W24 -> 0.10 | Y24: =O24-X24 -> 102.68 | Z24: =Y24/O24 -> 100% | AA24: =Z24<0 -> FALSE | AB24: ja | AD24: 0 | AE24: =O24*Parameters_VoIP!$B$13 -> 10.28 | AF24: =Distributievergoedingen!$F$7*M24 -> 10.00 | AH24: =SUM(AE24:AG24) -> 20.28 | AJ24: =AD24+AH24 -> 20.28 | AL24: =O24-AJ24 -> 82.50 | AM24: =AL24/O24 -> 80.27% | AN24: =AM24<0 -> FALSE
A25: Hosted voipfaciliteitService en InstallatieVVE nieuwe aanleg | B25: Hosted voipfaciliteitService en InstallatieVVE nieuwe aanleg | C25: Telfort zakelijk voip | D25: Hosted voip | E25: faciliteit | F25: Service en Installatie | G25: VVE nieuwe aanleg | H25: Hosted voipfaciliteitService en Installatie | J25: =INDEX(mapping!F:F,MATCH($H25,mapping!B:B,0),0) -> nvt | K25: =INDEX(mapping!F:F,MATCH($D25&$E25,mapping!B:B,0),0) -> bijkomende kosten | L25: =MATCH($H25,'Tarieven ZM voice'!B:B,0) -> 21 | M25: =INDEX('Tarieven ZM voice'!F:F,$L25,0) -> 100.00 | N25: =INDEX('Tarieven ZM voice'!G:H,$L25,MATCH($G25,'Tarieven ZM voice'!$G$4:$H$4,0)) -> 100.00 | O25: =M25+N25/Parameters_VoIP!$B$15 -> 102.78 | P25: =IF($K25="nvt","nvt",MATCH($K25,Parameters_VoIP!A:A,0)) -> 36 | Q25: =IF($P25="nvt",0,INDEX(Parameters_VoIP!B:B,P25,0)) -> 0.10 | R25: =INDEX(mapping!F:F,MATCH(D25&F25&$R$3,mapping!B:B,0),0) -> 1.00 | S25: 0.10 | T25: =S25*Parameters_VoIP!$B$6 -> 0.00 | U25: =O25*Parameters_VoIP!$B$17 -> 0.00 | W25: 0.00 | X25: 0.10 | Y25: 102.68 | Z25: 100% | AA25: FALSE | AB25: ja | AD25: 0 | AE25: =O25*Parameters_VoIP!$B$13 -> 10.28 | AF25: =Distributievergoedingen!$F$7*M25 -> 10.00 | AH25: 20.28 | AJ25: 20.28 | AL25: 82.50 | AM25: 80.27% | AN25: FALSE
A26: Hosted voipfaciliteitService en Installatie (Extra)VVE nieuwe aanleg | B26: Hosted voipfaciliteitService en Installatie (Extra)VVE nieuwe aanleg | C26: Telfort zakelijk voip | D26: Hosted voip | E26: faciliteit | F26: Service en Installatie (Extra) | G26: VVE nieuwe aanleg | H26: Hosted voipfaciliteitService en Installatie (Extra) | J26: =INDEX(mapping!F:F,MATCH($H26,mapping!B:B,0),0) -> nvt | K26: =INDEX(mapping!F:F,MATCH($D26&$E26,mapping!B:B,0),0) -> bijkomende kosten | L26: =MATCH($H26,'Tarieven ZM voice'!B:B,0) -> 35 | M26: =INDEX('Tarieven ZM voice'!F:F,$L26,0) -> 100.00 | N26: =INDEX('Tarieven ZM voice'!G:H,$L26,MATCH($G26,'Tarieven ZM voice'!$G$4:$H$4,0)) -> 100.00 | O26: =M26+N26/Parameters_VoIP!$B$15 -> 102.78 | P26: =IF($K26="nvt","nvt",MATCH($K26,Parameters_VoIP!A:A,0)) -> 36 | Q26: =IF($P26="nvt",0,INDEX(Parameters_VoIP!B:B,P26,0)) -> 0.10 | R26: =INDEX(mapping!F:F,MATCH(D26&F26&$R$3,mapping!B:B,0),0) -> 1.00 | S26: 0.10 | T26: =S26*Parameters_VoIP!$B$6 -> 0.00 | U26: =O26*Parameters_VoIP!$B$17 -> 0.00 | W26: 0.00 | X26: 0.10 | Y26: 102.68 | Z26: 100% | AA26: FALSE | AB26: ja | AD26: 0 | AE26: =O26*Parameters_VoIP!$B$13 -> 10.28 | AF26: =Distributievergoedingen!$F$7*M26 -> 10.00 | AH26: 20.28 | AJ26: 20.28 | AL26: 82.50 | AM26: 80.27% | AN26: FALSE
A27: Hosted voipfaciliteitKeuzemenu dag/nachtVVE nieuwe aanleg | B27: Hosted voipfaciliteitKeuzemenu dag/nachtVVE nieuwe aanleg | C27: Telfort zakelijk voip | D27: Hosted voip | E27: faciliteit | F27: Keuzemenu dag/nacht | G27: VVE nieuwe aanleg | H27: =D27&E27&F27 -> Hosted voipfaciliteitKeuzemenu dag/nacht | J27: =INDEX(mapping!F:F,MATCH($H27,mapping!B:B,0),0) -> nvt | K27: =INDEX(mapping!F:F,MATCH($D27&$E27,mapping!B:B,0),0) -> bijkomende kosten | L27: =MATCH($H27,'Tarieven ZM voice'!B:B,0) -> 36 | M27: =INDEX('Tarieven ZM voice'!F:F,$L27,0) -> 100.00 | N27: =INDEX('Tarieven ZM voice'!G:H,$L27,MATCH($G27,'Tarieven ZM voice'!$G$4:$H$4,0)) -> 100.00 | O27: =M27+N27/Parameters_VoIP!$B$15 -> 102.78 | P27: =IF($K27="nvt","nvt",MATCH($K27,Parameters_VoIP!A:A,0)) -> 36 | Q27: =IF($P27="nvt",0,INDEX(Parameters_VoIP!B:B,P27,0)) -> 0.10 | R27: =INDEX(mapping!F:F,MATCH(D27&F27&$R$3,mapping!B:B,0),0) -> 1.00 | S27: 0.10 | T27: =S27*Parameters_VoIP!$B$6 -> 0.00 | U27: =O27*Parameters_VoIP!$B$17 -> 0.00 | W27: =SUM(T27:V27) -> 0.00 | X27: =S27+W27 -> 0.10 | Y27: =O27-X27 -> 102.68 | Z27: =Y27/O27 -> 100% | AA27: =Z27<0 -> FALSE | AB27: ja | AD27: 0 | AE27: =O27*Parameters_VoIP!$B$13 -> 10.28 | AF27: =Distributievergoedingen!$F$7*M27 -> 10.00 | AH27: 20.28 | AJ27: 20.28 | AL27: 82.50 | AM27: 80.27% | AN27: FALSE
A28: Hosted voipseatNederland BasisVVE overstap | B28: Hosted voipseatNederland BasisVVE overstap | C28: Telfort zakelijk voip | D28: Hosted voip | E28: seat | F28: Nederland Basis | G28: VVE overstap | H28: =D28&E28&F28 -> Hosted voipseatNederland Basis | J28: =INDEX(mapping!F:F,MATCH($H28,mapping!B:B,0),0) -> nvt | K28: =INDEX(mapping!F:F,MATCH($D28&$E28,mapping!B:B,0),0) -> Licentie 1 kosten | L28: =MATCH($H28,'Tarieven ZM voice'!B:B,0) -> 5 | M28: =INDEX('Tarieven ZM voice'!F:F,$L28,0) -> 100.00 | N28: =INDEX('Tarieven ZM voice'!G:H,$L28,MATCH($G28,'Tarieven ZM voice'!$G$4:$H$4,0)) -> 100.00 | O28: =M28+N28/Parameters_VoIP!$B$15 -> 102.78 | P28: =IF($K28="nvt","nvt",MATCH($K28,Parameters_VoIP!A:A,0)) -> 35 | Q28: =IF($P28="nvt",0,INDEX(Parameters_VoIP!B:B,P28,0)) -> 0.10 | R28: =INDEX(mapping!F:F,MATCH(D28&F28&$R$3,mapping!B:B,0),0) -> 1.00 | S28: 0.10 | T28: =S28*Parameters_VoIP!$B$6 -> 0.00 | U28: =O28*Parameters_VoIP!$B$17 -> 0.00 | W28: =SUM(T28:V28) -> 0.00 | X28: =S28+W28 -> 0.10 | Y28: =O28-X28 -> 102.68 | Z28: =Y28/O28 -> 100% | AA28: =Z28<0 -> FALSE | AB28: ja | AD28: 0 | AE28: =O28*Parameters_VoIP!$B$13 -> 10.28 | AF28: =Distributievergoedingen!$F$7*M28 -> 10.00 | AH28: 20.28 | AJ28: 20.28 | AL28: 82.50 | AM28: 80.27% | AN28: FALSE
A29: Hosted voipseatNederland OnbeperktVVE overstap | B29: Hosted voipseatNederland OnbeperktVVE overstap | C29: Telfort zakelijk voip | D29: Hosted voip | E29: seat | F29: Nederland Onbeperkt | G29: VVE overstap | H29: Hosted voipseatNederland Onbeperkt | J29: =INDEX(mapping!F:F,MATCH($H29,mapping!B:B,0),0) -> nvt | K29: =INDEX(mapping!F:F,MATCH($D29&$E29,mapping!B:B,0),0) -> Licentie 1 kosten | L29: =MATCH($H29,'Tarieven ZM voice'!B:B,0) -> 6 | M29: =INDEX('Tarieven ZM voice'!F:F,$L29,0) -> 100.00 | N29: =INDEX('Tarieven ZM voice'!G:H,$L29,MATCH($G29,'Tarieven ZM voice'!$G$4:$H$4,0)) -> 100.00 | O29: =M29+N29/Parameters_VoIP!$B$15 -> 102.78 | P29: =IF($K29="nvt","nvt",MATCH($K29,Parameters_VoIP!A:A,0)) -> 35 | Q29: =IF($P29="nvt",0,INDEX(Parameters_VoIP!B:B,P29,0)) -> 0.10 | R29: =INDEX(mapping!F:F,MATCH(D29&F29&$R$3,mapping!B:B,0),0) -> 1.00 | S29: 0.10 | T29: =S29*Parameters_VoIP!$B$6 -> 0.00 | U29: =O29*Parameters_VoIP!$B$17 -> 0.00 | W29: 0.00 | X29: 0.10 | Y29: 102.68 | Z29: 100% | AA29: FALSE | AB29: ja | AD29: 0 | AE29: =O29*Parameters_VoIP!$B$13 -> 10.28 | AF29: =Distributievergoedingen!$F$7*M29 -> 10.00 | AH29: 20.28 | AJ29: 20.28 | AL29: 82.50 | AM29: 80.27% | AN29: FALSE
A30: SIPkanaalBasisVVE overstap | B30: SIPkanaalBasisVVE overstap | C30: Telfort zakelijk voip | D30: SIP | E30: kanaal | F30: Basis | G30: VVE overstap | H30: SIPkanaalBasis | J30: =INDEX(mapping!F:F,MATCH($H30,mapping!B:B,0),0) -> nvt | K30: =INDEX(mapping!F:F,MATCH($D30&$E30,mapping!B:B,0),0) -> licentie 2 kosten | L30: =MATCH($H30,'Tarieven ZM voice'!B:B,0) -> 8 | M30: =INDEX('Tarieven ZM voice'!F:F,$L30,0) -> 100.00 | N30: =INDEX('Tarieven ZM voice'!G:H,$L30,MATCH($G30,'Tarieven ZM voice'!$G$4:$H$4,0)) -> 100.00 | O30: =M30+N30/Parameters_VoIP!$B$15 -> 102.78 | P30: =IF($K30="nvt","nvt",MATCH($K30,Parameters_VoIP!A:A,0)) -> 37 | Q30: =IF($P30="nvt",0,INDEX(Parameters_VoIP!B:B,P30,0)) -> 0.10 | R30: =INDEX(mapping!F:F,MATCH(D30&F30&$R$3,mapping!B:B,0),0) -> 1.00 | S30: 0.10 | T30: =S30*Parameters_VoIP!$B$6 -> 0.00 | U30: =O30*Parameters_VoIP!$B$17 -> 0.00 | W30: 0.00 | X30: 0.10 | Y30: 102.68 | Z30: 100% | AA30: FALSE | AB30: ja | AD30: 0 | AE30: =O30*Parameters_VoIP!$B$13 -> 10.28 | AF30: =Distributievergoedingen!$F$7*M30 -> 10.00 | AH30: 20.28 | AJ30: 20.28 | AL30: 82.50 | AM30: 80.27% | AN30: FALSE
A31: SIPnummerfaciliteitextra nummerVVE overstap | B31: SIPnummerfaciliteitextra nummerVVE overstap | C31: Telfort zakelijk voip | D31: SIP | E31: nummerfaciliteit | F31: extra nummer | G31: VVE overstap | H31: SIPnummerfaciliteitextra nummer | J31: =INDEX(mapping!F:F,MATCH($H31,mapping!B:B,0),0) -> nvt | K31: =INDEX(mapping!F:F,MATCH($D31&$E31,mapping!B:B,0),0) -> SIP nummer | L31: =MATCH($H31,'Tarieven ZM voice'!B:B,0) -> 9 | M31: =INDEX('Tarieven ZM voice'!F:F,$L31,0) -> 100.00 | N31: =INDEX('Tarieven ZM voice'!G:H,$L31,MATCH($G31,'Tarieven ZM voice'!$G$4:$H$4,0)) -> 100.00 | O31: =M31+N31/Parameters_VoIP!$B$15 -> 102.78 | P31: =IF($K31="nvt","nvt",MATCH($K31,Parameters_VoIP!A:A,0)) -> 39 | Q31: =IF($P31="nvt",0,INDEX(Parameters_VoIP!B:B,P31,0)) -> 0.10 | R31: =INDEX(mapping!F:F,MATCH(D31&F31&$R$3,mapping!B:B,0),0) -> 1.00 | S31: 0.10 | T31: =S31*Parameters_VoIP!$B$6 -> 0.00 | U31: =O31*Parameters_VoIP!$B$17 -> 0.00 | W31: 0.00 | X31: 0.10 | Y31: 102.68 | Z31: 100% | AA31: FALSE | AB31: ja | AD31: 0 | AE31: =O31*Parameters_VoIP!$B$13 -> 10.28 | AF31: =Distributievergoedingen!$F$7*M31 -> 10.00 | AH31: 20.28 | AJ31: 20.28 | AL31: 82.50 | AM31: 80.27% | AN31: FALSE
A32: SIPnummerfaciliteit10-nummerblokVVE overstap | B32: SIPnummerfaciliteit10-nummerblokVVE overstap | C32: Telfort zakelijk voip | D32: SIP | E32: nummerfaciliteit | F32: 10-nummerblok | G32: VVE overstap | H32: SIPnummerfaciliteit10-nummerblok | J32: =INDEX(mapping!F:F,MATCH($H32,mapping!B:B,0),0) -> nvt | K32: =INDEX(mapping!F:F,MATCH($D32&$E32,mapping!B:B,0),0) -> SIP nummer | L32: =MATCH($H32,'Tarieven ZM voice'!B:B,0) -> 10 | M32: =INDEX('Tarieven ZM voice'!F:F,$L32,0) -> 100.00 | N32: =INDEX('Tarieven ZM voice'!G:H,$L32,MATCH($G32,'Tarieven ZM voice'!$G$4:$H$4,0)) -> 100.00 | O32: =M32+N32/Parameters_VoIP!$B$15 -> 102.78 | P32: =IF($K32="nvt","nvt",MATCH($K32,Parameters_VoIP!A:A,0)) -> 39 | Q32: =IF($P32="nvt",0,INDEX(Parameters_VoIP!B:B,P32,0)) -> 0.10 | R32: =INDEX(mapping!F:F,MATCH(D32&F32&$R$3,mapping!B:B,0),0) -> 10.00 | S32: 1.00 | T32: =S32*Parameters_VoIP!$B$6 -> 0.01 | U32: =O32*Parameters_VoIP!$B$17 -> 0.00 | W32: 0.01 | X32: 1.01 | Y32: 101.77 | Z32: 99% | AA32: FALSE | AB32: ja | AD32: 0 | AE32: =O32*Parameters_VoIP!$B$13 -> 10.28 | AF32: =Distributievergoedingen!$F$7*M32 -> 10.00 | AH32: 20.28 | AJ32: 20.28 | AL32: 82.50 | AM32: 80.27% | AN32: FALSE
A33: SIPnummerfaciliteit100-nummerblokVVE overstap | B33: SIPnummerfaciliteit100-nummerblokVVE overstap | C33: Telfort zakelijk voip | D33: SIP | E33: nummerfaciliteit | F33: 100-nummerblok | G33: VVE overstap | H33: SIPnummerfaciliteit100-nummerblok | J33: =INDEX(mapping!F:F,MATCH($H33,mapping!B:B,0),0) -> nvt | K33: =INDEX(mapping!F:F,MATCH($D33&$E33,mapping!B:B,0),0) -> SIP nummer | L33: =MATCH($H33,'Tarieven ZM voice'!B:B,0) -> 11 | M33: =INDEX('Tarieven ZM voice'!F:F,$L33,0) -> 100.00 | N33: =INDEX('Tarieven ZM voice'!G:H,$L33,MATCH($G33,'Tarieven ZM voice'!$G$4:$H$4,0)) -> 100.00 | O33: =M33+N33/Parameters_VoIP!$B$15 -> 102.78 | P33: =IF($K33="nvt","nvt",MATCH($K33,Parameters_VoIP!A:A,0)) -> 39 | Q33: =IF($P33="nvt",0,INDEX(Parameters_VoIP!B:B,P33,0)) -> 0.10 | R33: =INDEX(mapping!F:F,MATCH(D33&F33&$R$3,mapping!B:B,0),0) -> 100.00 | S33: 10.00 | T33: =S33*Parameters_VoIP!$B$6 -> 0.10 | U33: =O33*Parameters_VoIP!$B$17 -> 0.00 | W33: 0.10 | X33: 10.10 | Y33: 92.68 | Z33: 90% | AA33: FALSE | AB33: ja | AD33: 0 | AE33: =O33*Parameters_VoIP!$B$13 -> 10.28 | AF33: =Distributievergoedingen!$F$7*M33 -> 10.00 | AH33: 20.28 | AJ33: 20.28 | AL33: 82.50 | AM33: 80.27% | AN33: FALSE
A34: Hosted voipfaciliteitHosted telefonie Extra 12,50VVE overstap | B34: Hosted voipfaciliteitHosted telefonie Extra 12,50VVE overstap | C34: Telfort zakelijk voip | D34: Hosted voip | E34: faciliteit | F34: Hosted telefonie Extra 12,50 | G34: VVE overstap | H34: =D34&E34&F34 -> Hosted voipfaciliteitHosted telefonie Extra 12,50 | J34: =INDEX(mapping!F:F,MATCH($H34,mapping!B:B,0),0) -> nvt | K34: =INDEX(mapping!F:F,MATCH($D34&$E34,mapping!B:B,0),0) -> bijkomende kosten | L34: =MATCH($H34,'Tarieven ZM voice'!B:B,0) -> 25 | M34: =INDEX('Tarieven ZM voice'!F:F,$L34,0) -> 100.00 | N34: =INDEX('Tarieven ZM voice'!G:H,$L34,MATCH($G34,'Tarieven ZM voice'!$G$4:$H$4,0)) -> 100.00 | O34: =M34+N34/Parameters_VoIP!$B$15 -> 102.78 | P34: =IF($K34="nvt","nvt",MATCH($K34,Parameters_VoIP!A:A,0)) -> 36 | Q34: =IF($P34="nvt",0,INDEX(Parameters_VoIP!B:B,P34,0)) -> 0.10 | R34: =INDEX(mapping!F:F,MATCH(D34&F34&$R$3,mapping!B:B,0),0) -> 1.00 | S34: 0.10 | T34: =S34*Parameters_VoIP!$B$6 -> 0.00 | U34: =O34*Parameters_VoIP!$B$17 -> 0.00 | W34: =SUM(T34:V34) -> 0.00 | X34: =S34+W34 -> 0.10 | Y34: =O34-X34 -> 102.68 | Z34: =Y34/O34 -> 100% | AA34: =Z34<0 -> FALSE | AB34: ja | AD34: 0 | AE34: =O34*Parameters_VoIP!$B$13 -> 10.28 | AF34: =Distributievergoedingen!$F$7*M34 -> 10.00 | AH34: 20.28 | AJ34: 20.28 | AL34: 82.50 | AM34: 80.27% | AN34: FALSE
A35: Hosted voipfaciliteitReceptionistVVE overstap | B35: Hosted voipfaciliteitReceptionistVVE overstap | C35: Telfort zakelijk voip | D35: Hosted voip | E35: faciliteit | F35: Receptionist | G35: VVE overstap | H35: Hosted voipfaciliteitReceptionist | J35: =INDEX(mapping!F:F,MATCH($H35,mapping!B:B,0),0) -> nvt | K35: =INDEX(mapping!F:F,MATCH($D35&$E35,mapping!B:B,0),0) -> bijkomende kosten | L35: =MATCH($H35,'Tarieven ZM voice'!B:B,0) -> 26 | M35: =INDEX('Tarieven ZM voice'!F:F,$L35,0) -> 100.00 | N35: =INDEX('Tarieven ZM voice'!G:H,$L35,MATCH($G35,'Tarieven ZM voice'!$G$4:$H$4,0)) -> 100.00 | O35: =M35+N35/Parameters_VoIP!$B$15 -> 102.78 | P35: =IF($K35="nvt","nvt",MATCH($K35,Parameters_VoIP!A:A,0)) -> 36 | Q35: =IF($P35="nvt",0,INDEX(Parameters_VoIP!B:B,P35,0)) -> 0.10 | R35: =INDEX(mapping!F:F,MATCH(D35&F35&$R$3,mapping!B:B,0),0) -> 1.00 | S35: 0.10 | T35: =S35*Parameters_VoIP!$B$6 -> 0.00 | U35: =O35*Parameters_VoIP!$B$17 -> 0.00 | W35: 0.00 | X35: 0.10 | Y35: 102.68 | Z35: 100% | AA35: FALSE | AB35: ja | AD35: 0 | AE35: =O35*Parameters_VoIP!$B$13 -> 10.28 | AF35: =Distributievergoedingen!$F$7*M35 -> 10.00 | AH35: 20.28 | AJ35: 20.28 | AL35: 82.50 | AM35: 80.27% | AN35: FALSE
A36: =H36&G36 -> Hosted voipfaciliteitExtra telefoonnummerVVE overstap | B36: =H36&G36 -> Hosted voipfaciliteitExtra telefoonnummerVVE overstap | C36: Telfort zakelijk voip | D36: Hosted voip | E36: faciliteit | F36: Extra telefoonnummer | G36: VVE overstap | H36: =D36&E36&F36 -> Hosted voipfaciliteitExtra telefoonnummer | J36: =INDEX(mapping!F:F,MATCH($H36,mapping!B:B,0),0) -> nvt | K36: =INDEX(mapping!F:F,MATCH($D36&$E36,mapping!B:B,0),0) -> bijkomende kosten | L36: =MATCH($H36,'Tarieven ZM voice'!B:B,0) -> 18 | M36: =INDEX('Tarieven ZM voice'!F:F,$L36,0) -> 100.00 | N36: =INDEX('Tarieven ZM voice'!G:H,$L36,MATCH($G36,'Tarieven ZM voice'!$G$4:$H$4,0)) -> 100.00 | O36: =M36+N36/Parameters_VoIP!$B$15 -> 102.78 | P36: =IF($K36="nvt","nvt",MATCH($K36,Parameters_VoIP!A:A,0)) -> 36 | Q36: =IF($P36="nvt",0,INDEX(Parameters_VoIP!B:B,P36,0)) -> 0.10 | R36: =INDEX(mapping!F:F,MATCH(D36&F36&$R$3,mapping!B:B,0),0) -> 1.00 | S36: =Q36*R36 -> 0.10 | T36: =S36*Parameters_VoIP!$B$6 -> 0.00 | U36: =O36*Parameters_VoIP!$B$17 -> 0.00 | W36: =SUM(T36:V36) -> 0.00 | X36: =S36+W36 -> 0.10 | Y36: =O36-X36 -> 102.68 | Z36: =Y36/O36 -> 100% | AA36: =Z36<0 -> FALSE | AB36: ja | AD36: 0 | AE36: =O36*Parameters_VoIP!$B$13 -> 10.28 | AF36: =Distributievergoedingen!$F$7*M36 -> 10.00 | AH36: 20.28 | AJ36: 20.28 | AL36: 82.50 | AM36: 80.27% | AN36: FALSE
A37: Hosted voipfaciliteit10-nummerblokVVE overstap | B37: Hosted voipfaciliteit10-nummerblokVVE overstap | C37: Telfort zakelijk voip | D37: Hosted voip | E37: faciliteit | F37: 10-nummerblok | G37: VVE overstap | H37: Hosted voipfaciliteit10-nummerblok | J37: =INDEX(mapping!F:F,MATCH($H37,mapping!B:B,0),0) -> nvt | K37: =INDEX(mapping!F:F,MATCH($D37&$E37,mapping!B:B,0),0) -> bijkomende kosten | L37: =MATCH($H37,'Tarieven ZM voice'!B:B,0) -> 19 | M37: =INDEX('Tarieven ZM voice'!F:F,$L37,0) -> 100.00 | N37: =INDEX('Tarieven ZM voice'!G:H,$L37,MATCH($G37,'Tarieven ZM voice'!$G$4:$H$4,0)) -> 100.00 | O37: =M37+N37/Parameters_VoIP!$B$15 -> 102.78 | P37: =IF($K37="nvt","nvt",MATCH($K37,Parameters_VoIP!A:A,0)) -> 36 | Q37: =IF($P37="nvt",0,INDEX(Parameters_VoIP!B:B,P37,0)) -> 0.10 | R37: =INDEX(mapping!F:F,MATCH(D37&F37&$R$3,mapping!B:B,0),0) -> 1.00 | S37: 0.10 | T37: =S37*Parameters_VoIP!$B$6 -> 0.00 | U37: =O37*Parameters_VoIP!$B$17 -> 0.00 | W37: 0.00 | X37: 0.10 | Y37: 102.68 | Z37: 100% | AA37: FALSE | AB37: ja | AD37: 0 | AE37: =O37*Parameters_VoIP!$B$13 -> 10.28 | AF37: =Distributievergoedingen!$F$7*M37 -> 10.00 | AH37: 20.28 | AJ37: 20.28 | AL37: 82.50 | AM37: 80.27% | AN37: FALSE
A38: Hosted voipfaciliteit100-nummerblokVVE overstap | B38: Hosted voipfaciliteit100-nummerblokVVE overstap | C38: Telfort zakelijk voip | D38: Hosted voip | E38: faciliteit | F38: 100-nummerblok | G38: VVE overstap | H38: Hosted voipfaciliteit100-nummerblok | J38: =INDEX(mapping!F:F,MATCH($H38,mapping!B:B,0),0) -> nvt | K38: =INDEX(mapping!F:F,MATCH($D38&$E38,mapping!B:B,0),0) -> bijkomende kosten | L38: =MATCH($H38,'Tarieven ZM voice'!B:B,0) -> 20 | M38: =INDEX('Tarieven ZM voice'!F:F,$L38,0) -> 100.00 | N38: =INDEX('Tarieven ZM voice'!G:H,$L38,MATCH($G38,'Tarieven ZM voice'!$G$4:$H$4,0)) -> 100.00 | O38: =M38+N38/Parameters_VoIP!$B$15 -> 102.78 | P38: =IF($K38="nvt","nvt",MATCH($K38,Parameters_VoIP!A:A,0)) -> 36 | Q38: =IF($P38="nvt",0,INDEX(Parameters_VoIP!B:B,P38,0)) -> 0.10 | R38: =INDEX(mapping!F:F,MATCH(D38&F38&$R$3,mapping!B:B,0),0) -> 1.00 | S38: 0.10 | T38: =S38*Parameters_VoIP!$B$6 -> 0.00 | U38: =O38*Parameters_VoIP!$B$17 -> 0.00 | W38: 0.00 | X38: 0.10 | Y38: 102.68 | Z38: 100% | AA38: FALSE | AB38: ja | AD38: 0 | AE38: =O38*Parameters_VoIP!$B$13 -> 10.28 | AF38: =Distributievergoedingen!$F$7*M38 -> 10.00 | AH38: 20.28 | AJ38: 20.28 | AL38: 82.50 | AM38: 80.27% | AN38: FALSE
A39: Hosted voipfaciliteitWachtrijmedewerkerVVE overstap | B39: Hosted voipfaciliteitWachtrijmedewerkerVVE overstap | C39: Telfort zakelijk voip | D39: Hosted voip | E39: faciliteit | F39: Wachtrijmedewerker | G39: VVE overstap | H39: Hosted voipfaciliteitWachtrijmedewerker | J39: =INDEX(mapping!F:F,MATCH($H39,mapping!B:B,0),0) -> nvt | K39: =INDEX(mapping!F:F,MATCH($D39&$E39,mapping!B:B,0),0) -> bijkomende kosten | L39: =MATCH($H39,'Tarieven ZM voice'!B:B,0) -> 27 | M39: =INDEX('Tarieven ZM voice'!F:F,$L39,0) -> 100.00 | N39: =INDEX('Tarieven ZM voice'!G:H,$L39,MATCH($G39,'Tarieven ZM voice'!$G$4:$H$4,0)) -> 100.00 | O39: =M39+N39/Parameters_VoIP!$B$15 -> 102.78 | P39: =IF($K39="nvt","nvt",MATCH($K39,Parameters_VoIP!A:A,0)) -> 36 | Q39: =IF($P39="nvt",0,INDEX(Parameters_VoIP!B:B,P39,0)) -> 0.10 | R39: =INDEX(mapping!F:F,MATCH(D39&F39&$R$3,mapping!B:B,0),0) -> 1.00 | S39: 0.10 | T39: =S39*Parameters_VoIP!$B$6 -> 0.00 | U39: =O39*Parameters_VoIP!$B$17 -> 0.00 | W39: 0.00 | X39: 0.10 | Y39: 102.68 | Z39: 100% | AA39: FALSE | AB39: ja | AD39: 0 | AE39: =O39*Parameters_VoIP!$B$13 -> 10.28 | AF39: =Distributievergoedingen!$F$7*M39 -> 10.00 | AH39: 20.28 | AJ39: 20.28 | AL39: 82.50 | AM39: 80.27% | AN39: FALSE
A40: Hosted voipfaciliteitSoftware integratieVVE overstap | B40: Hosted voipfaciliteitSoftware integratieVVE overstap | C40: Telfort zakelijk voip | D40: Hosted voip | E40: faciliteit | F40: Software integratie | G40: VVE overstap | H40: Hosted voipfaciliteitSoftware integratie | J40: =INDEX(mapping!F:F,MATCH($H40,mapping!B:B,0),0) -> nvt | K40: =INDEX(mapping!F:F,MATCH($D40&$E40,mapping!B:B,0),0) -> bijkomende kosten | L40: =MATCH($H40,'Tarieven ZM voice'!B:B,0) -> 28 | M40: =INDEX('Tarieven ZM voice'!F:F,$L40,0) -> 100.00 | N40: =INDEX('Tarieven ZM voice'!G:H,$L40,MATCH($G40,'Tarieven ZM voice'!$G$4:$H$4,0)) -> 100.00 | O40: =M40+N40/Parameters_VoIP!$B$15 -> 102.78 | P40: =IF($K40="nvt","nvt",MATCH($K40,Parameters_VoIP!A:A,0)) -> 36 | Q40: =IF($P40="nvt",0,INDEX(Parameters_VoIP!B:B,P40,0)) -> 0.10 | R40: =INDEX(mapping!F:F,MATCH(D40&F40&$R$3,mapping!B:B,0),0) -> 1.00 | S40: 0.10 | T40: =S40*Parameters_VoIP!$B$6 -> 0.00 | U40: =O40*Parameters_VoIP!$B$17 -> 0.00 | W40: 0.00 | X40: 0.10 | Y40: 102.68 | Z40: 100% | AA40: FALSE | AB40: ja | AD40: 0 | AE40: =O40*Parameters_VoIP!$B$13 -> 10.28 | AF40: =Distributievergoedingen!$F$7*M40 -> 10.00 | AH40: 20.28 | AJ40: 20.28 | AL40: 82.50 | AM40: 80.27% | AN40: FALSE
A41: =H41&G41 -> Hosted voipfaciliteit5 Extra belgroepenVVE overstap | B41: =H41&G41 -> Hosted voipfaciliteit5 Extra belgroepenVVE overstap | C41: Telfort zakelijk voip | D41: Hosted voip | E41: faciliteit | F41: 5 Extra belgroepen | G41: VVE overstap | H41: =D41&E41&F41 -> Hosted voipfaciliteit5 Extra belgroepen | J41: =INDEX(mapping!F:F,MATCH($H41,mapping!B:B,0),0) -> nvt | K41: =INDEX(mapping!F:F,MATCH($D41&$E41,mapping!B:B,0),0) -> bijkomende kosten | L41: =MATCH($H41,'Tarieven ZM voice'!B:B,0) -> 16 | M41: =INDEX('Tarieven ZM voice'!F:F,$L41,0) -> 100.00 | N41: =INDEX('Tarieven ZM voice'!G:H,$L41,MATCH($G41,'Tarieven ZM voice'!$G$4:$H$4,0)) -> 100.00 | O41: =M41+N41/Parameters_VoIP!$B$15 -> 102.78 | P41: =IF($K41="nvt","nvt",MATCH($K41,Parameters_VoIP!A:A,0)) -> 36 | Q41: =IF($P41="nvt",0,INDEX(Parameters_VoIP!B:B,P41,0)) -> 0.10 | R41: =INDEX(mapping!F:F,MATCH(D41&F41&$R$3,mapping!B:B,0),0) -> 1.00 | S41: =Q41*R41 -> 0.10 | T41: =S41*Parameters_VoIP!$B$6 -> 0.00 | U41: =O41*Parameters_VoIP!$B$17 -> 0.00 | W41: =SUM(T41:V41) -> 0.00 | X41: =S41+W41 -> 0.10 | Y41: =O41-X41 -> 102.68 | Z41: =Y41/O41 -> 100% | AA41: =Z41<0 -> FALSE | AB41: ja | AD41: 0 | AE41: =O41*Parameters_VoIP!$B$13 -> 10.28 | AF41: =Distributievergoedingen!$F$7*M41 -> 10.00 | AH41: 20.28 | AJ41: 20.28 | AL41: 82.50 | AM41: 80.27% | AN41: FALSE
A42: Hosted voipfaciliteitFax naar E-mail (Extra)VVE overstap | B42: Hosted voipfaciliteitFax naar E-mail (Extra)VVE overstap | C42: Telfort zakelijk voip | D42: Hosted voip | E42: faciliteit | F42: Fax naar E-mail (Extra) | G42: VVE overstap | H42: Hosted voipfaciliteitFax naar E-mail (Extra) | J42: =INDEX(mapping!F:F,MATCH($H42,mapping!B:B,0),0) -> nvt | K42: =INDEX(mapping!F:F,MATCH($D42&$E42,mapping!B:B,0),0) -> bijkomende kosten | L42: =MATCH($H42,'Tarieven ZM voice'!B:B,0) -> 29 | M42: =INDEX('Tarieven ZM voice'!F:F,$L42,0) -> 100.00 | N42: =INDEX('Tarieven ZM voice'!G:H,$L42,MATCH($G42,'Tarieven ZM voice'!$G$4:$H$4,0)) -> 100.00 | O42: =M42+N42/Parameters_VoIP!$B$15 -> 102.78 | P42: =IF($K42="nvt","nvt",MATCH($K42,Parameters_VoIP!A:A,0)) -> 36 | Q42: =IF($P42="nvt",0,INDEX(Parameters_VoIP!B:B,P42,0)) -> 0.10 | R42: =INDEX(mapping!F:F,MATCH(D42&F42&$R$3,mapping!B:B,0),0) -> 1.00 | S42: 0.10 | T42: =S42*Parameters_VoIP!$B$6 -> 0.00 | U42: =O42*Parameters_VoIP!$B$17 -> 0.00 | W42: 0.00 | X42: 0.10 | Y42: 102.68 | Z42: 100% | AA42: FALSE | AB42: ja | AD42: 0 | AE42: =O42*Parameters_VoIP!$B$13 -> 10.28 | AF42: =Distributievergoedingen!$F$7*M42 -> 10.00 | AH42: 20.28 | AJ42: 20.28 | AL42: 82.50 | AM42: 80.27% | AN42: FALSE
A43: Hosted voipfaciliteitDoorschakelen nachtVVE overstap | B43: Hosted voipfaciliteitDoorschakelen nachtVVE overstap | C43: Telfort zakelijk voip | D43: Hosted voip | E43: faciliteit | F43: Doorschakelen nacht | G43: VVE overstap | H43: Hosted voipfaciliteitDoorschakelen nacht | J43: =INDEX(mapping!F:F,MATCH($H43,mapping!B:B,0),0) -> nvt | K43: =INDEX(mapping!F:F,MATCH($D43&$E43,mapping!B:B,0),0) -> bijkomende kosten | L43: =MATCH($H43,'Tarieven ZM voice'!B:B,0) -> 30 | M43: =INDEX('Tarieven ZM voice'!F:F,$L43,0) -> 100.00 | N43: =INDEX('Tarieven ZM voice'!G:H,$L43,MATCH($G43,'Tarieven ZM voice'!$G$4:$H$4,0)) -> 100.00 | O43: =M43+N43/Parameters_VoIP!$B$15 -> 102.78 | P43: =IF($K43="nvt","nvt",MATCH($K43,Parameters_VoIP!A:A,0)) -> 36 | Q43: =IF($P43="nvt",0,INDEX(Parameters_VoIP!B:B,P43,0)) -> 0.10 | R43: =INDEX(mapping!F:F,MATCH(D43&F43&$R$3,mapping!B:B,0),0) -> 1.00 | S43: 0.10 | T43: =S43*Parameters_VoIP!$B$6 -> 0.00 | U43: =O43*Parameters_VoIP!$B$17 -> 0.00 | W43: 0.00 | X43: 0.10 | Y43: 102.68 | Z43: 100% | AA43: FALSE | AB43: ja | AD43: 0 | AE43: =O43*Parameters_VoIP!$B$13 -> 10.28 | AF43: =Distributievergoedingen!$F$7*M43 -> 10.00 | AH43: 20.28 | AJ43: 20.28 | AL43: 82.50 | AM43: 80.27% | AN43: FALSE
A44: Hosted voipfaciliteitDoorschakelen bij bezetVVE overstap | B44: Hosted voipfaciliteitDoorschakelen bij bezetVVE overstap | C44: Telfort zakelijk voip | D44: Hosted voip | E44: faciliteit | F44: Doorschakelen bij bezet | G44: VVE overstap | H44: Hosted voipfaciliteitDoorschakelen bij bezet | J44: =INDEX(mapping!F:F,MATCH($H44,mapping!B:B,0),0) -> nvt | K44: =INDEX(mapping!F:F,MATCH($D44&$E44,mapping!B:B,0),0) -> bijkomende kosten | L44: =MATCH($H44,'Tarieven ZM voice'!B:B,0) -> 31 | M44: =INDEX('Tarieven ZM voice'!F:F,$L44,0) -> 100.00 | N44: =INDEX('Tarieven ZM voice'!G:H,$L44,MATCH($G44,'Tarieven ZM voice'!$G$4:$H$4,0)) -> 100.00 | O44: =M44+N44/Parameters_VoIP!$B$15 -> 102.78 | P44: =IF($K44="nvt","nvt",MATCH($K44,Parameters_VoIP!A:A,0)) -> 36 | Q44: =IF($P44="nvt",0,INDEX(Parameters_VoIP!B:B,P44,0)) -> 0.10 | R44: =INDEX(mapping!F:F,MATCH(D44&F44&$R$3,mapping!B:B,0),0) -> 1.00 | S44: 0.10 | T44: =S44*Parameters_VoIP!$B$6 -> 0.00 | U44: =O44*Parameters_VoIP!$B$17 -> 0.00 | W44: 0.00 | X44: 0.10 | Y44: 102.68 | Z44: 100% | AA44: FALSE | AB44: ja | AD44: 0 | AE44: =O44*Parameters_VoIP!$B$13 -> 10.28 | AF44: =Distributievergoedingen!$F$7*M44 -> 10.00 | AH44: 20.28 | AJ44: 20.28 | AL44: 82.50 | AM44: 80.27% | AN44: FALSE
A45: Hosted voipfaciliteitDoorschakelen directVVE overstap | B45: Hosted voipfaciliteitDoorschakelen directVVE overstap | C45: Telfort zakelijk voip | D45: Hosted voip | E45: faciliteit | F45: Doorschakelen direct | G45: VVE overstap | H45: Hosted voipfaciliteitDoorschakelen direct | J45: =INDEX(mapping!F:F,MATCH($H45,mapping!B:B,0),0) -> nvt | K45: =INDEX(mapping!F:F,MATCH($D45&$E45,mapping!B:B,0),0) -> bijkomende kosten | L45: =MATCH($H45,'Tarieven ZM voice'!B:B,0) -> 32 | M45: =INDEX('Tarieven ZM voice'!F:F,$L45,0) -> 100.00 | N45: =INDEX('Tarieven ZM voice'!G:H,$L45,MATCH($G45,'Tarieven ZM voice'!$G$4:$H$4,0)) -> 100.00 | O45: =M45+N45/Parameters_VoIP!$B$15 -> 102.78 | P45: =IF($K45="nvt","nvt",MATCH($K45,Parameters_VoIP!A:A,0)) -> 36 | Q45: =IF($P45="nvt",0,INDEX(Parameters_VoIP!B:B,P45,0)) -> 0.10 | R45: =INDEX(mapping!F:F,MATCH(D45&F45&$R$3,mapping!B:B,0),0) -> 1.00 | S45: 0.10 | T45: =S45*Parameters_VoIP!$B$6 -> 0.00 | U45: =O45*Parameters_VoIP!$B$17 -> 0.00 | W45: 0.00 | X45: 0.10 | Y45: 102.68 | Z45: 100% | AA45: FALSE | AB45: ja | AD45: 0 | AE45: =O45*Parameters_VoIP!$B$13 -> 10.28 | AF45: =Distributievergoedingen!$F$7*M45 -> 10.00 | AH45: 20.28 | AJ45: 20.28 | AL45: 82.50 | AM45: 80.27% | AN45: FALSE
A46: Hosted voipfaciliteitDoorschakelen bij geen gehoorVVE overstap | B46: Hosted voipfaciliteitDoorschakelen bij geen gehoorVVE overstap | C46: Telfort zakelijk voip | D46: Hosted voip | E46: faciliteit | F46: Doorschakelen bij geen gehoor | G46: VVE overstap | H46: Hosted voipfaciliteitDoorschakelen bij geen gehoor | J46: =INDEX(mapping!F:F,MATCH($H46,mapping!B:B,0),0) -> nvt | K46: =INDEX(mapping!F:F,MATCH($D46&$E46,mapping!B:B,0),0) -> bijkomende kosten | L46: =MATCH($H46,'Tarieven ZM voice'!B:B,0) -> 33 | M46: =INDEX('Tarieven ZM voice'!F:F,$L46,0) -> 100.00 | N46: =INDEX('Tarieven ZM voice'!G:H,$L46,MATCH($G46,'Tarieven ZM voice'!$G$4:$H$4,0)) -> 100.00 | O46: =M46+N46/Parameters_VoIP!$B$15 -> 102.78 | P46: =IF($K46="nvt","nvt",MATCH($K46,Parameters_VoIP!A:A,0)) -> 36 | Q46: =IF($P46="nvt",0,INDEX(Parameters_VoIP!B:B,P46,0)) -> 0.10 | R46: =INDEX(mapping!F:F,MATCH(D46&F46&$R$3,mapping!B:B,0),0) -> 1.00 | S46: 0.10 | T46: =S46*Parameters_VoIP!$B$6 -> 0.00 | U46: =O46*Parameters_VoIP!$B$17 -> 0.00 | W46: 0.00 | X46: 0.10 | Y46: 102.68 | Z46: 100% | AA46: FALSE | AB46: ja | AD46: 0 | AE46: =O46*Parameters_VoIP!$B$13 -> 10.28 | AF46: =Distributievergoedingen!$F$7*M46 -> 10.00 | AH46: 20.28 | AJ46: 20.28 | AL46: 82.50 | AM46: 80.27% | AN46: FALSE
A47: Hosted voipfaciliteitDoorschakelen selectiefVVE overstap | B47: Hosted voipfaciliteitDoorschakelen selectiefVVE overstap | C47: Telfort zakelijk voip | D47: Hosted voip | E47: faciliteit | F47: Doorschakelen selectief | G47: VVE overstap | H47: Hosted voipfaciliteitDoorschakelen selectief | J47: =INDEX(mapping!F:F,MATCH($H47,mapping!B:B,0),0) -> nvt | K47: =INDEX(mapping!F:F,MATCH($D47&$E47,mapping!B:B,0),0) -> bijkomende kosten | L47: =MATCH($H47,'Tarieven ZM voice'!B:B,0) -> 34 | M47: =INDEX('Tarieven ZM voice'!F:F,$L47,0) -> 100.00 | N47: =INDEX('Tarieven ZM voice'!G:H,$L47,MATCH($G47,'Tarieven ZM voice'!$G$4:$H$4,0)) -> 100.00 | O47: =M47+N47/Parameters_VoIP!$B$15 -> 102.78 | P47: =IF($K47="nvt","nvt",MATCH($K47,Parameters_VoIP!A:A,0)) -> 36 | Q47: =IF($P47="nvt",0,INDEX(Parameters_VoIP!B:B,P47,0)) -> 0.10 | R47: =INDEX(mapping!F:F,MATCH(D47&F47&$R$3,mapping!B:B,0),0) -> 1.00 | S47: 0.10 | T47: =S47*Parameters_VoIP!$B$6 -> 0.00 | U47: =O47*Parameters_VoIP!$B$17 -> 0.00 | W47: 0.00 | X47: 0.10 | Y47: 102.68 | Z47: 100% | AA47: FALSE | AB47: ja | AD47: 0 | AE47: =O47*Parameters_VoIP!$B$13 -> 10.28 | AF47: =Distributievergoedingen!$F$7*M47 -> 10.00 | AH47: 20.28 | AJ47: 20.28 | AL47: 82.50 | AM47: 80.27% | AN47: FALSE
A48: =H48&G48 -> Hosted voipfaciliteitInVerbindingVVE overstap | B48: =H48&G48 -> Hosted voipfaciliteitInVerbindingVVE overstap | C48: Telfort zakelijk voip | D48: Hosted voip | E48: faciliteit | F48: InVerbinding | G48: VVE overstap | H48: =D48&E48&F48 -> Hosted voipfaciliteitInVerbinding | J48: =INDEX(mapping!F:F,MATCH($H48,mapping!B:B,0),0) -> nvt | K48: =INDEX(mapping!F:F,MATCH($D48&$E48,mapping!B:B,0),0) -> bijkomende kosten | L48: =MATCH($H48,'Tarieven ZM voice'!B:B,0) -> 22 | M48: =INDEX('Tarieven ZM voice'!F:F,$L48,0) -> 100.00 | N48: =INDEX('Tarieven ZM voice'!G:H,$L48,MATCH($G48,'Tarieven ZM voice'!$G$4:$H$4,0)) -> 100.00 | O48: =M48+N48/Parameters_VoIP!$B$15 -> 102.78 | P48: =IF($K48="nvt","nvt",MATCH($K48,Parameters_VoIP!A:A,0)) -> 36 | Q48: =IF($P48="nvt",0,INDEX(Parameters_VoIP!B:B,P48,0)) -> 0.10 | R48: =INDEX(mapping!F:F,MATCH(D48&F48&$R$3,mapping!B:B,0),0) -> 1.00 | S48: =Q48*R48 -> 0.10 | T48: =S48*Parameters_VoIP!$B$6 -> 0.00 | U48: =O48*Parameters_VoIP!$B$17 -> 0.00 | W48: =SUM(T48:V48) -> 0.00 | X48: =S48+W48 -> 0.10 | Y48: =O48-X48 -> 102.68 | Z48: =Y48/O48 -> 100% | AA48: =Z48<0 -> FALSE | AB48: ja | AD48: 0 | AE48: =O48*Parameters_VoIP!$B$13 -> 10.28 | AF48: =Distributievergoedingen!$F$7*M48 -> 10.00 | AH48: =SUM(AE48:AG48) -> 20.28 | AJ48: =AD48+AH48 -> 20.28 | AL48: =O48-AJ48 -> 82.50 | AM48: =AL48/O48 -> 80.27% | AN48: =AM48<0 -> FALSE
A49: Hosted voipfaciliteitService en InstallatieVVE overstap | B49: Hosted voipfaciliteitService en InstallatieVVE overstap | C49: Telfort zakelijk voip | D49: Hosted voip | E49: faciliteit | F49: Service en Installatie | G49: VVE overstap | H49: Hosted voipfaciliteitService en Installatie | J49: =INDEX(mapping!F:F,MATCH($H49,mapping!B:B,0),0) -> nvt | K49: =INDEX(mapping!F:F,MATCH($D49&$E49,mapping!B:B,0),0) -> bijkomende kosten | L49: =MATCH($H49,'Tarieven ZM voice'!B:B,0) -> 21 | M49: =INDEX('Tarieven ZM voice'!F:F,$L49,0) -> 100.00 | N49: =INDEX('Tarieven ZM voice'!G:H,$L49,MATCH($G49,'Tarieven ZM voice'!$G$4:$H$4,0)) -> 100.00 | O49: =M49+N49/Parameters_VoIP!$B$15 -> 102.78 | P49: =IF($K49="nvt","nvt",MATCH($K49,Parameters_VoIP!A:A,0)) -> 36 | Q49: =IF($P49="nvt",0,INDEX(Parameters_VoIP!B:B,P49,0)) -> 0.10 | R49: =INDEX(mapping!F:F,MATCH(D49&F49&$R$3,mapping!B:B,0),0) -> 1.00 | S49: 0.10 | T49: =S49*Parameters_VoIP!$B$6 -> 0.00 | U49: =O49*Parameters_VoIP!$B$17 -> 0.00 | W49: 0.00 | X49: 0.10 | Y49: 102.68 | Z49: 100% | AA49: FALSE | AB49: ja | AD49: 0 | AE49: =O49*Parameters_VoIP!$B$13 -> 10.28 | AF49: =Distributievergoedingen!$F$7*M49 -> 10.00 | AH49: 20.28 | AJ49: 20.28 | AL49: 82.50 | AM49: 80.27% | AN49: FALSE
A50: Hosted voipfaciliteitService en Installatie (Extra)VVE overstap | B50: Hosted voipfaciliteitService en Installatie (Extra)VVE overstap | C50: Telfort zakelijk voip | D50: Hosted voip | E50: faciliteit | F50: Service en Installatie (Extra) | G50: VVE overstap | H50: Hosted voipfaciliteitService en Installatie (Extra) | J50: =INDEX(mapping!F:F,MATCH($H50,mapping!B:B,0),0) -> nvt | K50: =INDEX(mapping!F:F,MATCH($D50&$E50,mapping!B:B,0),0) -> bijkomende kosten | L50: =MATCH($H50,'Tarieven ZM voice'!B:B,0) -> 35 | M50: =INDEX('Tarieven ZM voice'!F:F,$L50,0) -> 100.00 | N50: =INDEX('Tarieven ZM voice'!G:H,$L50,MATCH($G50,'Tarieven ZM voice'!$G$4:$H$4,0)) -> 100.00 | O50: =M50+N50/Parameters_VoIP!$B$15 -> 102.78 | P50: =IF($K50="nvt","nvt",MATCH($K50,Parameters_VoIP!A:A,0)) -> 36 | Q50: =IF($P50="nvt",0,INDEX(Parameters_VoIP!B:B,P50,0)) -> 0.10 | R50: =INDEX(mapping!F:F,MATCH(D50&F50&$R$3,mapping!B:B,0),0) -> 1.00 | S50: 0.10 | T50: =S50*Parameters_VoIP!$B$6 -> 0.00 | U50: =O50*Parameters_VoIP!$B$17 -> 0.00 | W50: 0.00 | X50: 0.10 | Y50: 102.68 | Z50: 100% | AA50: FALSE | AB50: ja | AD50: 0 | AE50: =O50*Parameters_VoIP!$B$13 -> 10.28 | AF50: =Distributievergoedingen!$F$7*M50 -> 10.00 | AH50: 20.28 | AJ50: 20.28 | AL50: 82.50 | AM50: 80.27% | AN50: FALSE
A51: Hosted voipfaciliteitKeuzemenu dag/nachtVVE overstap | B51: Hosted voipfaciliteitKeuzemenu dag/nachtVVE overstap | C51: Telfort zakelijk voip | D51: Hosted voip | E51: faciliteit | F51: Keuzemenu dag/nacht | G51: VVE overstap | H51: Hosted voipfaciliteitKeuzemenu dag/nacht | J51: =INDEX(mapping!F:F,MATCH($H51,mapping!B:B,0),0) -> nvt | K51: =INDEX(mapping!F:F,MATCH($D51&$E51,mapping!B:B,0),0) -> bijkomende kosten | L51: =MATCH($H51,'Tarieven ZM voice'!B:B,0) -> 36 | M51: =INDEX('Tarieven ZM voice'!F:F,$L51,0) -> 100.00 | N51: =INDEX('Tarieven ZM voice'!G:H,$L51,MATCH($G51,'Tarieven ZM voice'!$G$4:$H$4,0)) -> 100.00 | O51: =M51+N51/Parameters_VoIP!$B$15 -> 102.78 | P51: =IF($K51="nvt","nvt",MATCH($K51,Parameters_VoIP!A:A,0)) -> 36 | Q51: =IF($P51="nvt",0,INDEX(Parameters_VoIP!B:B,P51,0)) -> 0.10 | R51: =INDEX(mapping!F:F,MATCH(D51&F51&$R$3,mapping!B:B,0),0) -> 1.00 | S51: 0.10 | T51: =S51*Parameters_VoIP!$B$6 -> 0.00 | U51: =O51*Parameters_VoIP!$B$17 -> 0.00 | W51: 0.00 | X51: 0.10 | Y51: 102.68 | Z51: 100% | AA51: FALSE | AB51: ja | AD51: 0 | AE51: =O51*Parameters_VoIP!$B$13 -> 10.28 | AF51: =Distributievergoedingen!$F$7*M51 -> 10.00 | AH51: 20.28 | AJ51: 20.28 | AL51: 82.50 | AM51: 80.27% | AN51: FALSE

Sheet Rekenblad Verkeer
Q1: RETAIL OMZET | AE1: WHOLESALE KOSTEN | AJ1: ZM KOSTEN | AN1: Kosten totaal | AO1: SQUEEZE TOETS | AS1: REDEN VAN UITSLUITING TARIEFCOMBINATIES | AV1: ULL inkoop | BB1: obv ULL | BI1: SQUEEZE TOETS
C2: dimensies retail | I2: Verkeersprofielen | Q2: Bruto omzet | V2: Korting percentages | Z2: Netto omzet | BB2: ZM KOSTEN | BG2: KOSTEN TOTAAL
A3: identifier rekenblad totaal | B3: Identifier transfersheet | C3: Propositie | D3: Variant | E3: Contractsduur | F3: aantal Spraakkanalen | G3: ZM identifier tarieven | H3: ZM identifier profiel | I3: BIBA_calls | J3: BIBA_minuten | K3: BUBA_calls | L3: BUBA_minuten | M3: VAMO_calls | N3: VAMO_minuten | O3: IDD_calls | P3: IDD_minuten | Q3: BIBA | R3: BUBA | S3: VAMO | T3: IDD | U3: Bruto omzet totaal | V3: BIBA | W3: BUBA | X3: VAMO | Y3: IDD | Z3: BIBA | AA3: BUBA | AB3: VAMO | AC3: IDD | AD3: Omzet netto totaal | AE3: BIBA | AF3: BUBA | AG3: VAMO | AH3: IDD | AI3: W&O Kosten totaal | AJ3: RTO | AK3: DV | AM3: ZM Kosten totaal | AN3: W&O en ZM kosten | AO3: Squeeze Marge (abs) | AP3: Squeeze Marge (%) | AQ3: Squeeze ? | AS3: Wordt tariefcombinatie getoetst? | AT3: Reden van ontbreken toetsing (en dus foutmelding(en) in formules) | AV3: BIBA | AW3: BUBA | AX3: VAMO | AY3: IDD | AZ3: ULL totaal (mnd) | BB3: NRK | BC3: DV | BE3: ZM Kosten totaal | BG3: W&O en ZM kosten | BI3: Squeeze Marge (abs) | BJ3: Squeeze Marge (%) | BK3: Squeeze ?
A4: =C4&D4&E4 -> Hosted voipNederland Basis0 | B4: =C4&D4&E4 -> Hosted voipNederland Basis0 | C4: Hosted voip | D4: Nederland Basis | E4: 0 | H4: =C4&D4 -> Hosted voipNederland Basis | I4: =INDEX(Verkeersprofielen!$B:$B,MATCH($H4,Verkeersprofielen!$A:$A,0)) -> 1,000 | J4: =INDEX(Verkeersprofielen!$C:$C,MATCH($H4,Verkeersprofielen!$A:$A,0)) -> 1,000 | K4: =INDEX(Verkeersprofielen!$D:$D,MATCH($H4,Verkeersprofielen!$A:$A,0)) -> 1,000 | L4: =INDEX(Verkeersprofielen!$E:$E,MATCH($H4,Verkeersprofielen!$A:$A,0)) -> 1,000 | M4: =INDEX(Verkeersprofielen!$F:$F,MATCH($H4,Verkeersprofielen!$A:$A,0)) -> 1,000 | N4: =INDEX(Verkeersprofielen!$G:$G,MATCH($H4,Verkeersprofielen!$A:$A,0)) -> 1,000 | O4: =INDEX(Verkeersprofielen!$H:$H,MATCH($H4,Verkeersprofielen!$A:$A,0)) -> 1,000 | P4: =INDEX(Verkeersprofielen!$I:$I,MATCH($H4,Verkeersprofielen!$A:$A,0)) -> 1,000 | Q4: =INDEX('Tarieven ZM voice'!$F:$F,MATCH($H4&Q$3,'Tarieven ZM voice'!$B:$B,0))*I4+J4*INDEX('Tarieven ZM voice'!$G:$G,MATCH($H4&Q$3,'Tarieven ZM voice'!$B:$B,0)) -> 200.00 | R4: =INDEX('Tarieven ZM voice'!$F:$F,MATCH($H4&R$3,'Tarieven ZM voice'!$B:$B,0))*K4+L4*INDEX('Tarieven ZM voice'!$G:$G,MATCH($H4&R$3,'Tarieven ZM voice'!$B:$B,0)) -> 200.00 | S4: =INDEX('Tarieven ZM voice'!$F:$F,MATCH($H4&S$3,'Tarieven ZM voice'!$B:$B,0))*M4+N4*INDEX('Tarieven ZM voice'!$G:$G,MATCH($H4&S$3,'Tarieven ZM voice'!$B:$B,0)) -> 200.00 | T4: =INDEX('Tarieven ZM voice'!$F:$F,MATCH($H4&T$3,'Tarieven ZM voice'!$B:$B,0))*O4+P4*INDEX('Tarieven ZM voice'!$G:$G,MATCH($H4&T$3,'Tarieven ZM voice'!$B:$B,0)) -> 200.00 | U4: =SUM(Q4:T4) -> 800.00 | V4: =IF(ISNA(MATCH($C4&$E4,'Tarieven ZM voice'!$B:$B,0)),0,INDEX('Tarieven ZM voice'!$F:$I,MATCH($C4&$E4,'Tarieven ZM voice'!$B:$B,0),MATCH(V$3,'Tarieven ZM voice'!$F$58:$I$58,0))) -> 0% | W4: =IF(ISNA(MATCH($C4&$E4,'Tarieven ZM voice'!$B:$B,0)),0,INDEX('Tarieven ZM voice'!$F:$I,MATCH($C4&$E4,'Tarieven ZM voice'!$B:$B,0),MATCH(W$3,'Tarieven ZM voice'!$F$58:$I$58,0))) -> 0% | X4: =IF(ISNA(MATCH($C4&$E4,'Tarieven ZM voice'!$B:$B,0)),0,INDEX('Tarieven ZM voice'!$F:$I,MATCH($C4&$E4,'Tarieven ZM voice'!$B:$B,0),MATCH(X$3,'Tarieven ZM voice'!$F$58:$I$58,0))) -> 0% | Y4: =IF(ISNA(MATCH($C4&$E4,'Tarieven ZM voice'!$B:$B,0)),0,INDEX('Tarieven ZM voice'!$F:$I,MATCH($C4&$E4,'Tarieven ZM voice'!$B:$B,0),MATCH(Y$3,'Tarieven ZM voice'!$F$58:$I$58,0))) -> 0% | Z4: =Q4*(1-V4) -> 200.00 | AA4: =R4*(1-W4) -> 200.00 | AB4: =S4*(1-X4) -> 200.00 | AC4: =T4*(1-Y4) -> 200.00 | AD4: =SUM(Z4:AC4) -> 800.00 | AE4: =INDEX('Hulpblad verkeer'!$K:$K,MATCH($AE$3,'Hulpblad verkeer'!A:A,0))*J4 -> 13.08 | AF4: =INDEX('Hulpblad verkeer'!$K:$K,MATCH('Rekenblad Verkeer'!$AF$3,'Hulpblad verkeer'!A:A,0))*L4 -> 13.08 | AG4: =INDEX('Hulpblad verkeer'!K:K,MATCH('Rekenblad Verkeer'!$AG$3,'Hulpblad verkeer'!A:A,0))*N4 -> 28.67 | AH4: =INDEX('Hulpblad verkeer'!K:K,MATCH('Rekenblad Verkeer'!$AH$3,'Hulpblad verkeer'!A:A,0))*P4 -> 100.06 | AI4: =SUM(AE4:AH4) -> 154.91 | AJ4: =AI4*Parameters_VoIP!$B$6 -> 1.55 | AM4: =SUM(AJ4:AL4) -> 1.55 | AN4: =AI4+AM4 -> 156.46 | AO4: =AD4-AN4 -> 643.54 | AP4: =AO4/AD4 -> 80% | AQ4: =AP4<0 -> FALSE | AS4: ja | AV4: =INDEX('Hulpblad verkeer'!$L:$L,MATCH(AV$3&"-ULL",'Hulpblad verkeer'!$A:$A,0))*J4 -> 23.08 | AW4: =INDEX('Hulpblad verkeer'!$L:$L,MATCH(AW$3&"-ULL",'Hulpblad verkeer'!$A:$A,0))*L4 -> 23.08 | AX4: =INDEX('Hulpblad verkeer'!$L:$L,MATCH(AX$3&"-ULL",'Hulpblad verkeer'!$A:$A,0))*N4 -> 38.67 | AY4: =INDEX('Hulpblad verkeer'!$L:$L,MATCH(AY$3&"-ULL",'Hulpblad verkeer'!$A:$A,0))*P4 -> 110.06 | AZ4: =SUM(AV4:AY4) -> 194.91 | BB4: =AD4*Parameters_VoIP!$B$13 -> 80.00 | BC4: =Distributievergoedingen!$F$7*AD4+Distributievergoedingen!$R$7/Parameters_VoIP!$B$15 -> 80.28 | BE4: =SUM(BB4:BD4) -> 160.28 | BG4: =AZ4+BE4 -> 355.18 | BI4: =AD4-BG4 -> 444.82 | BJ4: =BI4/AD4 -> 55.60% | BK4: =BJ4<0 -> FALSE
A5: =C5&D5&E5 -> Hosted voipNederland Basis1 | B5: =C5&D5&E5 -> Hosted voipNederland Basis1 | C5: Hosted voip | D5: Nederland Basis | E5: 1 | H5: Hosted voipNederland Basis | I5: =INDEX(Verkeersprofielen!$B:$B,MATCH($H5,Verkeersprofielen!$A:$A,0)) -> 1,000 | J5: =INDEX(Verkeersprofielen!$C:$C,MATCH($H5,Verkeersprofielen!$A:$A,0)) -> 1,000 | K5: =INDEX(Verkeersprofielen!$D:$D,MATCH($H5,Verkeersprofielen!$A:$A,0)) -> 1,000 | L5: =INDEX(Verkeersprofielen!$E:$E,MATCH($H5,Verkeersprofielen!$A:$A,0)) -> 1,000 | M5: =INDEX(Verkeersprofielen!$F:$F,MATCH($H5,Verkeersprofielen!$A:$A,0)) -> 1,000 | N5: =INDEX(Verkeersprofielen!$G:$G,MATCH($H5,Verkeersprofielen!$A:$A,0)) -> 1,000 | O5: =INDEX(Verkeersprofielen!$H:$H,MATCH($H5,Verkeersprofielen!$A:$A,0)) -> 1,000 | P5: =INDEX(Verkeersprofielen!$I:$I,MATCH($H5,Verkeersprofielen!$A:$A,0)) -> 1,000 | Q5: =INDEX('Tarieven ZM voice'!$F:$F,MATCH($H5&Q$3,'Tarieven ZM voice'!$B:$B,0))*I5+J5*INDEX('Tarieven ZM voice'!$G:$G,MATCH($H5&Q$3,'Tarieven ZM voice'!$B:$B,0)) -> 200.00 | R5: =INDEX('Tarieven ZM voice'!$F:$F,MATCH($H5&R$3,'Tarieven ZM voice'!$B:$B,0))*K5+L5*INDEX('Tarieven ZM voice'!$G:$G,MATCH($H5&R$3,'Tarieven ZM voice'!$B:$B,0)) -> 200.00 | S5: =INDEX('Tarieven ZM voice'!$F:$F,MATCH($H5&S$3,'Tarieven ZM voice'!$B:$B,0))*M5+N5*INDEX('Tarieven ZM voice'!$G:$G,MATCH($H5&S$3,'Tarieven ZM voice'!$B:$B,0)) -> 200.00 | T5: =INDEX('Tarieven ZM voice'!$F:$F,MATCH($H5&T$3,'Tarieven ZM voice'!$B:$B,0))*O5+P5*INDEX('Tarieven ZM voice'!$G:$G,MATCH($H5&T$3,'Tarieven ZM voice'!$B:$B,0)) -> 200.00 | U5: =SUM(Q5:T5) -> 800.00 | V5: =IF(ISNA(MATCH($C5&$E5,'Tarieven ZM voice'!$B:$B,0)),0,INDEX('Tarieven ZM voice'!$F:$I,MATCH($C5&$E5,'Tarieven ZM voice'!$B:$B,0),MATCH(V$3,'Tarieven ZM voice'!$F$58:$I$58,0))) -> 0% | W5: =IF(ISNA(MATCH($C5&$E5,'Tarieven ZM voice'!$B:$B,0)),0,INDEX('Tarieven ZM voice'!$F:$I,MATCH($C5&$E5,'Tarieven ZM voice'!$B:$B,0),MATCH(W$3,'Tarieven ZM voice'!$F$58:$I$58,0))) -> 0% | X5: =IF(ISNA(MATCH($C5&$E5,'Tarieven ZM voice'!$B:$B,0)),0,INDEX('Tarieven ZM voice'!$F:$I,MATCH($C5&$E5,'Tarieven ZM voice'!$B:$B,0),MATCH(X$3,'Tarieven ZM voice'!$F$58:$I$58,0))) -> 0% | Y5: =IF(ISNA(MATCH($C5&$E5,'Tarieven ZM voice'!$B:$B,0)),0,INDEX('Tarieven ZM voice'!$F:$I,MATCH($C5&$E5,'Tarieven ZM voice'!$B:$B,0),MATCH(Y$3,'Tarieven ZM voice'!$F$58:$I$58,0))) -> 0% | Z5: =Q5*(1-V5) -> 200.00 | AA5: 200.00 | AB5: 200.00 | AC5: 200.00 | AD5: =SUM(Z5:AC5) -> 800.00 | AE5: =INDEX('Hulpblad verkeer'!$K:$K,MATCH($AE$3,'Hulpblad verkeer'!A:A,0))*J5 -> 13.08 | AF5: =INDEX('Hulpblad verkeer'!$K:$K,MATCH('Rekenblad Verkeer'!$AF$3,'Hulpblad verkeer'!A:A,0))*L5 -> 13.08 | AG5: =INDEX('Hulpblad verkeer'!K:K,MATCH('Rekenblad Verkeer'!$AG$3,'Hulpblad verkeer'!A:A,0))*N5 -> 28.67 | AH5: =INDEX('Hulpblad verkeer'!K:K,MATCH('Rekenblad Verkeer'!$AH$3,'Hulpblad verkeer'!A:A,0))*P5 -> 100.06 | AI5: =SUM(AE5:AH5) -> 154.91 | AJ5: =AI5*Parameters_VoIP!$B$6 -> 1.55 | AM5: =SUM(AJ5:AL5) -> 1.55 | AN5: =AI5+AM5 -> 156.46 | AO5: =AD5-AN5 -> 643.54 | AP5: =AO5/AD5 -> 80% | AQ5: =AP5<0 -> FALSE | AS5: ja | AV5: =INDEX('Hulpblad verkeer'!$L:$L,MATCH(AV$3&"-ULL",'Hulpblad verkeer'!$A:$A,0))*J5 -> 23.08 | AW5: =INDEX('Hulpblad verkeer'!$L:$L,MATCH(AW$3&"-ULL",'Hulpblad verkeer'!$A:$A,0))*L5 -> 23.08 | AX5: =INDEX('Hulpblad verkeer'!$L:$L,MATCH(AX$3&"-ULL",'Hulpblad verkeer'!$A:$A,0))*N5 -> 38.67 | AY5: =INDEX('Hulpblad verkeer'!$L:$L,MATCH(AY$3&"-ULL",'Hulpblad verkeer'!$A:$A,0))*P5 -> 110.06 | AZ5: =SUM(AV5:AY5) -> 194.91 | BB5: =AD5*Parameters_VoIP!$B$13 -> 80.00 | BC5: =Distributievergoedingen!$F$7*AD5+Distributievergoedingen!$R$7/Parameters_VoIP!$B$15 -> 80.28 | BE5: =SUM(BB5:BD5) -> 160.28 | BG5: =AZ5+BE5 -> 355.18 | BI5: =AD5-BG5 -> 444.82 | BJ5: =BI5/AD5 -> 55.60% | BK5: =BJ5<0 -> FALSE
A6: =C6&D6&E6 -> Hosted voipNederland Basis2 | B6: =C6&D6&E6 -> Hosted voipNederland Basis2 | C6: Hosted voip | D6: Nederland Basis | E6: 2 | H6: Hosted voipNederland Basis | I6: =INDEX(Verkeersprofielen!$B:$B,MATCH($H6,Verkeersprofielen!$A:$A,0)) -> 1,000 | J6: =INDEX(Verkeersprofielen!$C:$C,MATCH($H6,Verkeersprofielen!$A:$A,0)) -> 1,000 | K6: =INDEX(Verkeersprofielen!$D:$D,MATCH($H6,Verkeersprofielen!$A:$A,0)) -> 1,000 | L6: =INDEX(Verkeersprofielen!$E:$E,MATCH($H6,Verkeersprofielen!$A:$A,0)) -> 1,000 | M6: =INDEX(Verkeersprofielen!$F:$F,MATCH($H6,Verkeersprofielen!$A:$A,0)) -> 1,000 | N6: =INDEX(Verkeersprofielen!$G:$G,MATCH($H6,Verkeersprofielen!$A:$A,0)) -> 1,000 | O6: =INDEX(Verkeersprofielen!$H:$H,MATCH($H6,Verkeersprofielen!$A:$A,0)) -> 1,000 | P6: =INDEX(Verkeersprofielen!$I:$I,MATCH($H6,Verkeersprofielen!$A:$A,0)) -> 1,000 | Q6: =INDEX('Tarieven ZM voice'!$F:$F,MATCH($H6&Q$3,'Tarieven ZM voice'!$B:$B,0))*I6+J6*INDEX('Tarieven ZM voice'!$G:$G,MATCH($H6&Q$3,'Tarieven ZM voice'!$B:$B,0)) -> 200.00 | R6: =INDEX('Tarieven ZM voice'!$F:$F,MATCH($H6&R$3,'Tarieven ZM voice'!$B:$B,0))*K6+L6*INDEX('Tarieven ZM voice'!$G:$G,MATCH($H6&R$3,'Tarieven ZM voice'!$B:$B,0)) -> 200.00 | S6: =INDEX('Tarieven ZM voice'!$F:$F,MATCH($H6&S$3,'Tarieven ZM voice'!$B:$B,0))*M6+N6*INDEX('Tarieven ZM voice'!$G:$G,MATCH($H6&S$3,'Tarieven ZM voice'!$B:$B,0)) -> 200.00 | T6: =INDEX('Tarieven ZM voice'!$F:$F,MATCH($H6&T$3,'Tarieven ZM voice'!$B:$B,0))*O6+P6*INDEX('Tarieven ZM voice'!$G:$G,MATCH($H6&T$3,'Tarieven ZM voice'!$B:$B,0)) -> 200.00 | U6: =SUM(Q6:T6) -> 800.00 | V6: =IF(ISNA(MATCH($C6&$E6,'Tarieven ZM voice'!$B:$B,0)),0,INDEX('Tarieven ZM voice'!$F:$I,MATCH($C6&$E6,'Tarieven ZM voice'!$B:$B,0),MATCH(V$3,'Tarieven ZM voice'!$F$58:$I$58,0))) -> 0% | W6: =IF(ISNA(MATCH($C6&$E6,'Tarieven ZM voice'!$B:$B,0)),0,INDEX('Tarieven ZM voice'!$F:$I,MATCH($C6&$E6,'Tarieven ZM voice'!$B:$B,0),MATCH(W$3,'Tarieven ZM voice'!$F$58:$I$58,0))) -> 0% | X6: =IF(ISNA(MATCH($C6&$E6,'Tarieven ZM voice'!$B:$B,0)),0,INDEX('Tarieven ZM voice'!$F:$I,MATCH($C6&$E6,'Tarieven ZM voice'!$B:$B,0),MATCH(X$3,'Tarieven ZM voice'!$F$58:$I$58,0))) -> 0% | Y6: =IF(ISNA(MATCH($C6&$E6,'Tarieven ZM voice'!$B:$B,0)),0,INDEX('Tarieven ZM voice'!$F:$I,MATCH($C6&$E6,'Tarieven ZM voice'!$B:$B,0),MATCH(Y$3,'Tarieven ZM voice'!$F$58:$I$58,0))) -> 0% | Z6: =Q6*(1-V6) -> 200.00 | AA6: =R6*(1-W6) -> 200.00 | AB6: =S6*(1-X6) -> 200.00 | AC6: =T6*(1-Y6) -> 200.00 | AD6: =SUM(Z6:AC6) -> 800.00 | AE6: =INDEX('Hulpblad verkeer'!$K:$K,MATCH($AE$3,'Hulpblad verkeer'!A:A,0))*J6 -> 13.08 | AF6: =INDEX('Hulpblad verkeer'!$K:$K,MATCH('Rekenblad Verkeer'!$AF$3,'Hulpblad verkeer'!A:A,0))*L6 -> 13.08 | AG6: =INDEX('Hulpblad verkeer'!K:K,MATCH('Rekenblad Verkeer'!$AG$3,'Hulpblad verkeer'!A:A,0))*N6 -> 28.67 | AH6: =INDEX('Hulpblad verkeer'!K:K,MATCH('Rekenblad Verkeer'!$AH$3,'Hulpblad verkeer'!A:A,0))*P6 -> 100.06 | AI6: =SUM(AE6:AH6) -> 154.91 | AJ6: =AI6*Parameters_VoIP!$B$6 -> 1.55 | AM6: =SUM(AJ6:AL6) -> 1.55 | AN6: =AI6+AM6 -> 156.46 | AO6: =AD6-AN6 -> 643.54 | AP6: =AO6/AD6 -> 80% | AQ6: =AP6<0 -> FALSE | AS6: ja | AV6: =INDEX('Hulpblad verkeer'!$L:$L,MATCH(AV$3&"-ULL",'Hulpblad verkeer'!$A:$A,0))*J6 -> 23.08 | AW6: =INDEX('Hulpblad verkeer'!$L:$L,MATCH(AW$3&"-ULL",'Hulpblad verkeer'!$A:$A,0))*L6 -> 23.08 | AX6: =INDEX('Hulpblad verkeer'!$L:$L,MATCH(AX$3&"-ULL",'Hulpblad verkeer'!$A:$A,0))*N6 -> 38.67 | AY6: =INDEX('Hulpblad verkeer'!$L:$L,MATCH(AY$3&"-ULL",'Hulpblad verkeer'!$A:$A,0))*P6 -> 110.06 | AZ6: =SUM(AV6:AY6) -> 194.91 | BB6: =AD6*Parameters_VoIP!$B$13 -> 80.00 | BC6: =Distributievergoedingen!$F$7*AD6+Distributievergoedingen!$R$7/Parameters_VoIP!$B$15 -> 80.28 | BE6: =SUM(BB6:BD6) -> 160.28 | BG6: =AZ6+BE6 -> 355.18 | BI6: =AD6-BG6 -> 444.82 | BJ6: =BI6/AD6 -> 55.60% | BK6: =BJ6<0 -> FALSE
A7: Hosted voipNederland Basis3 | B7: Hosted voipNederland Basis3 | C7: Hosted voip | D7: Nederland Basis | E7: 3 | H7: Hosted voipNederland Basis | I7: =INDEX(Verkeersprofielen!$B:$B,MATCH($H7,Verkeersprofielen!$A:$A,0)) -> 1,000 | J7: =INDEX(Verkeersprofielen!$C:$C,MATCH($H7,Verkeersprofielen!$A:$A,0)) -> 1,000 | K7: =INDEX(Verkeersprofielen!$D:$D,MATCH($H7,Verkeersprofielen!$A:$A,0)) -> 1,000 | L7: =INDEX(Verkeersprofielen!$E:$E,MATCH($H7,Verkeersprofielen!$A:$A,0)) -> 1,000 | M7: =INDEX(Verkeersprofielen!$F:$F,MATCH($H7,Verkeersprofielen!$A:$A,0)) -> 1,000 | N7: =INDEX(Verkeersprofielen!$G:$G,MATCH($H7,Verkeersprofielen!$A:$A,0)) -> 1,000 | O7: =INDEX(Verkeersprofielen!$H:$H,MATCH($H7,Verkeersprofielen!$A:$A,0)) -> 1,000 | P7: =INDEX(Verkeersprofielen!$I:$I,MATCH($H7,Verkeersprofielen!$A:$A,0)) -> 1,000 | Q7: =INDEX('Tarieven ZM voice'!$F:$F,MATCH($H7&Q$3,'Tarieven ZM voice'!$B:$B,0))*I7+J7*INDEX('Tarieven ZM voice'!$G:$G,MATCH($H7&Q$3,'Tarieven ZM voice'!$B:$B,0)) -> 200.00 | R7: =INDEX('Tarieven ZM voice'!$F:$F,MATCH($H7&R$3,'Tarieven ZM voice'!$B:$B,0))*K7+L7*INDEX('Tarieven ZM voice'!$G:$G,MATCH($H7&R$3,'Tarieven ZM voice'!$B:$B,0)) -> 200.00 | S7: =INDEX('Tarieven ZM voice'!$F:$F,MATCH($H7&S$3,'Tarieven ZM voice'!$B:$B,0))*M7+N7*INDEX('Tarieven ZM voice'!$G:$G,MATCH($H7&S$3,'Tarieven ZM voice'!$B:$B,0)) -> 200.00 | T7: =INDEX('Tarieven ZM voice'!$F:$F,MATCH($H7&T$3,'Tarieven ZM voice'!$B:$B,0))*O7+P7*INDEX('Tarieven ZM voice'!$G:$G,MATCH($H7&T$3,'Tarieven ZM voice'!$B:$B,0)) -> 200.00 | U7: 800.00 | V7: =IF(ISNA(MATCH($C7&$E7,'Tarieven ZM voice'!$B:$B,0)),0,INDEX('Tarieven ZM voice'!$F:$I,MATCH($C7&$E7,'Tarieven ZM voice'!$B:$B,0),MATCH(V$3,'Tarieven ZM voice'!$F$58:$I$58,0))) -> 0% | W7: =IF(ISNA(MATCH($C7&$E7,'Tarieven ZM voice'!$B:$B,0)),0,INDEX('Tarieven ZM voice'!$F:$I,MATCH($C7&$E7,'Tarieven ZM voice'!$B:$B,0),MATCH(W$3,'Tarieven ZM voice'!$F$58:$I$58,0))) -> 0% | X7: =IF(ISNA(MATCH($C7&$E7,'Tarieven ZM voice'!$B:$B,0)),0,INDEX('Tarieven ZM voice'!$F:$I,MATCH($C7&$E7,'Tarieven ZM voice'!$B:$B,0),MATCH(X$3,'Tarieven ZM voice'!$F$58:$I$58,0))) -> 0% | Y7: =IF(ISNA(MATCH($C7&$E7,'Tarieven ZM voice'!$B:$B,0)),0,INDEX('Tarieven ZM voice'!$F:$I,MATCH($C7&$E7,'Tarieven ZM voice'!$B:$B,0),MATCH(Y$3,'Tarieven ZM voice'!$F$58:$I$58,0))) -> 0% | Z7: 200.00 | AA7: 200.00 | AB7: 200.00 | AC7: 200.00 | AD7: 800.00 | AE7: =INDEX('Hulpblad verkeer'!$K:$K,MATCH($AE$3,'Hulpblad verkeer'!A:A,0))*J7 -> 13.08 | AF7: =INDEX('Hulpblad verkeer'!$K:$K,MATCH('Rekenblad Verkeer'!$AF$3,'Hulpblad verkeer'!A:A,0))*L7 -> 13.08 | AG7: =INDEX('Hulpblad verkeer'!K:K,MATCH('Rekenblad Verkeer'!$AG$3,'Hulpblad verkeer'!A:A,0))*N7 -> 28.67 | AH7: =INDEX('Hulpblad verkeer'!K:K,MATCH('Rekenblad Verkeer'!$AH$3,'Hulpblad verkeer'!A:A,0))*P7 -> 100.06 | AI7: 154.91 | AJ7: =AI7*Parameters_VoIP!$B$6 -> 1.55 | AM7: 1.55 | AN7: 156.46 | AO7: 643.54 | AP7: 80% | AQ7: FALSE | AS7: ja | AV7: =INDEX('Hulpblad verkeer'!$L:$L,MATCH(AV$3&"-ULL",'Hulpblad verkeer'!$A:$A,0))*J7 -> 23.08 | AW7: =INDEX('Hulpblad verkeer'!$L:$L,MATCH(AW$3&"-ULL",'Hulpblad verkeer'!$A:$A,0))*L7 -> 23.08 | AX7: =INDEX('Hulpblad verkeer'!$L:$L,MATCH(AX$3&"-ULL",'Hulpblad verkeer'!$A:$A,0))*N7 -> 38.67 | AY7: =INDEX('Hulpblad verkeer'!$L:$L,MATCH(AY$3&"-ULL",'Hulpblad verkeer'!$A:$A,0))*P7 -> 110.06 | AZ7: 194.91 | BB7: =AD7*Parameters_VoIP!$B$13 -> 80.00 | BC7: =Distributievergoedingen!$F$7*AD7+Distributievergoedingen!$R$7/Parameters_VoIP!$B$15 -> 80.28 | BE7: 160.28 | BG7: 355.18 | BI7: 444.82 | BJ7: 55.60% | BK7: FALSE
A8: =C8&D8&E8 -> Hosted voipNederland Onbeperkt0 | B8: =C8&D8&E8 -> Hosted voipNederland Onbeperkt0 | C8: Hosted voip | D8: Nederland Onbeperkt | E8: 0 | H8: =C8&D8 -> Hosted voipNederland Onbeperkt | I8: =INDEX(Verkeersprofielen!$B:$B,MATCH($H8,Verkeersprofielen!$A:$A,0)) -> 1,000 | J8: =INDEX(Verkeersprofielen!$C:$C,MATCH($H8,Verkeersprofielen!$A:$A,0)) -> 1,000 | K8: =INDEX(Verkeersprofielen!$D:$D,MATCH($H8,Verkeersprofielen!$A:$A,0)) -> 1,000 | L8: =INDEX(Verkeersprofielen!$E:$E,MATCH($H8,Verkeersprofielen!$A:$A,0)) -> 1,000 | M8: =INDEX(Verkeersprofielen!$F:$F,MATCH($H8,Verkeersprofielen!$A:$A,0)) -> 1,000 | N8: =INDEX(Verkeersprofielen!$G:$G,MATCH($H8,Verkeersprofielen!$A:$A,0)) -> 1,000 | O8: =INDEX(Verkeersprofielen!$H:$H,MATCH($H8,Verkeersprofielen!$A:$A,0)) -> 1,000 | P8: =INDEX(Verkeersprofielen!$I:$I,MATCH($H8,Verkeersprofielen!$A:$A,0)) -> 1,000 | Q8: =INDEX('Tarieven ZM voice'!$F:$F,MATCH($H8&Q$3,'Tarieven ZM voice'!$B:$B,0))*I8+J8*INDEX('Tarieven ZM voice'!$G:$G,MATCH($H8&Q$3,'Tarieven ZM voice'!$B:$B,0)) -> 200.00 | R8: =INDEX('Tarieven ZM voice'!$F:$F,MATCH($H8&R$3,'Tarieven ZM voice'!$B:$B,0))*K8+L8*INDEX('Tarieven ZM voice'!$G:$G,MATCH($H8&R$3,'Tarieven ZM voice'!$B:$B,0)) -> 200.00 | S8: =INDEX('Tarieven ZM voice'!$F:$F,MATCH($H8&S$3,'Tarieven ZM voice'!$B:$B,0))*M8+N8*INDEX('Tarieven ZM voice'!$G:$G,MATCH($H8&S$3,'Tarieven ZM voice'!$B:$B,0)) -> 200.00 | T8: =INDEX('Tarieven ZM voice'!$F:$F,MATCH($H8&T$3,'Tarieven ZM voice'!$B:$B,0))*O8+P8*INDEX('Tarieven ZM voice'!$G:$G,MATCH($H8&T$3,'Tarieven ZM voice'!$B:$B,0)) -> 200.00 | U8: =SUM(Q8:T8) -> 800.00 | V8: =IF(ISNA(MATCH($C8&$E8,'Tarieven ZM voice'!$B:$B,0)),0,INDEX('Tarieven ZM voice'!$F:$I,MATCH($C8&$E8,'Tarieven ZM voice'!$B:$B,0),MATCH(V$3,'Tarieven ZM voice'!$F$58:$I$58,0))) -> 0% | W8: =IF(ISNA(MATCH($C8&$E8,'Tarieven ZM voice'!$B:$B,0)),0,INDEX('Tarieven ZM voice'!$F:$I,MATCH($C8&$E8,'Tarieven ZM voice'!$B:$B,0),MATCH(W$3,'Tarieven ZM voice'!$F$58:$I$58,0))) -> 0% | X8: =IF(ISNA(MATCH($C8&$E8,'Tarieven ZM voice'!$B:$B,0)),0,INDEX('Tarieven ZM voice'!$F:$I,MATCH($C8&$E8,'Tarieven ZM voice'!$B:$B,0),MATCH(X$3,'Tarieven ZM voice'!$F$58:$I$58,0))) -> 0% | Y8: =IF(ISNA(MATCH($C8&$E8,'Tarieven ZM voice'!$B:$B,0)),0,INDEX('Tarieven ZM voice'!$F:$I,MATCH($C8&$E8,'Tarieven ZM voice'!$B:$B,0),MATCH(Y$3,'Tarieven ZM voice'!$F$58:$I$58,0))) -> 0% | Z8: =Q8*(1-V8) -> 200.00 | AA8: =R8*(1-W8) -> 200.00 | AB8: =S8*(1-X8) -> 200.00 | AC8: =T8*(1-Y8) -> 200.00 | AD8: =SUM(Z8:AC8) -> 800.00 | AE8: =INDEX('Hulpblad verkeer'!$K:$K,MATCH($AE$3,'Hulpblad verkeer'!A:A,0))*J8 -> 13.08 | AF8: =INDEX('Hulpblad verkeer'!$K:$K,MATCH('Rekenblad Verkeer'!$AF$3,'Hulpblad verkeer'!A:A,0))*L8 -> 13.08 | AG8: =INDEX('Hulpblad verkeer'!K:K,MATCH('Rekenblad Verkeer'!$AG$3,'Hulpblad verkeer'!A:A,0))*N8 -> 28.67 | AH8: =INDEX('Hulpblad verkeer'!K:K,MATCH('Rekenblad Verkeer'!$AH$3,'Hulpblad verkeer'!A:A,0))*P8 -> 100.06 | AI8: =SUM(AE8:AH8) -> 154.91 | AJ8: =AI8*Parameters_VoIP!$B$6 -> 1.55 | AM8: =SUM(AJ8:AL8) -> 1.55 | AN8: =AI8+AM8 -> 156.46 | AO8: =AD8-AN8 -> 643.54 | AP8: =AO8/AD8 -> 80% | AQ8: =AP8<0 -> FALSE | AS8: ja | AV8: =INDEX('Hulpblad verkeer'!$L:$L,MATCH(AV$3&"-ULL",'Hulpblad verkeer'!$A:$A,0))*J8 -> 23.08 | AW8: =INDEX('Hulpblad verkeer'!$L:$L,MATCH(AW$3&"-ULL",'Hulpblad verkeer'!$A:$A,0))*L8 -> 23.08 | AX8: =INDEX('Hulpblad verkeer'!$L:$L,MATCH(AX$3&"-ULL",'Hulpblad verkeer'!$A:$A,0))*N8 -> 38.67 | AY8: =INDEX('Hulpblad verkeer'!$L:$L,MATCH(AY$3&"-ULL",'Hulpblad verkeer'!$A:$A,0))*P8 -> 110.06 | AZ8: =SUM(AV8:AY8) -> 194.91 | BB8: =AD8*Parameters_VoIP!$B$13 -> 80.00 | BC8: =Distributievergoedingen!$F$7*AD8+Distributievergoedingen!$R$7/Parameters_VoIP!$B$15 -> 80.28 | BE8: =SUM(BB8:BD8) -> 160.28 | BG8: =AZ8+BE8 -> 355.18 | BI8: =AD8-BG8 -> 444.82 | BJ8: =BI8/AD8 -> 55.60% | BK8: =BJ8<0 -> FALSE
A9: Hosted voipNederland Onbeperkt1 | B9: Hosted voipNederland Onbeperkt1 | C9: Hosted voip | D9: Nederland Onbeperkt | E9: 1 | H9: Hosted voipNederland Onbeperkt | I9: =INDEX(Verkeersprofielen!$B:$B,MATCH($H9,Verkeersprofielen!$A:$A,0)) -> 1,000 | J9: =INDEX(Verkeersprofielen!$C:$C,MATCH($H9,Verkeersprofielen!$A:$A,0)) -> 1,000 | K9: =INDEX(Verkeersprofielen!$D:$D,MATCH($H9,Verkeersprofielen!$A:$A,0)) -> 1,000 | L9: =INDEX(Verkeersprofielen!$E:$E,MATCH($H9,Verkeersprofielen!$A:$A,0)) -> 1,000 | M9: =INDEX(Verkeersprofielen!$F:$F,MATCH($H9,Verkeersprofielen!$A:$A,0)) -> 1,000 | N9: =INDEX(Verkeersprofielen!$G:$G,MATCH($H9,Verkeersprofielen!$A:$A,0)) -> 1,000 | O9: =INDEX(Verkeersprofielen!$H:$H,MATCH($H9,Verkeersprofielen!$A:$A,0)) -> 1,000 | P9: =INDEX(Verkeersprofielen!$I:$I,MATCH($H9,Verkeersprofielen!$A:$A,0)) -> 1,000 | Q9: =INDEX('Tarieven ZM voice'!$F:$F,MATCH($H9&Q$3,'Tarieven ZM voice'!$B:$B,0))*I9+J9*INDEX('Tarieven ZM voice'!$G:$G,MATCH($H9&Q$3,'Tarieven ZM voice'!$B:$B,0)) -> 200.00 | R9: =INDEX('Tarieven ZM voice'!$F:$F,MATCH($H9&R$3,'Tarieven ZM voice'!$B:$B,0))*K9+L9*INDEX('Tarieven ZM voice'!$G:$G,MATCH($H9&R$3,'Tarieven ZM voice'!$B:$B,0)) -> 200.00 | S9: =INDEX('Tarieven ZM voice'!$F:$F,MATCH($H9&S$3,'Tarieven ZM voice'!$B:$B,0))*M9+N9*INDEX('Tarieven ZM voice'!$G:$G,MATCH($H9&S$3,'Tarieven ZM voice'!$B:$B,0)) -> 200.00 | T9: =INDEX('Tarieven ZM voice'!$F:$F,MATCH($H9&T$3,'Tarieven ZM voice'!$B:$B,0))*O9+P9*INDEX('Tarieven ZM voice'!$G:$G,MATCH($H9&T$3,'Tarieven ZM voice'!$B:$B,0)) -> 200.00 | U9: 800.00 | V9: =IF(ISNA(MATCH($C9&$E9,'Tarieven ZM voice'!$B:$B,0)),0,INDEX('Tarieven ZM voice'!$F:$I,MATCH($C9&$E9,'Tarieven ZM voice'!$B:$B,0),MATCH(V$3,'Tarieven ZM voice'!$F$58:$I$58,0))) -> 0% | W9: =IF(ISNA(MATCH($C9&$E9,'Tarieven ZM voice'!$B:$B,0)),0,INDEX('Tarieven ZM voice'!$F:$I,MATCH($C9&$E9,'Tarieven ZM voice'!$B:$B,0),MATCH(W$3,'Tarieven ZM voice'!$F$58:$I$58,0))) -> 0% | X9: =IF(ISNA(MATCH($C9&$E9,'Tarieven ZM voice'!$B:$B,0)),0,INDEX('Tarieven ZM voice'!$F:$I,MATCH($C9&$E9,'Tarieven ZM voice'!$B:$B,0),MATCH(X$3,'Tarieven ZM voice'!$F$58:$I$58,0))) -> 0% | Y9: =IF(ISNA(MATCH($C9&$E9,'Tarieven ZM voice'!$B:$B,0)),0,INDEX('Tarieven ZM voice'!$F:$I,MATCH($C9&$E9,'Tarieven ZM voice'!$B:$B,0),MATCH(Y$3,'Tarieven ZM voice'!$F$58:$I$58,0))) -> 0% | Z9: 200.00 | AA9: 200.00 | AB9: 200.00 | AC9: 200.00 | AD9: 800.00 | AE9: =INDEX('Hulpblad verkeer'!$K:$K,MATCH($AE$3,'Hulpblad verkeer'!A:A,0))*J9 -> 13.08 | AF9: =INDEX('Hulpblad verkeer'!$K:$K,MATCH('Rekenblad Verkeer'!$AF$3,'Hulpblad verkeer'!A:A,0))*L9 -> 13.08 | AG9: =INDEX('Hulpblad verkeer'!K:K,MATCH('Rekenblad Verkeer'!$AG$3,'Hulpblad verkeer'!A:A,0))*N9 -> 28.67 | AH9: =INDEX('Hulpblad verkeer'!K:K,MATCH('Rekenblad Verkeer'!$AH$3,'Hulpblad verkeer'!A:A,0))*P9 -> 100.06 | AI9: 154.91 | AJ9: =AI9*Parameters_VoIP!$B$6 -> 1.55 | AM9: 1.55 | AN9: 156.46 | AO9: 643.54 | AP9: 80% | AQ9: FALSE | AS9: ja | AV9: =INDEX('Hulpblad verkeer'!$L:$L,MATCH(AV$3&"-ULL",'Hulpblad verkeer'!$A:$A,0))*J9 -> 23.08 | AW9: =INDEX('Hulpblad verkeer'!$L:$L,MATCH(AW$3&"-ULL",'Hulpblad verkeer'!$A:$A,0))*L9 -> 23.08 | AX9: =INDEX('Hulpblad verkeer'!$L:$L,MATCH(AX$3&"-ULL",'Hulpblad verkeer'!$A:$A,0))*N9 -> 38.67 | AY9: =INDEX('Hulpblad verkeer'!$L:$L,MATCH(AY$3&"-ULL",'Hulpblad verkeer'!$A:$A,0))*P9 -> 110.06 | AZ9: 194.91 | BB9: =AD9*Parameters_VoIP!$B$13 -> 80.00 | BC9: =Distributievergoedingen!$F$7*AD9+Distributievergoedingen!$R$7/Parameters_VoIP!$B$15 -> 80.28 | BE9: 160.28 | BG9: 355.18 | BI9: 444.82 | BJ9: 55.60% | BK9: FALSE
A10: Hosted voipNederland Onbeperkt2 | B10: Hosted voipNederland Onbeperkt2 | C10: Hosted voip | D10: Nederland Onbeperkt | E10: 2 | H10: Hosted voipNederland Onbeperkt | I10: =INDEX(Verkeersprofielen!$B:$B,MATCH($H10,Verkeersprofielen!$A:$A,0)) -> 1,000 | J10: =INDEX(Verkeersprofielen!$C:$C,MATCH($H10,Verkeersprofielen!$A:$A,0)) -> 1,000 | K10: =INDEX(Verkeersprofielen!$D:$D,MATCH($H10,Verkeersprofielen!$A:$A,0)) -> 1,000 | L10: =INDEX(Verkeersprofielen!$E:$E,MATCH($H10,Verkeersprofielen!$A:$A,0)) -> 1,000 | M10: =INDEX(Verkeersprofielen!$F:$F,MATCH($H10,Verkeersprofielen!$A:$A,0)) -> 1,000 | N10: =INDEX(Verkeersprofielen!$G:$G,MATCH($H10,Verkeersprofielen!$A:$A,0)) -> 1,000 | O10: =INDEX(Verkeersprofielen!$H:$H,MATCH($H10,Verkeersprofielen!$A:$A,0)) -> 1,000 | P10: =INDEX(Verkeersprofielen!$I:$I,MATCH($H10,Verkeersprofielen!$A:$A,0)) -> 1,000 | Q10: =INDEX('Tarieven ZM voice'!$F:$F,MATCH($H10&Q$3,'Tarieven ZM voice'!$B:$B,0))*I10+J10*INDEX('Tarieven ZM voice'!$G:$G,MATCH($H10&Q$3,'Tarieven ZM voice'!$B:$B,0)) -> 200.00 | R10: =INDEX('Tarieven ZM voice'!$F:$F,MATCH($H10&R$3,'Tarieven ZM voice'!$B:$B,0))*K10+L10*INDEX('Tarieven ZM voice'!$G:$G,MATCH($H10&R$3,'Tarieven ZM voice'!$B:$B,0)) -> 200.00 | S10: =INDEX('Tarieven ZM voice'!$F:$F,MATCH($H10&S$3,'Tarieven ZM voice'!$B:$B,0))*M10+N10*INDEX('Tarieven ZM voice'!$G:$G,MATCH($H10&S$3,'Tarieven ZM voice'!$B:$B,0)) -> 200.00 | T10: =INDEX('Tarieven ZM voice'!$F:$F,MATCH($H10&T$3,'Tarieven ZM voice'!$B:$B,0))*O10+P10*INDEX('Tarieven ZM voice'!$G:$G,MATCH($H10&T$3,'Tarieven ZM voice'!$B:$B,0)) -> 200.00 | U10: 800.00 | V10: =IF(ISNA(MATCH($C10&$E10,'Tarieven ZM voice'!$B:$B,0)),0,INDEX('Tarieven ZM voice'!$F:$I,MATCH($C10&$E10,'Tarieven ZM voice'!$B:$B,0),MATCH(V$3,'Tarieven ZM voice'!$F$58:$I$58,0))) -> 0% | W10: =IF(ISNA(MATCH($C10&$E10,'Tarieven ZM voice'!$B:$B,0)),0,INDEX('Tarieven ZM voice'!$F:$I,MATCH($C10&$E10,'Tarieven ZM voice'!$B:$B,0),MATCH(W$3,'Tarieven ZM voice'!$F$58:$I$58,0))) -> 0% | X10: =IF(ISNA(MATCH($C10&$E10,'Tarieven ZM voice'!$B:$B,0)),0,INDEX('Tarieven ZM voice'!$F:$I,MATCH($C10&$E10,'Tarieven ZM voice'!$B:$B,0),MATCH(X$3,'Tarieven ZM voice'!$F$58:$I$58,0))) -> 0% | Y10: =IF(ISNA(MATCH($C10&$E10,'Tarieven ZM voice'!$B:$B,0)),0,INDEX('Tarieven ZM voice'!$F:$I,MATCH($C10&$E10,'Tarieven ZM voice'!$B:$B,0),MATCH(Y$3,'Tarieven ZM voice'!$F$58:$I$58,0))) -> 0% | Z10: 200.00 | AA10: 200.00 | AB10: 200.00 | AC10: 200.00 | AD10: 800.00 | AE10: =INDEX('Hulpblad verkeer'!$K:$K,MATCH($AE$3,'Hulpblad verkeer'!A:A,0))*J10 -> 13.08 | AF10: =INDEX('Hulpblad verkeer'!$K:$K,MATCH('Rekenblad Verkeer'!$AF$3,'Hulpblad verkeer'!A:A,0))*L10 -> 13.08 | AG10: =INDEX('Hulpblad verkeer'!K:K,MATCH('Rekenblad Verkeer'!$AG$3,'Hulpblad verkeer'!A:A,0))*N10 -> 28.67 | AH10: =INDEX('Hulpblad verkeer'!K:K,MATCH('Rekenblad Verkeer'!$AH$3,'Hulpblad verkeer'!A:A,0))*P10 -> 100.06 | AI10: 154.91 | AJ10: =AI10*Parameters_VoIP!$B$6 -> 1.55 | AM10: 1.55 | AN10: 156.46 | AO10: 643.54 | AP10: 80% | AQ10: FALSE | AS10: ja | AV10: =INDEX('Hulpblad verkeer'!$L:$L,MATCH(AV$3&"-ULL",'Hulpblad verkeer'!$A:$A,0))*J10 -> 23.08 | AW10: =INDEX('Hulpblad verkeer'!$L:$L,MATCH(AW$3&"-ULL",'Hulpblad verkeer'!$A:$A,0))*L10 -> 23.08 | AX10: =INDEX('Hulpblad verkeer'!$L:$L,MATCH(AX$3&"-ULL",'Hulpblad verkeer'!$A:$A,0))*N10 -> 38.67 | AY10: =INDEX('Hulpblad verkeer'!$L:$L,MATCH(AY$3&"-ULL",'Hulpblad verkeer'!$A:$A,0))*P10 -> 110.06 | AZ10: 194.91 | BB10: =AD10*Parameters_VoIP!$B$13 -> 80.00 | BC10: =Distributievergoedingen!$F$7*AD10+Distributievergoedingen!$R$7/Parameters_VoIP!$B$15 -> 80.28 | BE10: 160.28 | BG10: 355.18 | BI10: 444.82 | BJ10: 55.60% | BK10: FALSE
A11: Hosted voipNederland Onbeperkt3 | B11: Hosted voipNederland Onbeperkt3 | C11: Hosted voip | D11: Nederland Onbeperkt | E11: 3 | H11: Hosted voipNederland Onbeperkt | I11: =INDEX(Verkeersprofielen!$B:$B,MATCH($H11,Verkeersprofielen!$A:$A,0)) -> 1,000 | J11: =INDEX(Verkeersprofielen!$C:$C,MATCH($H11,Verkeersprofielen!$A:$A,0)) -> 1,000 | K11: =INDEX(Verkeersprofielen!$D:$D,MATCH($H11,Verkeersprofielen!$A:$A,0)) -> 1,000 | L11: =INDEX(Verkeersprofielen!$E:$E,MATCH($H11,Verkeersprofielen!$A:$A,0)) -> 1,000 | M11: =INDEX(Verkeersprofielen!$F:$F,MATCH($H11,Verkeersprofielen!$A:$A,0)) -> 1,000 | N11: =INDEX(Verkeersprofielen!$G:$G,MATCH($H11,Verkeersprofielen!$A:$A,0)) -> 1,000 | O11: =INDEX(Verkeersprofielen!$H:$H,MATCH($H11,Verkeersprofielen!$A:$A,0)) -> 1,000 | P11: =INDEX(Verkeersprofielen!$I:$I,MATCH($H11,Verkeersprofielen!$A:$A,0)) -> 1,000 | Q11: =INDEX('Tarieven ZM voice'!$F:$F,MATCH($H11&Q$3,'Tarieven ZM voice'!$B:$B,0))*I11+J11*INDEX('Tarieven ZM voice'!$G:$G,MATCH($H11&Q$3,'Tarieven ZM voice'!$B:$B,0)) -> 200.00 | R11: =INDEX('Tarieven ZM voice'!$F:$F,MATCH($H11&R$3,'Tarieven ZM voice'!$B:$B,0))*K11+L11*INDEX('Tarieven ZM voice'!$G:$G,MATCH($H11&R$3,'Tarieven ZM voice'!$B:$B,0)) -> 200.00 | S11: =INDEX('Tarieven ZM voice'!$F:$F,MATCH($H11&S$3,'Tarieven ZM voice'!$B:$B,0))*M11+N11*INDEX('Tarieven ZM voice'!$G:$G,MATCH($H11&S$3,'Tarieven ZM voice'!$B:$B,0)) -> 200.00 | T11: =INDEX('Tarieven ZM voice'!$F:$F,MATCH($H11&T$3,'Tarieven ZM voice'!$B:$B,0))*O11+P11*INDEX('Tarieven ZM voice'!$G:$G,MATCH($H11&T$3,'Tarieven ZM voice'!$B:$B,0)) -> 200.00 | U11: 800.00 | V11: =IF(ISNA(MATCH($C11&$E11,'Tarieven ZM voice'!$B:$B,0)),0,INDEX('Tarieven ZM voice'!$F:$I,MATCH($C11&$E11,'Tarieven ZM voice'!$B:$B,0),MATCH(V$3,'Tarieven ZM voice'!$F$58:$I$58,0))) -> 0% | W11: =IF(ISNA(MATCH($C11&$E11,'Tarieven ZM voice'!$B:$B,0)),0,INDEX('Tarieven ZM voice'!$F:$I,MATCH($C11&$E11,'Tarieven ZM voice'!$B:$B,0),MATCH(W$3,'Tarieven ZM voice'!$F$58:$I$58,0))) -> 0% | X11: =IF(ISNA(MATCH($C11&$E11,'Tarieven ZM voice'!$B:$B,0)),0,INDEX('Tarieven ZM voice'!$F:$I,MATCH($C11&$E11,'Tarieven ZM voice'!$B:$B,0),MATCH(X$3,'Tarieven ZM voice'!$F$58:$I$58,0))) -> 0% | Y11: =IF(ISNA(MATCH($C11&$E11,'Tarieven ZM voice'!$B:$B,0)),0,INDEX('Tarieven ZM voice'!$F:$I,MATCH($C11&$E11,'Tarieven ZM voice'!$B:$B,0),MATCH(Y$3,'Tarieven ZM voice'!$F$58:$I$58,0))) -> 0% | Z11: 200.00 | AA11: 200.00 | AB11: 200.00 | AC11: 200.00 | AD11: 800.00 | AE11: =INDEX('Hulpblad verkeer'!$K:$K,MATCH($AE$3,'Hulpblad verkeer'!A:A,0))*J11 -> 13.08 | AF11: =INDEX('Hulpblad verkeer'!$K:$K,MATCH('Rekenblad Verkeer'!$AF$3,'Hulpblad verkeer'!A:A,0))*L11 -> 13.08 | AG11: =INDEX('Hulpblad verkeer'!K:K,MATCH('Rekenblad Verkeer'!$AG$3,'Hulpblad verkeer'!A:A,0))*N11 -> 28.67 | AH11: =INDEX('Hulpblad verkeer'!K:K,MATCH('Rekenblad Verkeer'!$AH$3,'Hulpblad verkeer'!A:A,0))*P11 -> 100.06 | AI11: 154.91 | AJ11: =AI11*Parameters_VoIP!$B$6 -> 1.55 | AM11: 1.55 | AN11: 156.46 | AO11: 643.54 | AP11: 80% | AQ11: FALSE | AS11: ja | AV11: =INDEX('Hulpblad verkeer'!$L:$L,MATCH(AV$3&"-ULL",'Hulpblad verkeer'!$A:$A,0))*J11 -> 23.08 | AW11: =INDEX('Hulpblad verkeer'!$L:$L,MATCH(AW$3&"-ULL",'Hulpblad verkeer'!$A:$A,0))*L11 -> 23.08 | AX11: =INDEX('Hulpblad verkeer'!$L:$L,MATCH(AX$3&"-ULL",'Hulpblad verkeer'!$A:$A,0))*N11 -> 38.67 | AY11: =INDEX('Hulpblad verkeer'!$L:$L,MATCH(AY$3&"-ULL",'Hulpblad verkeer'!$A:$A,0))*P11 -> 110.06 | AZ11: 194.91 | BB11: =AD11*Parameters_VoIP!$B$13 -> 80.00 | BC11: =Distributievergoedingen!$F$7*AD11+Distributievergoedingen!$R$7/Parameters_VoIP!$B$15 -> 80.28 | BE11: 160.28 | BG11: 355.18 | BI11: 444.82 | BJ11: 55.60% | BK11: FALSE
A12: =C12&D12&E12 -> SIPBasis0 | B12: =C12&D12&E12 -> SIPBasis0 | C12: SIP | D12: Basis | E12: 0 | H12: =C12&D12 -> SIPBasis | I12: =INDEX(Verkeersprofielen!$B:$B,MATCH($H12,Verkeersprofielen!$A:$A,0)) -> 1,000 | J12: =INDEX(Verkeersprofielen!$C:$C,MATCH($H12,Verkeersprofielen!$A:$A,0)) -> 1,000 | K12: =INDEX(Verkeersprofielen!$D:$D,MATCH($H12,Verkeersprofielen!$A:$A,0)) -> 1,000 | L12: =INDEX(Verkeersprofielen!$E:$E,MATCH($H12,Verkeersprofielen!$A:$A,0)) -> 1,000 | M12: =INDEX(Verkeersprofielen!$F:$F,MATCH($H12,Verkeersprofielen!$A:$A,0)) -> 1,000 | N12: =INDEX(Verkeersprofielen!$G:$G,MATCH($H12,Verkeersprofielen!$A:$A,0)) -> 1,000 | O12: =INDEX(Verkeersprofielen!$H:$H,MATCH($H12,Verkeersprofielen!$A:$A,0)) -> 1,000 | P12: =INDEX(Verkeersprofielen!$I:$I,MATCH($H12,Verkeersprofielen!$A:$A,0)) -> 1,000 | Q12: =INDEX('Tarieven ZM voice'!$F:$F,MATCH($H12&Q$3,'Tarieven ZM voice'!$B:$B,0))*I12+J12*INDEX('Tarieven ZM voice'!$G:$G,MATCH($H12&Q$3,'Tarieven ZM voice'!$B:$B,0)) -> 200.00 | R12: =INDEX('Tarieven ZM voice'!$F:$F,MATCH($H12&R$3,'Tarieven ZM voice'!$B:$B,0))*K12+L12*INDEX('Tarieven ZM voice'!$G:$G,MATCH($H12&R$3,'Tarieven ZM voice'!$B:$B,0)) -> 200.00 | S12: =INDEX('Tarieven ZM voice'!$F:$F,MATCH($H12&S$3,'Tarieven ZM voice'!$B:$B,0))*M12+N12*INDEX('Tarieven ZM voice'!$G:$G,MATCH($H12&S$3,'Tarieven ZM voice'!$B:$B,0)) -> 200.00 | T12: =INDEX('Tarieven ZM voice'!$F:$F,MATCH($H12&T$3,'Tarieven ZM voice'!$B:$B,0))*O12+P12*INDEX('Tarieven ZM voice'!$G:$G,MATCH($H12&T$3,'Tarieven ZM voice'!$B:$B,0)) -> 200.00 | U12: =SUM(Q12:T12) -> 800.00 | V12: =IF(ISNA(MATCH($C12&$E12,'Tarieven ZM voice'!$B:$B,0)),0,INDEX('Tarieven ZM voice'!$F:$I,MATCH($C12&$E12,'Tarieven ZM voice'!$B:$B,0),MATCH(V$3,'Tarieven ZM voice'!$F$58:$I$58,0))) -> 0% | W12: =IF(ISNA(MATCH($C12&$E12,'Tarieven ZM voice'!$B:$B,0)),0,INDEX('Tarieven ZM voice'!$F:$I,MATCH($C12&$E12,'Tarieven ZM voice'!$B:$B,0),MATCH(W$3,'Tarieven ZM voice'!$F$58:$I$58,0))) -> 0% | X12: =IF(ISNA(MATCH($C12&$E12,'Tarieven ZM voice'!$B:$B,0)),0,INDEX('Tarieven ZM voice'!$F:$I,MATCH($C12&$E12,'Tarieven ZM voice'!$B:$B,0),MATCH(X$3,'Tarieven ZM voice'!$F$58:$I$58,0))) -> 0% | Y12: =IF(ISNA(MATCH($C12&$E12,'Tarieven ZM voice'!$B:$B,0)),0,INDEX('Tarieven ZM voice'!$F:$I,MATCH($C12&$E12,'Tarieven ZM voice'!$B:$B,0),MATCH(Y$3,'Tarieven ZM voice'!$F$58:$I$58,0))) -> 0% | Z12: =Q12*(1-V12) -> 200.00 | AA12: =R12*(1-W12) -> 200.00 | AB12: =S12*(1-X12) -> 200.00 | AC12: =T12*(1-Y12) -> 200.00 | AD12: =SUM(Z12:AC12) -> 800.00 | AE12: =INDEX('Hulpblad verkeer'!$K:$K,MATCH($AE$3,'Hulpblad verkeer'!A:A,0))*J12 -> 13.08 | AF12: =INDEX('Hulpblad verkeer'!$K:$K,MATCH('Rekenblad Verkeer'!$AF$3,'Hulpblad verkeer'!A:A,0))*L12 -> 13.08 | AG12: =INDEX('Hulpblad verkeer'!K:K,MATCH('Rekenblad Verkeer'!$AG$3,'Hulpblad verkeer'!A:A,0))*N12 -> 28.67 | AH12: =INDEX('Hulpblad verkeer'!K:K,MATCH('Rekenblad Verkeer'!$AH$3,'Hulpblad verkeer'!A:A,0))*P12 -> 100.06 | AI12: =SUM(AE12:AH12) -> 154.91 | AJ12: =AI12*Parameters_VoIP!$B$6 -> 1.55 | AM12: =SUM(AJ12:AL12) -> 1.55 | AN12: =AI12+AM12 -> 156.46 | AO12: =AD12-AN12 -> 643.54 | AP12: =AO12/AD12 -> 80% | AQ12: =AP12<0 -> FALSE | AS12: ja | AV12: =INDEX('Hulpblad verkeer'!$L:$L,MATCH(AV$3&"-ULL",'Hulpblad verkeer'!$A:$A,0))*J12 -> 23.08 | AW12: =INDEX('Hulpblad verkeer'!$L:$L,MATCH(AW$3&"-ULL",'Hulpblad verkeer'!$A:$A,0))*L12 -> 23.08 | AX12: =INDEX('Hulpblad verkeer'!$L:$L,MATCH(AX$3&"-ULL",'Hulpblad verkeer'!$A:$A,0))*N12 -> 38.67 | AY12: =INDEX('Hulpblad verkeer'!$L:$L,MATCH(AY$3&"-ULL",'Hulpblad verkeer'!$A:$A,0))*P12 -> 110.06 | AZ12: =SUM(AV12:AY12) -> 194.91 | BB12: =AD12*Parameters_VoIP!$B$13 -> 80.00 | BC12: =Distributievergoedingen!$F$7*AD12+Distributievergoedingen!$R$7/Parameters_VoIP!$B$15 -> 80.28 | BE12: =SUM(BB12:BD12) -> 160.28 | BG12: =AZ12+BE12 -> 355.18 | BI12: =AD12-BG12 -> 444.82 | BJ12: =BI12/AD12 -> 55.60% | BK12: =BJ12<0 -> FALSE
A13: SIPBasis1 | B13: SIPBasis1 | C13: SIP | D13: Basis | E13: 1 | H13: =C13&D13 -> SIPBasis | I13: =INDEX(Verkeersprofielen!$B:$B,MATCH($H13,Verkeersprofielen!$A:$A,0)) -> 1,000 | J13: =INDEX(Verkeersprofielen!$C:$C,MATCH($H13,Verkeersprofielen!$A:$A,0)) -> 1,000 | K13: =INDEX(Verkeersprofielen!$D:$D,MATCH($H13,Verkeersprofielen!$A:$A,0)) -> 1,000 | L13: =INDEX(Verkeersprofielen!$E:$E,MATCH($H13,Verkeersprofielen!$A:$A,0)) -> 1,000 | M13: =INDEX(Verkeersprofielen!$F:$F,MATCH($H13,Verkeersprofielen!$A:$A,0)) -> 1,000 | N13: =INDEX(Verkeersprofielen!$G:$G,MATCH($H13,Verkeersprofielen!$A:$A,0)) -> 1,000 | O13: =INDEX(Verkeersprofielen!$H:$H,MATCH($H13,Verkeersprofielen!$A:$A,0)) -> 1,000 | P13: =INDEX(Verkeersprofielen!$I:$I,MATCH($H13,Verkeersprofielen!$A:$A,0)) -> 1,000 | Q13: =INDEX('Tarieven ZM voice'!$F:$F,MATCH($H13&Q$3,'Tarieven ZM voice'!$B:$B,0))*I13+J13*INDEX('Tarieven ZM voice'!$G:$G,MATCH($H13&Q$3,'Tarieven ZM voice'!$B:$B,0)) -> 200.00 | R13: =INDEX('Tarieven ZM voice'!$F:$F,MATCH($H13&R$3,'Tarieven ZM voice'!$B:$B,0))*K13+L13*INDEX('Tarieven ZM voice'!$G:$G,MATCH($H13&R$3,'Tarieven ZM voice'!$B:$B,0)) -> 200.00 | S13: =INDEX('Tarieven ZM voice'!$F:$F,MATCH($H13&S$3,'Tarieven ZM voice'!$B:$B,0))*M13+N13*INDEX('Tarieven ZM voice'!$G:$G,MATCH($H13&S$3,'Tarieven ZM voice'!$B:$B,0)) -> 200.00 | T13: =INDEX('Tarieven ZM voice'!$F:$F,MATCH($H13&T$3,'Tarieven ZM voice'!$B:$B,0))*O13+P13*INDEX('Tarieven ZM voice'!$G:$G,MATCH($H13&T$3,'Tarieven ZM voice'!$B:$B,0)) -> 200.00 | U13: =SUM(Q13:T13) -> 800.00 | V13: =IF(ISNA(MATCH($C13&$E13,'Tarieven ZM voice'!$B:$B,0)),0,INDEX('Tarieven ZM voice'!$F:$I,MATCH($C13&$E13,'Tarieven ZM voice'!$B:$B,0),MATCH(V$3,'Tarieven ZM voice'!$F$58:$I$58,0))) -> 0% | W13: =IF(ISNA(MATCH($C13&$E13,'Tarieven ZM voice'!$B:$B,0)),0,INDEX('Tarieven ZM voice'!$F:$I,MATCH($C13&$E13,'Tarieven ZM voice'!$B:$B,0),MATCH(W$3,'Tarieven ZM voice'!$F$58:$I$58,0))) -> 0% | X13: =IF(ISNA(MATCH($C13&$E13,'Tarieven ZM voice'!$B:$B,0)),0,INDEX('Tarieven ZM voice'!$F:$I,MATCH($C13&$E13,'Tarieven ZM voice'!$B:$B,0),MATCH(X$3,'Tarieven ZM voice'!$F$58:$I$58,0))) -> 0% | Y13: =IF(ISNA(MATCH($C13&$E13,'Tarieven ZM voice'!$B:$B,0)),0,INDEX('Tarieven ZM voice'!$F:$I,MATCH($C13&$E13,'Tarieven ZM voice'!$B:$B,0),MATCH(Y$3,'Tarieven ZM voice'!$F$58:$I$58,0))) -> 0% | Z13: =Q13*(1-V13) -> 200.00 | AA13: =R13*(1-W13) -> 200.00 | AB13: =S13*(1-X13) -> 200.00 | AC13: =T13*(1-Y13) -> 200.00 | AD13: =SUM(Z13:AC13) -> 800.00 | AE13: =INDEX('Hulpblad verkeer'!$K:$K,MATCH($AE$3,'Hulpblad verkeer'!A:A,0))*J13 -> 13.08 | AF13: =INDEX('Hulpblad verkeer'!$K:$K,MATCH('Rekenblad Verkeer'!$AF$3,'Hulpblad verkeer'!A:A,0))*L13 -> 13.08 | AG13: =INDEX('Hulpblad verkeer'!K:K,MATCH('Rekenblad Verkeer'!$AG$3,'Hulpblad verkeer'!A:A,0))*N13 -> 28.67 | AH13: =INDEX('Hulpblad verkeer'!K:K,MATCH('Rekenblad Verkeer'!$AH$3,'Hulpblad verkeer'!A:A,0))*P13 -> 100.06 | AI13: =SUM(AE13:AH13) -> 154.91 | AJ13: =AI13*Parameters_VoIP!$B$6 -> 1.55 | AM13: =SUM(AJ13:AL13) -> 1.55 | AN13: =AI13+AM13 -> 156.46 | AO13: =AD13-AN13 -> 643.54 | AP13: =AO13/AD13 -> 80% | AQ13: =AP13<0 -> FALSE | AS13: ja | AV13: =INDEX('Hulpblad verkeer'!$L:$L,MATCH(AV$3&"-ULL",'Hulpblad verkeer'!$A:$A,0))*J13 -> 23.08 | AW13: =INDEX('Hulpblad verkeer'!$L:$L,MATCH(AW$3&"-ULL",'Hulpblad verkeer'!$A:$A,0))*L13 -> 23.08 | AX13: =INDEX('Hulpblad verkeer'!$L:$L,MATCH(AX$3&"-ULL",'Hulpblad verkeer'!$A:$A,0))*N13 -> 38.67 | AY13: =INDEX('Hulpblad verkeer'!$L:$L,MATCH(AY$3&"-ULL",'Hulpblad verkeer'!$A:$A,0))*P13 -> 110.06 | AZ13: 194.91 | BB13: =AD13*Parameters_VoIP!$B$13 -> 80.00 | BC13: =Distributievergoedingen!$F$7*AD13+Distributievergoedingen!$R$7/Parameters_VoIP!$B$15 -> 80.28 | BE13: 160.28 | BG13: 355.18 | BI13: 444.82 | BJ13: 55.60% | BK13: FALSE
A14: SIPBasis2 | B14: SIPBasis2 | C14: SIP | D14: Basis | E14: 2 | H14: =C14&D14 -> SIPBasis | I14: =INDEX(Verkeersprofielen!$B:$B,MATCH($H14,Verkeersprofielen!$A:$A,0)) -> 1,000 | J14: =INDEX(Verkeersprofielen!$C:$C,MATCH($H14,Verkeersprofielen!$A:$A,0)) -> 1,000 | K14: =INDEX(Verkeersprofielen!$D:$D,MATCH($H14,Verkeersprofielen!$A:$A,0)) -> 1,000 | L14: =INDEX(Verkeersprofielen!$E:$E,MATCH($H14,Verkeersprofielen!$A:$A,0)) -> 1,000 | M14: =INDEX(Verkeersprofielen!$F:$F,MATCH($H14,Verkeersprofielen!$A:$A,0)) -> 1,000 | N14: =INDEX(Verkeersprofielen!$G:$G,MATCH($H14,Verkeersprofielen!$A:$A,0)) -> 1,000 | O14: =INDEX(Verkeersprofielen!$H:$H,MATCH($H14,Verkeersprofielen!$A:$A,0)) -> 1,000 | P14: =INDEX(Verkeersprofielen!$I:$I,MATCH($H14,Verkeersprofielen!$A:$A,0)) -> 1,000 | Q14: =INDEX('Tarieven ZM voice'!$F:$F,MATCH($H14&Q$3,'Tarieven ZM voice'!$B:$B,0))*I14+J14*INDEX('Tarieven ZM voice'!$G:$G,MATCH($H14&Q$3,'Tarieven ZM voice'!$B:$B,0)) -> 200.00 | R14: =INDEX('Tarieven ZM voice'!$F:$F,MATCH($H14&R$3,'Tarieven ZM voice'!$B:$B,0))*K14+L14*INDEX('Tarieven ZM voice'!$G:$G,MATCH($H14&R$3,'Tarieven ZM voice'!$B:$B,0)) -> 200.00 | S14: =INDEX('Tarieven ZM voice'!$F:$F,MATCH($H14&S$3,'Tarieven ZM voice'!$B:$B,0))*M14+N14*INDEX('Tarieven ZM voice'!$G:$G,MATCH($H14&S$3,'Tarieven ZM voice'!$B:$B,0)) -> 200.00 | T14: =INDEX('Tarieven ZM voice'!$F:$F,MATCH($H14&T$3,'Tarieven ZM voice'!$B:$B,0))*O14+P14*INDEX('Tarieven ZM voice'!$G:$G,MATCH($H14&T$3,'Tarieven ZM voice'!$B:$B,0)) -> 200.00 | U14: 800.00 | V14: =IF(ISNA(MATCH($C14&$E14,'Tarieven ZM voice'!$B:$B,0)),0,INDEX('Tarieven ZM voice'!$F:$I,MATCH($C14&$E14,'Tarieven ZM voice'!$B:$B,0),MATCH(V$3,'Tarieven ZM voice'!$F$58:$I$58,0))) -> 0% | W14: =IF(ISNA(MATCH($C14&$E14,'Tarieven ZM voice'!$B:$B,0)),0,INDEX('Tarieven ZM voice'!$F:$I,MATCH($C14&$E14,'Tarieven ZM voice'!$B:$B,0),MATCH(W$3,'Tarieven ZM voice'!$F$58:$I$58,0))) -> 0% | X14: =IF(ISNA(MATCH($C14&$E14,'Tarieven ZM voice'!$B:$B,0)),0,INDEX('Tarieven ZM voice'!$F:$I,MATCH($C14&$E14,'Tarieven ZM voice'!$B:$B,0),MATCH(X$3,'Tarieven ZM voice'!$F$58:$I$58,0))) -> 0% | Y14: =IF(ISNA(MATCH($C14&$E14,'Tarieven ZM voice'!$B:$B,0)),0,INDEX('Tarieven ZM voice'!$F:$I,MATCH($C14&$E14,'Tarieven ZM voice'!$B:$B,0),MATCH(Y$3,'Tarieven ZM voice'!$F$58:$I$58,0))) -> 0% | Z14: 200.00 | AA14: 200.00 | AB14: 200.00 | AC14: 200.00 | AD14: 800.00 | AE14: =INDEX('Hulpblad verkeer'!$K:$K,MATCH($AE$3,'Hulpblad verkeer'!A:A,0))*J14 -> 13.08 | AF14: =INDEX('Hulpblad verkeer'!$K:$K,MATCH('Rekenblad Verkeer'!$AF$3,'Hulpblad verkeer'!A:A,0))*L14 -> 13.08 | AG14: =INDEX('Hulpblad verkeer'!K:K,MATCH('Rekenblad Verkeer'!$AG$3,'Hulpblad verkeer'!A:A,0))*N14 -> 28.67 | AH14: =INDEX('Hulpblad verkeer'!K:K,MATCH('Rekenblad Verkeer'!$AH$3,'Hulpblad verkeer'!A:A,0))*P14 -> 100.06 | AI14: 154.91 | AJ14: =AI14*Parameters_VoIP!$B$6 -> 1.55 | AM14: 1.55 | AN14: 156.46 | AO14: 643.54 | AP14: 80% | AQ14: FALSE | AS14: ja | AV14: =INDEX('Hulpblad verkeer'!$L:$L,MATCH(AV$3&"-ULL",'Hulpblad verkeer'!$A:$A,0))*J14 -> 23.08 | AW14: =INDEX('Hulpblad verkeer'!$L:$L,MATCH(AW$3&"-ULL",'Hulpblad verkeer'!$A:$A,0))*L14 -> 23.08 | AX14: =INDEX('Hulpblad verkeer'!$L:$L,MATCH(AX$3&"-ULL",'Hulpblad verkeer'!$A:$A,0))*N14 -> 38.67 | AY14: =INDEX('Hulpblad verkeer'!$L:$L,MATCH(AY$3&"-ULL",'Hulpblad verkeer'!$A:$A,0))*P14 -> 110.06 | AZ14: 194.91 | BB14: =AD14*Parameters_VoIP!$B$13 -> 80.00 | BC14: =Distributievergoedingen!$F$7*AD14+Distributievergoedingen!$R$7/Parameters_VoIP!$B$15 -> 80.28 | BE14: 160.28 | BG14: 355.18 | BI14: 444.82 | BJ14: 55.60% | BK14: FALSE
A15: SIPBasis3 | B15: SIPBasis3 | C15: SIP | D15: Basis | E15: 3 | H15: SIPBasis | I15: =INDEX(Verkeersprofielen!$B:$B,MATCH($H15,Verkeersprofielen!$A:$A,0)) -> 1,000 | J15: =INDEX(Verkeersprofielen!$C:$C,MATCH($H15,Verkeersprofielen!$A:$A,0)) -> 1,000 | K15: =INDEX(Verkeersprofielen!$D:$D,MATCH($H15,Verkeersprofielen!$A:$A,0)) -> 1,000 | L15: =INDEX(Verkeersprofielen!$E:$E,MATCH($H15,Verkeersprofielen!$A:$A,0)) -> 1,000 | M15: =INDEX(Verkeersprofielen!$F:$F,MATCH($H15,Verkeersprofielen!$A:$A,0)) -> 1,000 | N15: =INDEX(Verkeersprofielen!$G:$G,MATCH($H15,Verkeersprofielen!$A:$A,0)) -> 1,000 | O15: =INDEX(Verkeersprofielen!$H:$H,MATCH($H15,Verkeersprofielen!$A:$A,0)) -> 1,000 | P15: =INDEX(Verkeersprofielen!$I:$I,MATCH($H15,Verkeersprofielen!$A:$A,0)) -> 1,000 | Q15: =INDEX('Tarieven ZM voice'!$F:$F,MATCH($H15&Q$3,'Tarieven ZM voice'!$B:$B,0))*I15+J15*INDEX('Tarieven ZM voice'!$G:$G,MATCH($H15&Q$3,'Tarieven ZM voice'!$B:$B,0)) -> 200.00 | R15: =INDEX('Tarieven ZM voice'!$F:$F,MATCH($H15&R$3,'Tarieven ZM voice'!$B:$B,0))*K15+L15*INDEX('Tarieven ZM voice'!$G:$G,MATCH($H15&R$3,'Tarieven ZM voice'!$B:$B,0)) -> 200.00 | S15: =INDEX('Tarieven ZM voice'!$F:$F,MATCH($H15&S$3,'Tarieven ZM voice'!$B:$B,0))*M15+N15*INDEX('Tarieven ZM voice'!$G:$G,MATCH($H15&S$3,'Tarieven ZM voice'!$B:$B,0)) -> 200.00 | T15: =INDEX('Tarieven ZM voice'!$F:$F,MATCH($H15&T$3,'Tarieven ZM voice'!$B:$B,0))*O15+P15*INDEX('Tarieven ZM voice'!$G:$G,MATCH($H15&T$3,'Tarieven ZM voice'!$B:$B,0)) -> 200.00 | U15: 800.00 | V15: =IF(ISNA(MATCH($C15&$E15,'Tarieven ZM voice'!$B:$B,0)),0,INDEX('Tarieven ZM voice'!$F:$I,MATCH($C15&$E15,'Tarieven ZM voice'!$B:$B,0),MATCH(V$3,'Tarieven ZM voice'!$F$58:$I$58,0))) -> 0% | W15: =IF(ISNA(MATCH($C15&$E15,'Tarieven ZM voice'!$B:$B,0)),0,INDEX('Tarieven ZM voice'!$F:$I,MATCH($C15&$E15,'Tarieven ZM voice'!$B:$B,0),MATCH(W$3,'Tarieven ZM voice'!$F$58:$I$58,0))) -> 0% | X15: =IF(ISNA(MATCH($C15&$E15,'Tarieven ZM voice'!$B:$B,0)),0,INDEX('Tarieven ZM voice'!$F:$I,MATCH($C15&$E15,'Tarieven ZM voice'!$B:$B,0),MATCH(X$3,'Tarieven ZM voice'!$F$58:$I$58,0))) -> 0% | Y15: =IF(ISNA(MATCH($C15&$E15,'Tarieven ZM voice'!$B:$B,0)),0,INDEX('Tarieven ZM voice'!$F:$I,MATCH($C15&$E15,'Tarieven ZM voice'!$B:$B,0),MATCH(Y$3,'Tarieven ZM voice'!$F$58:$I$58,0))) -> 0% | Z15: 200.00 | AA15: 200.00 | AB15: 200.00 | AC15: 200.00 | AD15: 800.00 | AE15: =INDEX('Hulpblad verkeer'!$K:$K,MATCH($AE$3,'Hulpblad verkeer'!A:A,0))*J15 -> 13.08 | AF15: =INDEX('Hulpblad verkeer'!$K:$K,MATCH('Rekenblad Verkeer'!$AF$3,'Hulpblad verkeer'!A:A,0))*L15 -> 13.08 | AG15: =INDEX('Hulpblad verkeer'!K:K,MATCH('Rekenblad Verkeer'!$AG$3,'Hulpblad verkeer'!A:A,0))*N15 -> 28.67 | AH15: =INDEX('Hulpblad verkeer'!K:K,MATCH('Rekenblad Verkeer'!$AH$3,'Hulpblad verkeer'!A:A,0))*P15 -> 100.06 | AI15: 154.91 | AJ15: =AI15*Parameters_VoIP!$B$6 -> 1.55 | AM15: 1.55 | AN15: 156.46 | AO15: 643.54 | AP15: 80% | AQ15: FALSE | AS15: ja | AV15: =INDEX('Hulpblad verkeer'!$L:$L,MATCH(AV$3&"-ULL",'Hulpblad verkeer'!$A:$A,0))*J15 -> 23.08 | AW15: =INDEX('Hulpblad verkeer'!$L:$L,MATCH(AW$3&"-ULL",'Hulpblad verkeer'!$A:$A,0))*L15 -> 23.08 | AX15: =INDEX('Hulpblad verkeer'!$L:$L,MATCH(AX$3&"-ULL",'Hulpblad verkeer'!$A:$A,0))*N15 -> 38.67 | AY15: =INDEX('Hulpblad verkeer'!$L:$L,MATCH(AY$3&"-ULL",'Hulpblad verkeer'!$A:$A,0))*P15 -> 110.06 | AZ15: 194.91 | BB15: =AD15*Parameters_VoIP!$B$13 -> 80.00 | BC15: =Distributievergoedingen!$F$7*AD15+Distributievergoedingen!$R$7/Parameters_VoIP!$B$15 -> 80.28 | BE15: 160.28 | BG15: 355.18 | BI15: 444.82 | BJ15: 55.60% | BK15: FALSE

Sheet Distributievergoedingen
B2: TZ
B7: HVoIP | D7: 10.00% | E7: 10.00% | F7: 10.00% | G7: 0% | H7: 0% | I7: 0% | J7: 0.00% | K7: 0.00% | L7: 0.00% | M7: 0.00% | N7: 0.00% | O7: 0.00% | P7: € 10.00 | Q7: € 10.00 | R7: € 10.00 | S7: 0% | T7: 0% | U7: 0%
